Service Area,Service Division,Expense Type,Expense Code,Detailed Expense Type,Payment Date,Transaction Number,Amount Exc VAT,Supplier Name
Children and Young Peoples Services,Childrens Services Operational Support,Supplies and Services,338026,Services,01/03/2023,4106060-BB/DS/1,803.25,REDACTED - PAYMENT TO INDIVIDUAL
Regeneration Economy and Growth,Culture Sport and Tourism,Supplies and Services,338047,Services,01/03/2023,4106067-00463,750.00,REDACTED - PAYMENT TO INDIVIDUAL
Regeneration Economy and Growth,Culture Sport and Tourism,Third Party Payments,430131,Rendered by Private Contractors,01/03/2023,4106202-2023005,548.00,REDACTED - PAYMENT TO INDIVIDUAL
Neighbourhoods and Climate Change,Environmental Services,Supplies and Services,384899,Miscellaneous Expenses,01/03/2023,4106068-RES-02-2023-562,"1,752.00",CDS SECURITY & FIRE LTD.
Neighbourhoods and Climate Change,Environmental Services,Supplies and Services,384899,Miscellaneous Expenses,01/03/2023,4106147-RES-02-2023-584,"8,240.00",HORDEN & PETERLEE RUGBY CLUB.
Children and Young Peoples Services,Head of Childrens Social Care,Supplies and Services,384540,Miscellaneous Expenses,01/03/2023,4106222-1046,695.00,NORTHERN PRIDE EVENTS LTD.
Neighbourhoods and Climate Change,Environmental Services,Supplies and Services,338027,Services,01/03/2023,4106224-SIN004815,"5,000.00",OAKES ENERGY SERVICES LTD.
Adult and Health Services,Public Health CC0450,Supplies and Services,338089,Services,01/03/2023,4106228-17/180380,800.00,OPEN CLASP THEATRE CO.
Children and Young Peoples Services,Head of Early Help Inclusion & Vulnerable Children.,Supplies and Services,352001,Conference Expenses,01/03/2023,4106245-AQ112609,"3,360.00",PROFESSIONAL FITNESS & EDUCATION LTD.
Neighbourhoods and Climate Change,Environmental Services,Supplies and Services,304259,Equipment and Materials,01/03/2023,4106271-ARS/11083093,534.00,SNAP ON DIAGNOSTICS UK.
Neighbourhoods and Climate Change,Environmental Services,Supplies and Services,384899,Miscellaneous Expenses,01/03/2023,4106273-RES-02-2023-586,"7,690.50",SPENNYMOOR WMC.
Neighbourhoods and Climate Change,Environmental Services,Construction work A908,908105,Construction work,01/03/2023,4106309-TUC044611,"3,920.00",TUC PLANT HIRE LTD.
Neighbourhoods and Climate Change,Environmental Services,Construction work A908,908105,Construction work,01/03/2023,4106309-TUC044612,"1,940.00",TUC PLANT HIRE LTD.
Children and Young Peoples Services,Head of Childrens Social Care,Supplies and Services,364359,Grants to Voluntary Organisations,01/03/2023,4106134-JAN-FEB2023,610.50,REDACTED - PAYMENT TO INDIVIDUAL
Children and Young Peoples Services,Head of Education and Skills,Supplies and Services,338027,Services,01/03/2023,4106035-01/2023,"1,706.25",REDACTED - PAYMENT TO INDIVIDUAL
Regeneration Economy and Growth,Corporate Property and Land,Third Party Payments,430100,Rendered by Private Contractors,01/03/2023,4106169-92821,"16,718.57",REDACTED - PAYMENT TO INDIVIDUAL
Neighbourhoods and Climate Change,Highways,Supplies and Services,304221,Equipment and Materials,01/03/2023,4106029-34123992,"6,823.24",AGGREGATE INDUSTRIES UK LTD.
Regeneration Economy and Growth,Culture Sport and Tourism,Supplies and Services,304259,Equipment and Materials,01/03/2023,4106031-177167,702.00,ALBANY OFFICE EQUIPMENT (WHOLESALE) LTD.
Regeneration Economy and Growth,Culture Sport and Tourism,Supplies and Services,304259,Equipment and Materials,01/03/2023,4106031-177197,"1,240.00",ALBANY OFFICE EQUIPMENT (WHOLESALE) LTD.
Neighbourhoods and Climate Change,Highways,Third Party Payments,460224,Contract Payments,01/03/2023,4106046-23048,"259,242.98",ARM PIPETEK LTD.
Children and Young Peoples Services,Head of Childrens Social Care,Supplies and Services,384500,Miscellaneous Expenses,01/03/2023,4106049-2023-132,"1,800.00",ASPIRE PSYCHOLOGICAL SERVICES LTD.
Children and Young Peoples Services,Head of Education and Skills,Transport,230008,Contract Hire,01/03/2023,4106050-2-DCC1223,"3,794.20",ATLAS TAXIS MANAGEMENT LTD.
Children and Young Peoples Services,Head of Education and Skills,Transport,230008,Contract Hire,01/03/2023,4106050-2-DCC9-JAN-2023,"3,397.84",ATLAS TAXIS MANAGEMENT LTD.
Regeneration Economy and Growth,Business Durham CL0850,Supplies and Services,338027,Services,01/03/2023,4106051-SI-9077,800.00,BANKFIELD LTD.
Adult and Health Services,Head of Adults,Transport,230005,Contract Hire,01/03/2023,4106058-INV00648-RE,537.00,BLUELINE SOUTH INCORPORATING NAVIGATION TAXIS T/A BLUELINE TAXIS.
Neighbourhoods and Climate Change,Highways,Supplies and Services,338027,Services,01/03/2023,4106061-51983,"3,511.00",BRIDGEWAY CONSULTING LTD.
Adult and Health Services,Head of Adults,Premises,150005,Apportioned Exps of Operational Blds,01/03/2023,4106065-JOB001/20910,765.00,C JOBLING LTD T/A RAINBOW INTERNATIONAL.
Resources BK0010,Transactional & Customer Services,Supplies and Services,338066,Services,01/03/2023,4106072-C/BN263699,"4,828.78",CIVICA UK LTD.
Resources BK0010,Transactional & Customer Services,Supplies and Services,338066,Services,01/03/2023,4106072-C/BN263700,"1,694.80",CIVICA UK LTD.
Regeneration Economy and Growth,Corporate Property and Land,Third Party Payments,430100,Rendered by Private Contractors,01/03/2023,4106080-60338,"2,638.96",COMPLETE DETECTION SYSTEMS LTD (CDS).
Regeneration Economy and Growth,Business Durham CL0850,Premises,120021,Energy Costs,01/03/2023,4106083-17412829,"2,858.05",CORONA ENERGY RETAIL 2 LTD.
Regeneration Economy and Growth,Transport and Contracted Services,Supplies and Services,342053,Computers and Communications,01/03/2023,4106092-2537,"32,825.00",DATA IMAGES SOFTWARE SOLUTIONS LTD T/A FLEXIROUTE.
Neighbourhoods and Climate Change,Environmental Services,Third Party Payments,430100,Rendered by Private Contractors,01/03/2023,4106097-96434502,551.33,DENNIS EAGLE LTD T/A TERBERG MATEC (UK) LTD.
Regeneration Economy and Growth,Corporate Property and Land,Supplies and Services,304221,Equipment and Materials,01/03/2023,4106114-059-313971,786.80,EDMUNDSON ELECTRICAL LTD.
Regeneration Economy and Growth,Corporate Property and Land,Supplies and Services,304221,Equipment and Materials,01/03/2023,4106114-059-313973,"2,110.98",EDMUNDSON ELECTRICAL LTD.
Regeneration Economy and Growth,Corporate Property and Land,Supplies and Services,304221,Equipment and Materials,01/03/2023,4106115-059-314012,"1,203.02",EDMUNDSON ELECTRICAL LTD.
Adult and Health Services,Head of Adults,Third Party Payments,478151,Purchase of Care,01/03/2023,4106118-10112022,"8,148.32",EMBRACING CARE.
Adult and Health Services,Head of Adults,Third Party Payments,478151,Purchase of Care,01/03/2023,4106118-BURNHALLDRIVE-P9P10,"5,447.68",EMBRACING CARE.
Adult and Health Services,Head of Adults,Third Party Payments,478151,Purchase of Care,01/03/2023,4106118-CONNIFERS,"2,926.73",EMBRACING CARE.
Adult and Health Services,Head of Adults,Third Party Payments,478151,Purchase of Care,01/03/2023,4106118-EASTFIELDS,"2,235.72",EMBRACING CARE.
Neighbourhoods and Climate Change,Environmental Services,Supplies and Services,338066,Services,01/03/2023,4106120-1014-24712,600.00,ENERGY & COMPLIANCE TECHNOLOGY LTD T/A COMPLIANCE365.
Children and Young Peoples Services,Head of Education and Skills,Supplies and Services,338094,Services,01/03/2023,4106122-0000001058,516.16,EXCEL ACADEMY PARTNERSHIP T/A FRAMWELLGATE SCHOOL DURHAM.
Children and Young Peoples Services,Head of Education and Skills,Transport,230006,Contract Hire,01/03/2023,4106125-INV-0087,"2,342.34",FIGGY BUS (TAXI).
Children and Young Peoples Services,Head of Education and Skills,Supplies and Services,384199,Miscellaneous Expenses,01/03/2023,4106139-0000015114,"28,955.00",GROUNDWORK NORTH EAST.
Adult and Health Services,Commissioning inc Supporting People,Third Party Payments,479102,Purchase of Care,01/03/2023,4106145-11032852,"29,892.00",HOME GROUP LTD.
Adult and Health Services,Commissioning inc Supporting People,Third Party Payments,479111,Purchase of Care,01/03/2023,4106145-11033333,"4,981.00",HOME GROUP LTD.
Regeneration Economy and Growth,Corporate Property and Land,Supplies and Services,304221,Equipment and Materials,01/03/2023,4106148-B33/0183285,823.35,HOWDENS JOINERY LTD.
Regeneration Economy and Growth,Corporate Property and Land,Supplies and Services,304221,Equipment and Materials,01/03/2023,4106148-B33/0183287,"1,056.58",HOWDENS JOINERY LTD.
Adult and Health Services,Public Health CC0450,Third Party Payments,460802,Contract Payments,01/03/2023,4106149-SI-HK-000606,"28,555.25",HUMANKIND CHARITY.
Children and Young Peoples Services,Head of Education and Skills,Supplies and Services,304083,Equipment and Materials,01/03/2023,4106152-7291,500.00,INDUSTRIAL DEEP CLEANING LTD.
Regeneration Economy and Growth,Business Durham CL0850,Premises,108125,Service Repairs and Maintenance,01/03/2023,4106157-TW3223,822.00,IW ADAMSON LTD T/A COMPLETE WEED CONTROL (TYNE & WEAR).
Regeneration Economy and Growth,Transport and Contracted Services,Construction work A908,908105,Construction work,01/03/2023,4106159-27454,"2,230.57",JACK COUPE & SONS LTD T/A COUPE LINE.
Children and Young Peoples Services,Head of Education and Skills,Transport,230031,Contract Hire,01/03/2023,4106165-38003,"3,978.00",JIM HUGHES COACHES LTD.
Regeneration Economy and Growth,Corporate Property and Land,Supplies and Services,304221,Equipment and Materials,01/03/2023,4106172-0113/00041997,"1,602.01",JT DOVE LTD.
Regeneration Economy and Growth,Corporate Property and Land,Supplies and Services,304221,Equipment and Materials,01/03/2023,4106172-0113/00846483,900.00,JT DOVE LTD.
Neighbourhoods and Climate Change,Highways,Third Party Payments,430128,Rendered by Private Contractors,01/03/2023,4106174-INV-0023,880.00,JW TEWARD & SONS (HAULAGE) LTD.
Neighbourhoods and Climate Change,Highways,Supplies and Services,304221,Equipment and Materials,01/03/2023,4106175-378427,"2,036.28",KAEFER LTD.
Children and Young Peoples Services,Head of Education and Skills,Transfer Payments,510028,School Children,01/03/2023,4106178-RES-02-2023-583,"12,250.00",KELLOE PHOENIX CENTRE (CHILDCARE).
Neighbourhoods and Climate Change,Highways,Third Party Payments,430100,Rendered by Private Contractors,01/03/2023,4106179-230045,"85,255.92",KIELY BROS LTD.
Children and Young Peoples Services,Head of Education and Skills,Transport,230006,Contract Hire,01/03/2023,4106183-4008,"1,260.00",LD TAXIS.
Children and Young Peoples Services,Head of Childrens Social Care,Supplies and Services,338044,Services,01/03/2023,4106186-282394,788.00,LEXTOX.
Regeneration Economy and Growth,Culture Sport and Tourism,Supplies and Services,304337,Equipment and Materials,01/03/2023,4106198-4236108744,628.90,MARES SPA.
Regeneration Economy and Growth,Business Durham CL0850,Supplies and Services,338066,Services,01/03/2023,4106201-INV-0617,660.00,MCDONOUGH MARKETING COMMUNICATIONS LTD T/A MMC.
Neighbourhoods and Climate Change,Highways,Supplies and Services,304221,Equipment and Materials,01/03/2023,4106212-0000116701,"1,797.76",NAL LTD.
Children and Young Peoples Services,Head of Childrens Social Care,Supplies and Services,384500,Miscellaneous Expenses,01/03/2023,4106219-4081,540.00,NORTH EAST ADOPTION THERAPY SERVICES LTD (NEATS).
Children and Young Peoples Services,Head of Childrens Social Care,Supplies and Services,384500,Miscellaneous Expenses,01/03/2023,4106219-4083,540.00,NORTH EAST ADOPTION THERAPY SERVICES LTD (NEATS).
Children and Young Peoples Services,Head of Childrens Social Care,Supplies and Services,384500,Miscellaneous Expenses,01/03/2023,4106219-4091,600.00,NORTH EAST ADOPTION THERAPY SERVICES LTD (NEATS).
Children and Young Peoples Services,Head of Childrens Social Care,Supplies and Services,384500,Miscellaneous Expenses,01/03/2023,4106219-4177,"2,500.00",NORTH EAST ADOPTION THERAPY SERVICES LTD (NEATS).
Neighbourhoods and Climate Change,Environmental Services,Third Party Payments,430100,Rendered by Private Contractors,01/03/2023,4106226-26227,"2,100.00",OLIVERS TREE SERVICES LTD.
Neighbourhoods and Climate Change,Highways,Third Party Payments,430100,Rendered by Private Contractors,01/03/2023,4106226-26228,"4,750.00",OLIVERS TREE SERVICES LTD.
Neighbourhoods and Climate Change,Highways,Third Party Payments,430100,Rendered by Private Contractors,01/03/2023,4106226-26229,"2,180.00",OLIVERS TREE SERVICES LTD.
Regeneration Economy and Growth,Corporate Property and Land,Third Party Payments,430100,Rendered by Private Contractors,01/03/2023,4106229-11979-02,"5,087.15",OPUS BUILDING SERVICES LTD.
Neighbourhoods and Climate Change,Environmental Services,Third Party Payments,430100,Rendered by Private Contractors,01/03/2023,4106239-TYN33879,921.77,PIRTEK TYNE & WEAR.
Resources BK0010,Digital Services,Supplies and Services,304245,Equipment and Materials,01/03/2023,4106242-2452554,510.20,PREMIER PAPER GROUP LTD.
Neighbourhoods and Climate Change,Highways,Third Party Payments,430100,Rendered by Private Contractors,01/03/2023,4106244-1334,"1,197.60",PRM FABRICATIONS LTD.
Regeneration Economy and Growth,Transport and Contracted Services,Third Party Payments,430108,Rendered by Private Contractors,01/03/2023,4106252-265023,"4,366.20",RITHERDON & CO LTD.
Regeneration Economy and Growth,Business Durham CL0850,Supplies and Services,338078,Services,01/03/2023,4106262-17480,"2,824.08",SAFEGUARD SECURITY (NE) LTD.
Children and Young Peoples Services,Head of Childrens Social Care,Supplies and Services,372009,Subscriptions E372,01/03/2023,4106269-12731,"1,796.00",SIGNIS LTD.
Resources BK0010,Digital Services,Supplies and Services,342053,Computers and Communications,01/03/2023,4106272-INVUK739718,"1,582.60",SOFTCAT PLC.
Children and Young Peoples Services,Head of Education and Skills,Transport,230007,Contract Hire,01/03/2023,4106279-6-7303,658.19,STANLEY TRAVEL (NORTH EAST) LTD.
Children and Young Peoples Services,Head of Education and Skills,Transport,230009,Contract Hire,01/03/2023,4106279-6-7323,510.18,STANLEY TRAVEL (NORTH EAST) LTD.
Children and Young Peoples Services,Head of Education and Skills,Transport,230009,Contract Hire,01/03/2023,4106279-6-7370,577.50,STANLEY TRAVEL (NORTH EAST) LTD.
Regeneration Economy and Growth,Corporate Property and Land,Third Party Payments,430100,Rendered by Private Contractors,01/03/2023,4106281-18928,"1,860.00",STEADFAST SECURITY SOLUTIONS LTD.
Regeneration Economy and Growth,Corporate Property and Land,Third Party Payments,430100,Rendered by Private Contractors,01/03/2023,4106281-18976,"1,860.00",STEADFAST SECURITY SOLUTIONS LTD.
Children and Young Peoples Services,Head of Education and Skills,Supplies and Services,336005,Advertising E336,01/03/2023,4106284-INV-6495,"4,724.00",STEVE DAVIDSON ADVERTISING LTD T/A SD ADVERTISING LTD.
Regeneration Economy and Growth,Planning & Housing,Supplies and Services,338066,Services,01/03/2023,4106287-A3053-01,779.70,STRUCTURAL & CIVIL CONSULTANTS LTD.
Regeneration Economy and Growth,Corporate Property and Land,Supplies and Services,304221,Equipment and Materials,01/03/2023,4106290-948315,549.90,T CROSSLING & CO LTD.
Neighbourhoods and Climate Change,Highways,Stock A926,926900,Stock in hand-Inventory system,01/03/2023,4106292-9046466369,518.75,TARMAC TRADING LTD.
Neighbourhoods and Climate Change,Highways,Supplies and Services,338027,Services,01/03/2023,4106294-10813,"31,387.91",TAZIKER INDUSTRIAL LTD.
Neighbourhoods and Climate Change,Environmental Services,Third Party Payments,430100,Rendered by Private Contractors,01/03/2023,4106297-7814..,"1,495.00",TEAM VALLEY TRANSMISSIONS LTD.
Neighbourhoods and Climate Change,Highways,Supplies and Services,304221,Equipment and Materials,01/03/2023,4106304-39485,"1,650.00",TODDS HIGHWAY MAINTENANCE LTD.
Neighbourhoods and Climate Change,Highways,Supplies and Services,304221,Equipment and Materials,01/03/2023,4106311-241893,857.55,TYNEDALE ROADSTONE LTD.
Neighbourhoods and Climate Change,Highways,Supplies and Services,304221,Equipment and Materials,01/03/2023,4106311-241896,839.67,TYNEDALE ROADSTONE LTD.
Neighbourhoods and Climate Change,Highways,Supplies and Services,304221,Equipment and Materials,01/03/2023,4106311-242071,"1,019.60",TYNEDALE ROADSTONE LTD.
Neighbourhoods and Climate Change,Highways,Supplies and Services,304221,Equipment and Materials,01/03/2023,4106311-242077,"1,660.58",TYNEDALE ROADSTONE LTD.
Neighbourhoods and Climate Change,Highways,Supplies and Services,304221,Equipment and Materials,01/03/2023,4106311-242343,"3,317.65",TYNEDALE ROADSTONE LTD.
Neighbourhoods and Climate Change,Highways,Supplies and Services,304221,Equipment and Materials,01/03/2023,4106311-242344,"3,187.22",TYNEDALE ROADSTONE LTD.
Neighbourhoods and Climate Change,Highways,Supplies and Services,304221,Equipment and Materials,01/03/2023,4106311-242347,850.10,TYNEDALE ROADSTONE LTD.
Neighbourhoods and Climate Change,Highways,Supplies and Services,304221,Equipment and Materials,01/03/2023,4106311-242348,"1,595.10",TYNEDALE ROADSTONE LTD.
Neighbourhoods and Climate Change,Highways,Supplies and Services,304221,Equipment and Materials,01/03/2023,4106311-242354,"1,598.08",TYNEDALE ROADSTONE LTD.
Neighbourhoods and Climate Change,Highways,Supplies and Services,304221,Equipment and Materials,01/03/2023,4106311-242358,"1,593.61",TYNEDALE ROADSTONE LTD.
Neighbourhoods and Climate Change,Highways,Supplies and Services,304221,Equipment and Materials,01/03/2023,4106311-242505,"1,587.65",TYNEDALE ROADSTONE LTD.
Neighbourhoods and Climate Change,Highways,Supplies and Services,304221,Equipment and Materials,01/03/2023,4106311-242649,"1,593.61",TYNEDALE ROADSTONE LTD.
Neighbourhoods and Climate Change,Highways,Supplies and Services,304221,Equipment and Materials,01/03/2023,4106311-242651,847.12,TYNEDALE ROADSTONE LTD.
Neighbourhoods and Climate Change,Highways,Supplies and Services,304221,Equipment and Materials,01/03/2023,4106311-242652,881.39,TYNEDALE ROADSTONE LTD.
Neighbourhoods and Climate Change,Highways,Supplies and Services,304221,Equipment and Materials,01/03/2023,4106311-242658,"1,598.08",TYNEDALE ROADSTONE LTD.
Neighbourhoods and Climate Change,Highways,Supplies and Services,304221,Equipment and Materials,01/03/2023,4106311-242818,"1,675.01",TYNEDALE ROADSTONE LTD.
Neighbourhoods and Climate Change,Highways,Supplies and Services,304221,Equipment and Materials,01/03/2023,4106311-242819,808.38,TYNEDALE ROADSTONE LTD.
Neighbourhoods and Climate Change,Highways,Supplies and Services,304221,Equipment and Materials,01/03/2023,4106311-242820,"1,593.61",TYNEDALE ROADSTONE LTD.
Resources BK0010,Digital Services,Supplies and Services,342033,Computers and Communications,01/03/2023,4106313-R-72629,"1,080.60",UPNORTH ENGINEERING SERVICES LTD.
Neighbourhoods and Climate Change,Environmental Services,Supplies and Services,338078,Services,01/03/2023,4106318-INV-55121,"1,907.20",VISTECH SERVICES LTD.
Regeneration Economy and Growth,Corporate Property and Land,Premises,150015,Apportioned Exps of Operational Blds,01/03/2023,4106323-230007003,746.46,WERNICK HIRE LTD.
Neighbourhoods and Climate Change,Highways,Premises,150015,Apportioned Exps of Operational Blds,01/03/2023,4106323-230007008,651.20,WERNICK HIRE LTD.
Neighbourhoods and Climate Change,Environmental Services,Premises,150015,Apportioned Exps of Operational Blds,01/03/2023,4106323-230007062,651.20,WERNICK HIRE LTD.
Neighbourhoods and Climate Change,Environmental Services,Premises,150015,Apportioned Exps of Operational Blds,01/03/2023,4106323-230007063,651.20,WERNICK HIRE LTD.
Neighbourhoods and Climate Change,Environmental Services,Premises,150015,Apportioned Exps of Operational Blds,01/03/2023,4106323-230007064,651.20,WERNICK HIRE LTD.
Neighbourhoods and Climate Change,Environmental Services,Premises,150015,Apportioned Exps of Operational Blds,01/03/2023,4106323-230007065,651.20,WERNICK HIRE LTD.
Regeneration Economy and Growth,Corporate Property and Land,Premises,150015,Apportioned Exps of Operational Blds,01/03/2023,4106323-230007089,686.40,WERNICK HIRE LTD.
Neighbourhoods and Climate Change,Environmental Services,Transport,215005,Running Costs of Vehicles,01/03/2023,4106329-1106100,"19,704.00",YOUR NRG LTD.
Neighbourhoods and Climate Change,Environmental Services,Transport,215005,Running Costs of Vehicles,01/03/2023,4106329-1106104,"2,507.00",YOUR NRG LTD.
Neighbourhoods and Climate Change,Environmental Services,Transport,215005,Running Costs of Vehicles,01/03/2023,4106329-1106177,"14,804.47",YOUR NRG LTD.
Resources BK0010,HR & Employee Services,Supplies and Services,352001,Conference Expenses,02/03/2023,4106434-1312,850.00,REDACTED - PAYMENT TO INDIVIDUAL
Neighbourhoods and Climate Change,Environmental Services,Supplies and Services,384700,Miscellaneous Expenses,02/03/2023,4106445-RES-02-2023-588,"1,100.00",REDACTED - PAYMENT TO INDIVIDUAL
Resources BK0010,Digital Services,Supplies and Services,344135,Telephones,02/03/2023,4106336-SI-2393,732.00,ADVANTAGE VOICE LTD.
Regeneration Economy and Growth,Culture Sport and Tourism,Supplies and Services,384199,Miscellaneous Expenses,02/03/2023,4106408-137315506,560.00,DURHAM MARRIOTT ROYAL COUNTY HOTEL.
Regeneration Economy and Growth,Corporate Property and Land,Third Party Payments,430100,Rendered by Private Contractors,02/03/2023,4106456-7776064,740.00,KONE PLC.
Regeneration Economy and Growth,Culture Sport and Tourism,Supplies and Services,384199,Miscellaneous Expenses,02/03/2023,4106509-4100800869,"1,925.00",NORTH EAST ENGLAND BLUE BADGE GUIDE.
Regeneration Economy and Growth,Economic Development Level C,Supplies and Services,384700,Miscellaneous Expenses,02/03/2023,4106542-RES-02-2023-589,750.00,RIVERVIEW KITCHEN 56 LTD.
Regeneration Economy and Growth,Culture Sport and Tourism,Supplies and Services,384199,Miscellaneous Expenses,02/03/2023,4106342-00164,"3,000.00",REDACTED - PAYMENT TO INDIVIDUAL
Children and Young Peoples Services,Head of Childrens Social Care,Supplies and Services,338045,Services,02/03/2023,4106472-1199874,625.00,REDACTED - PAYMENT TO INDIVIDUAL
Children and Young Peoples Services,Head of Childrens Social Care,Supplies and Services,338045,Services,02/03/2023,4106472-60/NML,"3,350.00",REDACTED - PAYMENT TO INDIVIDUAL
Children and Young Peoples Services,Head of Childrens Social Care,Supplies and Services,338045,Services,02/03/2023,4106472-68/NML,"1,562.50",REDACTED - PAYMENT TO INDIVIDUAL
Neighbourhoods and Climate Change,Highways,Third Party Payments,430128,Rendered by Private Contractors,02/03/2023,4106524-20027,855.00,REDACTED - PAYMENT TO INDIVIDUAL
Neighbourhoods and Climate Change,Environmental Services,Supplies and Services,304221,Equipment and Materials,02/03/2023,4106337-60287041,"1,749.72",AEBI SCHMIDT UK LTD.
Neighbourhoods and Climate Change,Highways,Supplies and Services,304221,Equipment and Materials,02/03/2023,4106339-34129594,"6,821.37",AGGREGATE INDUSTRIES UK LTD.
Children and Young Peoples Services,Head of Education and Skills,Transfer Payments,510034,School Children,02/03/2023,4106346-CLAPPSPRINGFEB23,"1,145.00",ANNANHILL PRIMARY SCHOOL FUND.
Regeneration Economy and Growth,Corporate Property and Land,Third Party Payments,430100,Rendered by Private Contractors,02/03/2023,4106350-5635,"3,392.00",APEX ROOFING SPECIALISTS LTD.
Children and Young Peoples Services,Head of Childrens Social Care,Third Party Payments,425041,Rendered by Voluntary Organisations,02/03/2023,4106351-ARC2223-578,"1,878.00",ARC ADOPTION NORTH EAST.
Children and Young Peoples Services,Head of Childrens Social Care,Third Party Payments,425041,Rendered by Voluntary Organisations,02/03/2023,4106351-ARC2223-591,939.00,ARC ADOPTION NORTH EAST.
Neighbourhoods and Climate Change,Environmental Services,Supplies and Services,338066,Services,02/03/2023,4106353-199,"1,000.00",ATEVENTS.
Adult and Health Services,Commissioning inc Supporting People,Third Party Payments,442002,Supporting People E442,02/03/2023,4106357-RES-02-2023-587,"15,932.00",BID SERVICES.
Children and Young Peoples Services,Head of Education and Skills,Transfer Payments,510034,School Children,02/03/2023,4106358-CLANTPSPRINGFEB23,564.00,BISHOP AUCKLAND COLLEGE.
Children and Young Peoples Services,Head of Education and Skills,Transfer Payments,510034,School Children,02/03/2023,4106359-CLAPPSPRINGFEB23,"7,180.60",BISHOP CHADWICK CATHOLIC EDUCATION TRUST (NSCET).
Regeneration Economy and Growth,Economic Development Level C,Supplies and Services,338066,Services,02/03/2023,4106364-SIN040794,"28,028.00",BLOOM PROCUREMENT SERVICES LTD (FORMERLY NEPRO LTD).
Regeneration Economy and Growth,Corporate Property and Land,Third Party Payments,430100,Rendered by Private Contractors,02/03/2023,4106371-10797,"1,158.23",CATHEDRAL LOCK & SAFE SERVICES LTD.
Regeneration Economy and Growth,Corporate Property and Land,Third Party Payments,430100,Rendered by Private Contractors,02/03/2023,4106372-739,"3,370.68",CEILINGS DIRECT LTD.
Regeneration Economy and Growth,Corporate Property and Land,Third Party Payments,430100,Rendered by Private Contractors,02/03/2023,4106372-740,"2,064.92",CEILINGS DIRECT LTD.
Neighbourhoods and Climate Change,Highways,Supplies and Services,304358,Equipment and Materials,02/03/2023,4106373-109493,625.50,CG ROBINSON & SONS LTD.
Neighbourhoods and Climate Change,Highways,Supplies and Services,304358,Equipment and Materials,02/03/2023,4106373-109853,556.00,CG ROBINSON & SONS LTD.
Regeneration Economy and Growth,Culture Sport and Tourism,Supplies and Services,384199,Miscellaneous Expenses,02/03/2023,4106374-INV-0736,684.92,CHANNELL EVENTS LTD.
Neighbourhoods and Climate Change,Environmental Services,Transport,215012,Running Costs of Vehicles,02/03/2023,4106376-197209,"1,228.50",CHEVIN FLEET SOLUTIONS LTD.
Children and Young Peoples Services,Head of Education and Skills,Supplies and Services,338035,Services,02/03/2023,4106380-806233992,"1,420.00",CITY & GUILDS OF LONDON INSTITUTE.
Regeneration Economy and Growth,Corporate Property and Land,Supplies and Services,304221,Equipment and Materials,02/03/2023,4106382-2852ABS956,662.96,CITY PLUMBING SUPPLIES HOLDINGS LTD.
Neighbourhoods and Climate Change,Highways,Stock A926,926900,Stock in hand-Inventory system,02/03/2023,4106385-23000RX23001898,"2,008.80",COLAS LTD.
Adult and Health Services,Head of Adults,Third Party Payments,479102,Purchase of Care,02/03/2023,4106388-118,"4,696.00",COUNT CARE SERVICES LTD.
Adult and Health Services,Head of Adults,Third Party Payments,479102,Purchase of Care,02/03/2023,4106388-119,"4,696.00",COUNT CARE SERVICES LTD.
Adult and Health Services,Public Health CC0450,Third Party Payments,460802,Contract Payments,02/03/2023,4106389-3910019512,"8,595.50",COUNTY DURHAM & DARLINGTON NHS FOUNDATION TRUST (CDDFT).
Adult and Health Services,Public Health CC0450,Third Party Payments,460803,Contract Payments,02/03/2023,4106389-3910021195,"30,830.00",COUNTY DURHAM & DARLINGTON NHS FOUNDATION TRUST (CDDFT).
Children and Young Peoples Services,Head of Early Help Inclusion & Vulnerable Children.,Supplies and Services,384199,Miscellaneous Expenses,02/03/2023,4106390-THK072,"1,571.00",COUNTY DURHAM FURNITURE HELP SCHEME (CDFHS).
Resources BK0010,Digital Services,Stock A926,926900,Stock in hand-Inventory system,02/03/2023,4106391-3663391,578.00,CPC (ELECTRICAL WHOLESALERS).
Neighbourhoods and Climate Change,Highways,Third Party Payments,430127,Rendered by Private Contractors,02/03/2023,4106395-INV-0237,665.00,D & L HOPPS.
Adult and Health Services,Head of Adults,Third Party Payments,472101,Purchase of Care,02/03/2023,4106397-ASCDISCHARGEFUND1/126,"30,350.00",DALE CARE LTD.
Adult and Health Services,Head of Adults,Third Party Payments,478151,Purchase of Care,02/03/2023,4106400-INV-1406,"1,830.69",DEACONSTAR LTD.
Adult and Health Services,Head of Adults,Third Party Payments,478151,Purchase of Care,02/03/2023,4106400-INV-1407,"5,373.15",DEACONSTAR LTD.
Resources BK0010,Legal & Democratic Services,Supplies and Services,338042,Services,02/03/2023,4106401-374464/INVSP22,550.00,DERE STREET BARRISTERS.
Resources BK0010,Legal & Democratic Services,Supplies and Services,338042,Services,02/03/2023,4106401-375683/INVRC117,950.00,DERE STREET BARRISTERS.
Resources BK0010,Legal & Democratic Services,Supplies and Services,338042,Services,02/03/2023,4106401-378712/INVLDA22,650.00,DERE STREET BARRISTERS.
Adult and Health Services,Commissioning inc Supporting People,Third Party Payments,479111,Purchase of Care,02/03/2023,4106407-324,"10,581.00",DURHAM ACTION ON SINGLE HOUSING LTD.
Regeneration Economy and Growth,Corporate Property and Land,Third Party Payments,430100,Rendered by Private Contractors,02/03/2023,4106409-423,"5,000.00",ECO HVAC SERVICES LIMITED.
Children and Young Peoples Services,Head of Education and Skills,Transfer Payments,510034,School Children,02/03/2023,4106410-CLAPPSPRINGFEB23,"1,200.00",EDEN LEARNING TRUST T/A WOODHAM ACADEMY.
Regeneration Economy and Growth,Corporate Property and Land,Supplies and Services,304221,Equipment and Materials,02/03/2023,4106412-059-314018,"1,125.88",EDMUNDSON ELECTRICAL LTD.
Regeneration Economy and Growth,Corporate Property and Land,Supplies and Services,304221,Equipment and Materials,02/03/2023,4106412-059-314092,698.25,EDMUNDSON ELECTRICAL LTD.
Neighbourhoods and Climate Change,Environmental Services,Supplies and Services,338066,Services,02/03/2023,4106415-1014-24681,"2,200.00",ENERGY & COMPLIANCE TECHNOLOGY LTD T/A COMPLIANCE365.
Neighbourhoods and Climate Change,Environmental Services,Transport,230005,Contract Hire,02/03/2023,4106416-8195474,"1,372.37",ENTERPRISE FLEX-E-RENT T/A BURNT TREE GROUP LTD.
Neighbourhoods and Climate Change,Environmental Services,Transport,230005,Contract Hire,02/03/2023,4106416-8195479,"1,330.05",ENTERPRISE FLEX-E-RENT T/A BURNT TREE GROUP LTD.
Neighbourhoods and Climate Change,Environmental Services,Transport,230005,Contract Hire,02/03/2023,4106416-8195580,"1,222.70",ENTERPRISE FLEX-E-RENT T/A BURNT TREE GROUP LTD.
Neighbourhoods and Climate Change,Environmental Services,Transport,230005,Contract Hire,02/03/2023,4106416-8195605,716.10,ENTERPRISE FLEX-E-RENT T/A BURNT TREE GROUP LTD.
Neighbourhoods and Climate Change,Environmental Services,Transport,230005,Contract Hire,02/03/2023,4106416-8195612,649.55,ENTERPRISE FLEX-E-RENT T/A BURNT TREE GROUP LTD.
Neighbourhoods and Climate Change,Environmental Services,Transport,230005,Contract Hire,02/03/2023,4106416-8195620,669.60,ENTERPRISE FLEX-E-RENT T/A BURNT TREE GROUP LTD.
Neighbourhoods and Climate Change,Environmental Services,Transport,230005,Contract Hire,02/03/2023,4106416-8195627,"1,426.64",ENTERPRISE FLEX-E-RENT T/A BURNT TREE GROUP LTD.
Children and Young Peoples Services,Head of Education and Skills,Transfer Payments,510034,School Children,02/03/2023,4106418-CLAPPSPRINGFEB23,"1,500.00",EXCEL ACADEMY PARTNERSHIP T/A FRAMWELLGATE SCHOOL DURHAM.
Regeneration Economy and Growth,Planning & Housing,Supplies and Services,384199,Miscellaneous Expenses,02/03/2023,4106424-220213209,"80,091.12",GATESHEAD COUNCIL.
Children and Young Peoples Services,Head of Education and Skills,Transfer Payments,510034,School Children,02/03/2023,4106424-CLAPPSPRINGFEB23,"1,200.00",GATESHEAD COUNCIL.
Children and Young Peoples Services,Head of Early Help Inclusion & Vulnerable Children.,Premises,145023,Cleaning and Domestic Supplies,02/03/2023,4106426-06/211734,651.40,GREENHAM TRADING LTD.
Children and Young Peoples Services,Head of Education and Skills,Transfer Payments,510034,School Children,02/03/2023,4106433-CLAPPSPRINGFEB23,600.00,HURWORTH ACADEMY.
Neighbourhoods and Climate Change,Highways,Third Party Payments,430127,Rendered by Private Contractors,02/03/2023,4106436-2024/2022,"1,295.00",J & JG GILL & SONS LTD.
Regeneration Economy and Growth,Transport and Contracted Services,Construction work A908,908105,Construction work,02/03/2023,4106438-27434,"1,485.45",JACK COUPE & SONS LTD T/A COUPE LINE.
Neighbourhoods and Climate Change,Highways,Supplies and Services,304358,Equipment and Materials,02/03/2023,4106443-32359,"1,106.30",JOHN R BUTTERFIELD LTD.
Neighbourhoods and Climate Change,Highways,Supplies and Services,304358,Equipment and Materials,02/03/2023,4106443-32370,"1,106.30",JOHN R BUTTERFIELD LTD.
Neighbourhoods and Climate Change,Highways,Supplies and Services,304358,Equipment and Materials,02/03/2023,4106443-32374,"1,269.50",JOHN R BUTTERFIELD LTD.
Neighbourhoods and Climate Change,Highways,Supplies and Services,304358,Equipment and Materials,02/03/2023,4106443-32380,"1,779.05",JOHN R BUTTERFIELD LTD.
Neighbourhoods and Climate Change,Highways,Supplies and Services,304358,Equipment and Materials,02/03/2023,4106443-32381,"1,422.50",JOHN R BUTTERFIELD LTD.
Neighbourhoods and Climate Change,Highways,Supplies and Services,304358,Equipment and Materials,02/03/2023,4106443-32382,"1,269.50",JOHN R BUTTERFIELD LTD.
Neighbourhoods and Climate Change,Highways,Supplies and Services,304358,Equipment and Materials,02/03/2023,4106443-32390,627.90,JOHN R BUTTERFIELD LTD.
Neighbourhoods and Climate Change,Highways,Supplies and Services,304358,Equipment and Materials,02/03/2023,4106443-32396,701.75,JOHN R BUTTERFIELD LTD.
Neighbourhoods and Climate Change,Highways,Supplies and Services,304221,Equipment and Materials,02/03/2023,4106449-0303/00813470,"3,010.43",JT DOVE LTD.
Neighbourhoods and Climate Change,Environmental Services,Supplies and Services,304999,Equipment and Materials,02/03/2023,4106455-SI02-0384581,614.40,KILLGERM CHEMICALS LTD.
Regeneration Economy and Growth,Culture Sport and Tourism,Supplies and Services,304337,Equipment and Materials,02/03/2023,4106469-4236109303,920.80,MARES SPA.
Regeneration Economy and Growth,Culture Sport and Tourism,Supplies and Services,304337,Equipment and Materials,02/03/2023,4106469-4236109320,"3,197.28",MARES SPA.
Children and Young Peoples Services,Head of Education and Skills,Transfer Payments,510034,School Children,02/03/2023,4106471-CLAPPSPRINGFEB23,600.00,MELROSE LEARNING TRUST.
Regeneration Economy and Growth,Corporate Property and Land,Third Party Payments,430100,Rendered by Private Contractors,02/03/2023,4106474-2227,"4,857.00",MITREPOINT LTD T/A ROOFCLAD SYSTEMS.
Neighbourhoods and Climate Change,Highways,Supplies and Services,304358,Equipment and Materials,02/03/2023,4106501-NC/221/BW,650.00,NEDCO CONTRACTS (NE) LTD.
Neighbourhoods and Climate Change,Highways,Supplies and Services,304358,Equipment and Materials,02/03/2023,4106501-NC/222/BW,"1,130.00",NEDCO CONTRACTS (NE) LTD.
Neighbourhoods and Climate Change,Highways,Supplies and Services,338099,Services,02/03/2023,4106503-1314152,"19,080.91",NETWORK RAIL.
Children and Young Peoples Services,Head of Education and Skills,Transfer Payments,510034,School Children,02/03/2023,4106504-CLAPPSPRINGFEB23,600.00,NEW COLLEGE ACADEMIES TRUST - CONSETT ACADEMY.
Neighbourhoods and Climate Change,Environmental Services,Supplies and Services,304221,Equipment and Materials,02/03/2023,4106505-065785,"1,774.82",NEW ROW FARM NURSERIES.
Regeneration Economy and Growth,Transport and Contracted Services,Supplies and Services,304999,Equipment and Materials,02/03/2023,4106512-23018,725.00,NORTH EAST TRAFFIC DATA COLLECTION LTD (NETDC).
Children and Young Peoples Services,Head of Education and Skills,Transfer Payments,510034,School Children,02/03/2023,4106513-CLAPPSPRINGFEB23,600.00,NORTHERN EDUCATION TRUST T/A  DYKE HOUSE SPORTS & TECHNOLOGY COLLEGE.
Children and Young Peoples Services,Head of Early Help Inclusion & Vulnerable Children.,Third Party Payments,410037,Rendered by Other Local Authorities,02/03/2023,4106514-INV-6177,"1,060.29",NUDGE EDUCATION LTD.
Regeneration Economy and Growth,Corporate Property and Land,Third Party Payments,430100,Rendered by Private Contractors,02/03/2023,4106515-G0752216,655.00,ORBIS PROTECT LTD.
Neighbourhoods and Climate Change,Highways,Stock A926,926900,Stock in hand-Inventory system,02/03/2023,4106519-XL297030,"3,987.50",PARK ELECTRICAL DISTRIBUTORS LTD.
Adult and Health Services,Head of Adults,Third Party Payments,472101,Purchase of Care,02/03/2023,4106523-ASCDISCHARGEFUND1/131,"12,000.00",PERFECT CARE LTD.
Adult and Health Services,Head of Adults,Supplies and Services,384616,Miscellaneous Expenses,02/03/2023,4106530-3995,"19,342.40",POSITIVE INDIVIDUAL PROACTIVE SUPPORT LTD.
Adult and Health Services,Head of Adults,Supplies and Services,338089,Services,02/03/2023,4106533-5518,"1,020.00",PRICE TRAINING LTD.
Adult and Health Services,Head of Adults,Supplies and Services,338089,Services,02/03/2023,4106533-5535,"1,020.00",PRICE TRAINING LTD.
Neighbourhoods and Climate Change,Highways,Third Party Payments,430100,Rendered by Private Contractors,02/03/2023,4106537-14773,"23,332.74",QUANTUM POWER CONNECTIONS LTD.
Neighbourhoods and Climate Change,Highways,Third Party Payments,430100,Rendered by Private Contractors,02/03/2023,4106537-14775,"2,041.60",QUANTUM POWER CONNECTIONS LTD.
Neighbourhoods and Climate Change,Environmental Services,Supplies and Services,384199,Miscellaneous Expenses,02/03/2023,4106539-0000060041,697.50,RA DALTON LTD.
Resources BK0010,Digital Services,Supplies and Services,342051,Computers and Communications,02/03/2023,4106551-INVUK753053,"3,762.99",SOFTCAT PLC.
Children and Young Peoples Services,Head of Education and Skills,Transfer Payments,510034,School Children,02/03/2023,4106552-CLAPPSPRINGFEB23,600.00,SOUTH TYNESIDE COUNCIL.
Neighbourhoods and Climate Change,Environmental Services,Supplies and Services,304259,Equipment and Materials,02/03/2023,4106555-SI080477,817.31,STANNERS EQUIPMENT LTD.
Regeneration Economy and Growth,Corporate Property and Land,Supplies and Services,304221,Equipment and Materials,02/03/2023,4106559-949048,640.39,T CROSSLING & CO LTD.
Regeneration Economy and Growth,Business Durham CL0850,Supplies and Services,344033,Telephones,02/03/2023,4106566-005286847,952.21,THE PHONE CO-OP.
Neighbourhoods and Climate Change,Environmental Services,Premises,108099,Service Repairs and Maintenance,02/03/2023,4106569-39482,"1,374.80",TODDS HIGHWAY MAINTENANCE LTD.
Resources BK0010,Digital Services,Supplies and Services,304303,Equipment and Materials,02/03/2023,4106570-140952,623.05,TP ELECTRICAL SUPPLIES & FIXINGS LTD.
Neighbourhoods and Climate Change,Highways,Supplies and Services,304221,Equipment and Materials,02/03/2023,4106573-242822,"2,420.85",TYNEDALE ROADSTONE LTD.
Neighbourhoods and Climate Change,Highways,Supplies and Services,304221,Equipment and Materials,02/03/2023,4106573-242823,893.31,TYNEDALE ROADSTONE LTD.
Neighbourhoods and Climate Change,Highways,Supplies and Services,304221,Equipment and Materials,02/03/2023,4106573-242824,"1,587.65",TYNEDALE ROADSTONE LTD.
Neighbourhoods and Climate Change,Highways,Supplies and Services,304221,Equipment and Materials,02/03/2023,4106573-242825,"1,320.66",TYNEDALE ROADSTONE LTD.
Neighbourhoods and Climate Change,Highways,Supplies and Services,304358,Equipment and Materials,02/03/2023,4106576-51577,"1,895.00",W MARLEY AGRICULTURAL CONTRACTORS LTD.
Regeneration Economy and Growth,Corporate Property and Land,Third Party Payments,430100,Rendered by Private Contractors,02/03/2023,4106577-8123,"1,188.80",WARREN (ELECTRICAL) LTD.
Regeneration Economy and Growth,Corporate Property and Land,Third Party Payments,430100,Rendered by Private Contractors,02/03/2023,4106577-8125,586.32,WARREN (ELECTRICAL) LTD.
Regeneration Economy and Growth,Corporate Property and Land,Third Party Payments,430100,Rendered by Private Contractors,02/03/2023,4106577-8129,735.00,WARREN (ELECTRICAL) LTD.
Regeneration Economy and Growth,Corporate Property and Land,Supplies and Services,324117,Provisions E324,02/03/2023,4106578-CD-223430608,"3,301.44",WATERLOGIC GB LTD.*
Children and Young Peoples Services,Head of Childrens Social Care,Third Party Payments,486020,Service level agreements E486,02/03/2023,4106579-INV-5207,"1,500.00",WE CARE RECRUITMENT SOLUTIONS LTD.
Children and Young Peoples Services,Head of Childrens Social Care,Third Party Payments,486020,Service level agreements E486,02/03/2023,4106579-INV-5224,"1,350.00",WE CARE RECRUITMENT SOLUTIONS LTD.
Children and Young Peoples Services,Head of Childrens Social Care,Third Party Payments,486020,Service level agreements E486,02/03/2023,4106579-INV-5229,"1,425.00",WE CARE RECRUITMENT SOLUTIONS LTD.
Children and Young Peoples Services,Head of Childrens Social Care,Third Party Payments,486020,Service level agreements E486,02/03/2023,4106579-INV-5232,900.00,WE CARE RECRUITMENT SOLUTIONS LTD.
Children and Young Peoples Services,Head of Childrens Social Care,Third Party Payments,486020,Service level agreements E486,02/03/2023,4106579-INV-5259,600.00,WE CARE RECRUITMENT SOLUTIONS LTD.
Children and Young Peoples Services,Head of Childrens Social Care,Third Party Payments,486020,Service level agreements E486,02/03/2023,4106579-INV-5280,"1,050.00",WE CARE RECRUITMENT SOLUTIONS LTD.
Children and Young Peoples Services,Head of Childrens Social Care,Third Party Payments,486020,Service level agreements E486,02/03/2023,4106579-INV-5283,500.00,WE CARE RECRUITMENT SOLUTIONS LTD.
Children and Young Peoples Services,Head of Childrens Social Care,Third Party Payments,486020,Service level agreements E486,02/03/2023,4106579-INV-5284,700.00,WE CARE RECRUITMENT SOLUTIONS LTD.
Children and Young Peoples Services,Head of Childrens Social Care,Third Party Payments,486020,Service level agreements E486,02/03/2023,4106579-INV-5288,900.00,WE CARE RECRUITMENT SOLUTIONS LTD.
Children and Young Peoples Services,Head of Childrens Social Care,Third Party Payments,486020,Service level agreements E486,02/03/2023,4106579-INV-5293,600.00,WE CARE RECRUITMENT SOLUTIONS LTD.
Children and Young Peoples Services,Head of Childrens Social Care,Third Party Payments,486020,Service level agreements E486,02/03/2023,4106579-INV-5341,900.00,WE CARE RECRUITMENT SOLUTIONS LTD.
Children and Young Peoples Services,Head of Childrens Social Care,Third Party Payments,486020,Service level agreements E486,02/03/2023,4106579-INV-5409,"1,750.00",WE CARE RECRUITMENT SOLUTIONS LTD.
Children and Young Peoples Services,Head of Childrens Social Care,Third Party Payments,486020,Service level agreements E486,02/03/2023,4106579-INV-5420,"1,500.00",WE CARE RECRUITMENT SOLUTIONS LTD.
Children and Young Peoples Services,Head of Childrens Social Care,Third Party Payments,486020,Service level agreements E486,02/03/2023,4106579-INV-5456,600.00,WE CARE RECRUITMENT SOLUTIONS LTD.
Children and Young Peoples Services,Head of Childrens Social Care,Third Party Payments,486020,Service level agreements E486,02/03/2023,4106579-INV-5481,"1,500.00",WE CARE RECRUITMENT SOLUTIONS LTD.
Children and Young Peoples Services,Head of Childrens Social Care,Third Party Payments,486020,Service level agreements E486,02/03/2023,4106579-INV-5485,"1,750.00",WE CARE RECRUITMENT SOLUTIONS LTD.
Children and Young Peoples Services,Head of Childrens Social Care,Third Party Payments,440046,Other third party payments E440,02/03/2023,4106579-INV-5514,"2,467.70",WE CARE RECRUITMENT SOLUTIONS LTD.
Children and Young Peoples Services,Head of Childrens Social Care,Third Party Payments,486020,Service level agreements E486,02/03/2023,4106579-INV-5552,"1,550.00",WE CARE RECRUITMENT SOLUTIONS LTD.
Children and Young Peoples Services,Head of Childrens Social Care,Third Party Payments,486020,Service level agreements E486,02/03/2023,4106579-INV-5556,"1,750.00",WE CARE RECRUITMENT SOLUTIONS LTD.
Children and Young Peoples Services,Head of Childrens Social Care,Third Party Payments,486020,Service level agreements E486,02/03/2023,4106579-INV-5601,600.00,WE CARE RECRUITMENT SOLUTIONS LTD.
Neighbourhoods and Climate Change,Environmental Services,Supplies and Services,304259,Equipment and Materials,02/03/2023,4106581-1456,858.00,WOODCRAFT (UK) LTD.
Neighbourhoods and Climate Change,Highways,Supplies and Services,304358,Equipment and Materials,02/03/2023,4106583-9236,"1,012.00",YOULL CONSTRUCTION LTD.
Neighbourhoods and Climate Change,Highways,Stock A926,926900,Stock in hand-Inventory system,02/03/2023,4106584-1099640,600.43,YOUR NRG LTD.
Neighbourhoods and Climate Change,Highways,Stock A926,926900,Stock in hand-Inventory system,02/03/2023,4106585-145512954,"5,980.00",ZG LIGHTING (UK) LTD.
Neighbourhoods and Climate Change,Environmental Services,Supplies and Services,384700,Miscellaneous Expenses,03/03/2023,4106664-RES-02-2023-591,"2,689.92",REDACTED - PAYMENT TO INDIVIDUAL
Regeneration Economy and Growth,Culture Sport and Tourism,Supplies and Services,384302,Miscellaneous Expenses,03/03/2023,4106697-080223,"1,000.00",REDACTED - PAYMENT TO INDIVIDUAL
Neighbourhoods and Climate Change,Environmental Services,Supplies and Services,384700,Miscellaneous Expenses,03/03/2023,4106856-RES-03-2023-010,"15,236.03",REDACTED - PAYMENT TO INDIVIDUAL
Neighbourhoods and Climate Change,Environmental Services,Supplies and Services,384700,Miscellaneous Expenses,03/03/2023,4106969-RES-02-2023-592,"1,611.20",REDACTED - PAYMENT TO INDIVIDUAL
Regeneration Economy and Growth,Culture Sport and Tourism,Supplies and Services,384199,Miscellaneous Expenses,03/03/2023,4106726-4100814508,"1,500.00",EVEOLUTION CYCLE TRAINING.
Regeneration Economy and Growth,Planning & Housing,Supplies and Services,384999,Miscellaneous Expenses,03/03/2023,4106912-IR1741,"2,813.85",ROBINSONS ESTATE AGENTS.
Children and Young Peoples Services,Head of Education and Skills,Transport,230008,Contract Hire,03/03/2023,4106611-127,"1,226.40",REDACTED - PAYMENT TO INDIVIDUAL
Children and Young Peoples Services,Head of Education and Skills,Transport,230010,Contract Hire,03/03/2023,4106617-B045-FEB23,"2,151.52",REDACTED - PAYMENT TO INDIVIDUAL
Children and Young Peoples Services,Head of Education and Skills,Transport,230008,Contract Hire,03/03/2023,4106617-E055-FEB23,"2,110.65",REDACTED - PAYMENT TO INDIVIDUAL
Children and Young Peoples Services,Head of Education and Skills,Transport,230008,Contract Hire,03/03/2023,4106617-E202-FEB23,"2,070.43",REDACTED - PAYMENT TO INDIVIDUAL
Adult and Health Services,Head of Adults,Transport,230005,Contract Hire,03/03/2023,4106618-6-DW138,672.00,REDACTED - PAYMENT TO INDIVIDUAL
Children and Young Peoples Services,Head of Education and Skills,Transport,230008,Contract Hire,03/03/2023,4106619-01428,"2,625.00",REDACTED - PAYMENT TO INDIVIDUAL
Children and Young Peoples Services,Head of Education and Skills,Transport,230006,Contract Hire,03/03/2023,4106698-INV--0064,"1,820.00",REDACTED - PAYMENT TO INDIVIDUAL
Children and Young Peoples Services,Head of Education and Skills,Transport,230013,Contract Hire,03/03/2023,4106700-FEB23-3492,"2,380.00",REDACTED - PAYMENT TO INDIVIDUAL
Children and Young Peoples Services,Head of Education and Skills,Transport,230008,Contract Hire,03/03/2023,4106701-24,"2,685.60",REDACTED - PAYMENT TO INDIVIDUAL
Resources BK0010,Legal & Democratic Services,Supplies and Services,338105,Services,03/03/2023,4106711-FF718/22/HMC,500.00,REDACTED - PAYMENT TO INDIVIDUAL
Children and Young Peoples Services,Head of Education and Skills,Transport,230008,Contract Hire,03/03/2023,4106784-28/02/23A,"2,104.87",REDACTED - PAYMENT TO INDIVIDUAL
Children and Young Peoples Services,Head of Education and Skills,Transport,230008,Contract Hire,03/03/2023,4106784-28/02/23B,"2,566.80",REDACTED - PAYMENT TO INDIVIDUAL
Children and Young Peoples Services,Head of Education and Skills,Transport,230008,Contract Hire,03/03/2023,4106784-28/02/23G,"2,021.40",REDACTED - PAYMENT TO INDIVIDUAL
Children and Young Peoples Services,Head of Education and Skills,Transport,230008,Contract Hire,03/03/2023,4106784-28/02/23K,"2,336.00",REDACTED - PAYMENT TO INDIVIDUAL
Children and Young Peoples Services,Head of Education and Skills,Transport,230008,Contract Hire,03/03/2023,4106784-280223A,"2,891.70",REDACTED - PAYMENT TO INDIVIDUAL
Children and Young Peoples Services,Head of Education and Skills,Transport,230008,Contract Hire,03/03/2023,4106784-280223G,"2,100.00",REDACTED - PAYMENT TO INDIVIDUAL
Children and Young Peoples Services,Head of Education and Skills,Transport,230008,Contract Hire,03/03/2023,4106784-280223H,"2,383.65",REDACTED - PAYMENT TO INDIVIDUAL
Children and Young Peoples Services,Head of Education and Skills,Transport,230008,Contract Hire,03/03/2023,4106786-170,"1,493.10",REDACTED - PAYMENT TO INDIVIDUAL
Children and Young Peoples Services,Head of Education and Skills,Transport,230008,Contract Hire,03/03/2023,4106786-171,"3,039.60",REDACTED - PAYMENT TO INDIVIDUAL
Children and Young Peoples Services,Head of Education and Skills,Transport,230008,Contract Hire,03/03/2023,4106786-173,"2,274.80",REDACTED - PAYMENT TO INDIVIDUAL
Children and Young Peoples Services,Head of Education and Skills,Transport,230008,Contract Hire,03/03/2023,4106786-175,"1,185.92",REDACTED - PAYMENT TO INDIVIDUAL
Children and Young Peoples Services,Head of Education and Skills,Transport,230016,Contract Hire,03/03/2023,4106786-176,"2,336.00",REDACTED - PAYMENT TO INDIVIDUAL
Children and Young Peoples Services,Head of Education and Skills,Transport,230008,Contract Hire,03/03/2023,4106786-177,"2,307.90",REDACTED - PAYMENT TO INDIVIDUAL
Children and Young Peoples Services,Head of Education and Skills,Transport,230009,Contract Hire,03/03/2023,4106786-178,"2,044.00",REDACTED - PAYMENT TO INDIVIDUAL
Children and Young Peoples Services,Head of Education and Skills,Transport,230008,Contract Hire,03/03/2023,4106786-179,"2,072.00",REDACTED - PAYMENT TO INDIVIDUAL
Children and Young Peoples Services,Head of Education and Skills,Transport,230008,Contract Hire,03/03/2023,4106786-180,"1,924.00",REDACTED - PAYMENT TO INDIVIDUAL
Children and Young Peoples Services,Head of Education and Skills,Transport,230008,Contract Hire,03/03/2023,4106786-181,"3,900.00",REDACTED - PAYMENT TO INDIVIDUAL
Dedicated Schools Grant BG0015,DSG High Needs Block,Transport,230009,Contract Hire,03/03/2023,4106786-184,"4,070.00",REDACTED - PAYMENT TO INDIVIDUAL
Adult and Health Services,Head of Adults,Transport,230005,Contract Hire,03/03/2023,4106787-289,851.25,REDACTED - PAYMENT TO INDIVIDUAL
Children and Young Peoples Services,Head of Education and Skills,Transport,230007,Contract Hire,03/03/2023,4106787-290,725.20,REDACTED - PAYMENT TO INDIVIDUAL
Children and Young Peoples Services,Head of Education and Skills,Transport,230010,Contract Hire,03/03/2023,4106787-291,"1,582.86",REDACTED - PAYMENT TO INDIVIDUAL
Children and Young Peoples Services,Head of Education and Skills,Transport,230007,Contract Hire,03/03/2023,4106797-010223,"1,436.40",REDACTED - PAYMENT TO INDIVIDUAL
Children and Young Peoples Services,Head of Education and Skills,Transport,230008,Contract Hire,03/03/2023,4106812-17-N039,"1,711.92",REDACTED - PAYMENT TO INDIVIDUAL
Neighbourhoods and Climate Change,Highways,Third Party Payments,460224,Contract Payments,03/03/2023,4106817-1374,"2,800.00",REDACTED - PAYMENT TO INDIVIDUAL
Children and Young Peoples Services,Head of Education and Skills,Transport,230006,Contract Hire,03/03/2023,4106826-AT307,"1,664.79",REDACTED - PAYMENT TO INDIVIDUAL
Children and Young Peoples Services,Head of Education and Skills,Transport,230007,Contract Hire,03/03/2023,4106827-10-FEB23,993.90,REDACTED - PAYMENT TO INDIVIDUAL
Children and Young Peoples Services,Head of Education and Skills,Transport,230012,Contract Hire,03/03/2023,4106829-E054-17,"1,743.75",REDACTED - PAYMENT TO INDIVIDUAL
Children and Young Peoples Services,Head of Education and Skills,Transport,230008,Contract Hire,03/03/2023,4106829-E110-4,"1,485.00",REDACTED - PAYMENT TO INDIVIDUAL
Children and Young Peoples Services,Head of Education and Skills,Transport,230008,Contract Hire,03/03/2023,4106830-W174-28,"2,236.13",REDACTED - PAYMENT TO INDIVIDUAL
Children and Young Peoples Services,Head of Education and Skills,Transport,230006,Contract Hire,03/03/2023,4106832-17/F894,"3,210.36",REDACTED - PAYMENT TO INDIVIDUAL
Children and Young Peoples Services,Head of Education and Skills,Transport,230006,Contract Hire,03/03/2023,4106833-PEC26,792.00,REDACTED - PAYMENT TO INDIVIDUAL
Children and Young Peoples Services,Head of Education and Skills,Transport,230007,Contract Hire,03/03/2023,4106835-4536-FEB23,"1,650.00",REDACTED - PAYMENT TO INDIVIDUAL
Children and Young Peoples Services,Head of Education and Skills,Transport,230008,Contract Hire,03/03/2023,4106835-A007-FEB23,"4,155.00",REDACTED - PAYMENT TO INDIVIDUAL
Children and Young Peoples Services,Head of Education and Skills,Transport,230008,Contract Hire,03/03/2023,4106835-A009-FEB23,"2,181.45",REDACTED - PAYMENT TO INDIVIDUAL
Children and Young Peoples Services,Head of Education and Skills,Transport,230006,Contract Hire,03/03/2023,4106835-A204-FEB23,"1,036.00",REDACTED - PAYMENT TO INDIVIDUAL
Children and Young Peoples Services,Head of Education and Skills,Transport,230008,Contract Hire,03/03/2023,4106835-N012-FEB23,"3,978.00",REDACTED - PAYMENT TO INDIVIDUAL
Children and Young Peoples Services,Head of Education and Skills,Transport,230008,Contract Hire,03/03/2023,4106835-N038-FEB23,"2,817.45",REDACTED - PAYMENT TO INDIVIDUAL
Children and Young Peoples Services,Head of Education and Skills,Transport,230008,Contract Hire,03/03/2023,4106835-N077-FEB23,"4,095.00",REDACTED - PAYMENT TO INDIVIDUAL
Children and Young Peoples Services,Head of Education and Skills,Transport,230008,Contract Hire,03/03/2023,4106835-W034-FEB23,"4,800.00",REDACTED - PAYMENT TO INDIVIDUAL
Children and Young Peoples Services,Head of Education and Skills,Transport,230008,Contract Hire,03/03/2023,4106837-3248,"3,519.45",REDACTED - PAYMENT TO INDIVIDUAL
Children and Young Peoples Services,Head of Education and Skills,Transport,230008,Contract Hire,03/03/2023,4106837-3249,"1,968.90",REDACTED - PAYMENT TO INDIVIDUAL
Regeneration Economy and Growth,Culture Sport and Tourism,Supplies and Services,384302,Miscellaneous Expenses,03/03/2023,4106855-217,"1,000.00",REDACTED - PAYMENT TO INDIVIDUAL
Children and Young Peoples Services,Head of Education and Skills,Transport,230006,Contract Hire,03/03/2023,4106931-FEB23-F774,"1,992.96",REDACTED - PAYMENT TO INDIVIDUAL
Children and Young Peoples Services,Head of Education and Skills,Transport,230009,Contract Hire,03/03/2023,4106931-FEB23-G008,779.95,REDACTED - PAYMENT TO INDIVIDUAL
Children and Young Peoples Services,Head of Education and Skills,Transport,230034,Contract Hire,03/03/2023,4106945-003-FEB23,"1,800.00",REDACTED - PAYMENT TO INDIVIDUAL
Adult and Health Services,Head of Adults,Transport,230005,Contract Hire,03/03/2023,4106960-0002447,"3,445.00",REDACTED - PAYMENT TO INDIVIDUAL
Children and Young Peoples Services,Head of Education and Skills,Transport,230008,Contract Hire,03/03/2023,4106960-2445,"2,700.15",REDACTED - PAYMENT TO INDIVIDUAL
Neighbourhoods and Climate Change,Highways,Stock A926,926900,Stock in hand-Inventory system,03/03/2023,4106586-286475,"1,169.00",1ST COVERALL COMPANY LTD.
Children and Young Peoples Services,Head of Education and Skills,Transport,230007,Contract Hire,03/03/2023,4106604-FEBRUARY012023,"1,350.00",A & P TAXIS.
Children and Young Peoples Services,Head of Education and Skills,Transport,230006,Contract Hire,03/03/2023,4106604-FEBRUARY02-2023,"1,842.54",A & P TAXIS.
Children and Young Peoples Services,Head of Education and Skills,Transport,230006,Contract Hire,03/03/2023,4106604-FEBRUARY03-2023,"2,700.00",A & P TAXIS.
Children and Young Peoples Services,Head of Education and Skills,Transport,230006,Contract Hire,03/03/2023,4106604-FEBRUARY042023,"2,100.00",A & P TAXIS.
Children and Young Peoples Services,Head of Education and Skills,Transport,230008,Contract Hire,03/03/2023,4106604-FEBRUARY05-2023,"3,450.00",A & P TAXIS.
Dedicated Schools Grant BG0015,DSG High Needs Block,Transfer Payments,510025,School Children,03/03/2023,4106608-RES-02-2023-151,"1,514.00",ADVANCE LEARNING PARTNERSHIP.
Neighbourhoods and Climate Change,Highways,Supplies and Services,304221,Equipment and Materials,03/03/2023,4106610-34135192,"6,807.76",AGGREGATE INDUSTRIES UK LTD.
Regeneration Economy and Growth,Corporate Property and Land,Third Party Payments,430100,Rendered by Private Contractors,03/03/2023,4106622-5636,"4,334.11",APEX ROOFING SPECIALISTS LTD.
Children and Young Peoples Services,Head of Childrens Social Care,Third Party Payments,425041,Rendered by Voluntary Organisations,03/03/2023,4106623-ARC2223/581,"1,878.00",ARC ADOPTION NORTH EAST.
Regeneration Economy and Growth,Corporate Property and Land,Supplies and Services,304221,Equipment and Materials,03/03/2023,4106624-3393849347,"1,361.15",ARJO UK LTD.
Non-Service Specific,Non Service Specific-Financing,Long Term Debtors,924001,Car loans,03/03/2023,4106626-120453,583.00,ARRIVA NORTHUMBRIA LTD.
Regeneration Economy and Growth,Culture Sport and Tourism,Supplies and Services,312013,Newspapers books and periodicals E312,03/03/2023,4106627-6840848,743.92,ASKEWS & HOLTS LIBRARY SERVICES LTD.
Regeneration Economy and Growth,Culture Sport and Tourism,Supplies and Services,312013,Newspapers books and periodicals E312,03/03/2023,4106627-6841820,756.78,ASKEWS & HOLTS LIBRARY SERVICES LTD.
Regeneration Economy and Growth,Culture Sport and Tourism,Supplies and Services,312013,Newspapers books and periodicals E312,03/03/2023,4106627-6841877,652.35,ASKEWS & HOLTS LIBRARY SERVICES LTD.
Children and Young Peoples Services,Head of Education and Skills,Transport,230008,Contract Hire,03/03/2023,4106628-162,"2,220.00",AUCKLAND TRAVEL.
Children and Young Peoples Services,Head of Education and Skills,Transport,230008,Contract Hire,03/03/2023,4106628-164,"2,310.00",AUCKLAND TRAVEL.
Children and Young Peoples Services,Head of Education and Skills,Transport,230008,Contract Hire,03/03/2023,4106628-165,"1,980.00",AUCKLAND TRAVEL.
Children and Young Peoples Services,Head of Education and Skills,Transport,230008,Contract Hire,03/03/2023,4106628-166,"2,085.45",AUCKLAND TRAVEL.
Children and Young Peoples Services,Head of Education and Skills,Transport,230008,Contract Hire,03/03/2023,4106628-167,"2,145.00",AUCKLAND TRAVEL.
Children and Young Peoples Services,Head of Education and Skills,Transport,230008,Contract Hire,03/03/2023,4106628-168,"2,474.25",AUCKLAND TRAVEL.
Children and Young Peoples Services,Head of Education and Skills,Transport,230008,Contract Hire,03/03/2023,4106628-169,"2,812.20",AUCKLAND TRAVEL.
Children and Young Peoples Services,Head of Education and Skills,Transport,230006,Contract Hire,03/03/2023,4106628-170,"2,130.00",AUCKLAND TRAVEL.
Children and Young Peoples Services,Head of Education and Skills,Transport,230008,Contract Hire,03/03/2023,4106628-171,"3,735.00",AUCKLAND TRAVEL.
Children and Young Peoples Services,Head of Education and Skills,Transport,230006,Contract Hire,03/03/2023,4106628-172,840.00,AUCKLAND TRAVEL.
Children and Young Peoples Services,Head of Education and Skills,Transport,230007,Contract Hire,03/03/2023,4106629-28022023,960.00,AVALON TAXIS.
Children and Young Peoples Services,Head of Education and Skills,Transport,230007,Contract Hire,03/03/2023,4106629-2822023,"2,827.68",AVALON TAXIS.
Children and Young Peoples Services,Head of Education and Skills,Transport,230034,Contract Hire,03/03/2023,4106629-2832023,"1,583.40",AVALON TAXIS.
Children and Young Peoples Services,Head of Education and Skills,Transport,230008,Contract Hire,03/03/2023,4106637-1033,"1,803.38",BEELINE MINI BUSES.
Children and Young Peoples Services,Head of Education and Skills,Transport,230008,Contract Hire,03/03/2023,4106637-1034,"1,061.13",BEELINE MINI BUSES.
Children and Young Peoples Services,Head of Education and Skills,Transport,230012,Contract Hire,03/03/2023,4106644-1-E057,"2,100.00",BH TRAVEL.
Children and Young Peoples Services,Head of Education and Skills,Transport,230006,Contract Hire,03/03/2023,4106644-2-F249,"2,400.00",BH TRAVEL.
Dedicated Schools Grant BG0015,DSG High Needs Block,Supplies and Services,384302,Miscellaneous Expenses,03/03/2023,4106645-BBSI44,"11,120.00",BISHOP CHADWICK CATHOLIC EDUCATION TRUST (NSCET).
Children and Young Peoples Services,Head of Education and Skills,Transport,230008,Contract Hire,03/03/2023,4106646-INV00781,"1,774.63",BLUELINE SOUTH INCORPORATING NAVIGATION TAXIS T/A BLUELINE TAXIS.
Regeneration Economy and Growth,Culture Sport and Tourism,Supplies and Services,312013,Newspapers books and periodicals E312,03/03/2023,4106648-111657,640.35,BOLINDA DIGITAL LTD.
Children and Young Peoples Services,Head of Education and Skills,Transport,230007,Contract Hire,03/03/2023,4106650-003-4533,"1,236.00",BOWBURN TAXIS.
Children and Young Peoples Services,Head of Education and Skills,Transport,230010,Contract Hire,03/03/2023,4106650-003-B050,"3,116.90",BOWBURN TAXIS.
Children and Young Peoples Services,Head of Education and Skills,Transport,230007,Contract Hire,03/03/2023,4106661-209906,"1,168.00",C & R TAXIS.
Children and Young Peoples Services,Head of Education and Skills,Transport,230008,Contract Hire,03/03/2023,4106661-A13903,"2,160.00",C & R TAXIS.
Children and Young Peoples Services,Head of Education and Skills,Transport,230008,Contract Hire,03/03/2023,4106661-S006039,"1,745.04",C & R TAXIS.
Children and Young Peoples Services,Head of Education and Skills,Transport,230008,Contract Hire,03/03/2023,4106661-S01506,"1,368.30",C & R TAXIS.
Children and Young Peoples Services,Head of Education and Skills,Transport,230008,Contract Hire,03/03/2023,4106661-W046039,"1,916.70",C & R TAXIS.
Neighbourhoods and Climate Change,Environmental Services,Supplies and Services,384899,Miscellaneous Expenses,03/03/2023,4106683-UOTR5039781,"1,358.04",CONVERA UK FINANCIAL LTD.
Children and Young Peoples Services,Head of Early Help Inclusion & Vulnerable Children.,Supplies and Services,384409,Miscellaneous Expenses,03/03/2023,4106686-32,"1,045.83",CORETECH (SPORTS) LTD T/A INFINITE AIR EXTREME TRAMPOLINE.
Children and Young Peoples Services,Head of Education and Skills,Supplies and Services,338094,Services,03/03/2023,4106687-1233,710.00,CORNERSTONES CENTRE FOR THE COMMUNITY.
Adult and Health Services,Public Health CC0450,Third Party Payments,460803,Contract Payments,03/03/2023,4106689-9810028472,"69,312.00",CUMBRIA NORTHUMBERLAND TYNE & WEAR NHS FOUNDATION TRUST.
Children and Young Peoples Services,Head of Education and Skills,Transport,230008,Contract Hire,03/03/2023,4106693-DI202302,"1,675.20",D&I TAXIS.
Children and Young Peoples Services,Head of Education and Skills,Transport,230008,Contract Hire,03/03/2023,4106694-1809,"1,356.45",DA TAXIS.
Children and Young Peoples Services,Head of Education and Skills,Transport,230008,Contract Hire,03/03/2023,4106694-1810,"1,458.39",DA TAXIS.
Children and Young Peoples Services,Head of Education and Skills,Transport,230008,Contract Hire,03/03/2023,4106694-1811,"1,759.80",DA TAXIS.
Children and Young Peoples Services,Head of Education and Skills,Transport,230008,Contract Hire,03/03/2023,4106694-1812,"1,055.22",DA TAXIS.
Children and Young Peoples Services,Head of Education and Skills,Transport,230008,Contract Hire,03/03/2023,4106694-1813,"2,400.00",DA TAXIS.
Children and Young Peoples Services,Head of Education and Skills,Transport,230008,Contract Hire,03/03/2023,4106695-576,"1,605.60",DA TRAVEL.
Children and Young Peoples Services,Head of Education and Skills,Transport,230008,Contract Hire,03/03/2023,4106695-577,"1,145.25",DA TRAVEL.
Children and Young Peoples Services,Head of Education and Skills,Transport,230008,Contract Hire,03/03/2023,4106695-578,546.00,DA TRAVEL.
Adult and Health Services,Head of Adults,Transport,230005,Contract Hire,03/03/2023,4106695-579,"1,358.50",DA TRAVEL.
Children and Young Peoples Services,Head of Education and Skills,Transport,230006,Contract Hire,03/03/2023,4106696-BACFEB2301,"1,515.87",DALELINK PRIVATE HIRE.
Children and Young Peoples Services,Head of Education and Skills,Transport,230009,Contract Hire,03/03/2023,4106696-SGPLPSFEB2301,840.00,DALELINK PRIVATE HIRE.
Children and Young Peoples Services,Head of Education and Skills,Transport,230008,Contract Hire,03/03/2023,4106699-3789,"1,832.83",DAVES MINIBUSES.
Children and Young Peoples Services,Head of Education and Skills,Transport,230008,Contract Hire,03/03/2023,4106699-3790,"1,564.24",DAVES MINIBUSES.
Children and Young Peoples Services,Head of Education and Skills,Transport,230008,Contract Hire,03/03/2023,4106699-3791,"1,386.42",DAVES MINIBUSES.
Children and Young Peoples Services,Head of Education and Skills,Transport,230008,Contract Hire,03/03/2023,4106699-3792,"1,685.27",DAVES MINIBUSES.
Children and Young Peoples Services,Head of Education and Skills,Transport,230008,Contract Hire,03/03/2023,4106699-3793,"1,591.40",DAVES MINIBUSES.
Children and Young Peoples Services,Head of Education and Skills,Transport,230008,Contract Hire,03/03/2023,4106699-3794,"1,530.48",DAVES MINIBUSES.
Neighbourhoods and Climate Change,Environmental Services,Stock A926,926004,Stock,03/03/2023,4106705-96436390,773.48,DENNIS EAGLE LTD T/A TERBERG MATEC (UK) LTD.
Children and Young Peoples Services,Head of Education and Skills,Transport,230007,Contract Hire,03/03/2023,4106712-002-FEB23,"1,752.00",DURHAM DALES PRIVATE HIRE.
Regeneration Economy and Growth,Corporate Property and Land,Supplies and Services,304221,Equipment and Materials,03/03/2023,4106717-059-312859,"1,403.35",EDMUNDSON ELECTRICAL LTD.
Regeneration Economy and Growth,Corporate Property and Land,Supplies and Services,304221,Equipment and Materials,03/03/2023,4106717-059-314110,958.29,EDMUNDSON ELECTRICAL LTD.
Regeneration Economy and Growth,Corporate Property and Land,Supplies and Services,304221,Equipment and Materials,03/03/2023,4106717-059-314161,682.64,EDMUNDSON ELECTRICAL LTD.
Children and Young Peoples Services,Head of Education and Skills,Transport,230007,Contract Hire,03/03/2023,4106721-5050/0223,"1,723.80",ELLIOTTS OF TRIMDON.
Children and Young Peoples Services,Head of Education and Skills,Transport,230007,Contract Hire,03/03/2023,4106721-5234/0223,"2,102.40",ELLIOTTS OF TRIMDON.
Children and Young Peoples Services,Head of Education and Skills,Transport,230008,Contract Hire,03/03/2023,4106721-E138/0223,"2,681.00",ELLIOTTS OF TRIMDON.
Children and Young Peoples Services,Head of Education and Skills,Transport,230008,Contract Hire,03/03/2023,4106721-M042/0223,"1,648.32",ELLIOTTS OF TRIMDON.
Neighbourhoods and Climate Change,Environmental Services,Transport,230005,Contract Hire,03/03/2023,4106725-8195601,585.90,ENTERPRISE FLEX-E-RENT T/A BURNT TREE GROUP LTD.
Regeneration Economy and Growth,Corporate Property and Land,Third Party Payments,430100,Rendered by Private Contractors,03/03/2023,4106728-11834-9086,"23,447.50",EXPERVENT LTD T/A EXPERVENT AIR MOVEMENT SOLUTIONS.
Children and Young Peoples Services,Head of Education and Skills,Transport,230008,Contract Hire,03/03/2023,4106729-FEB23-E003,"2,024.29",FAIR FARE TRAVEL (TAXIS).
Children and Young Peoples Services,Head of Education and Skills,Transport,230008,Contract Hire,03/03/2023,4106733-013,"1,644.36",FERRYHILL VILLAGE TRAVEL & BROOM ROAD GARAGE LIMITED.
Children and Young Peoples Services,Head of Education and Skills,Transport,230010,Contract Hire,03/03/2023,4106733-PB004-002,"1,406.00",FERRYHILL VILLAGE TRAVEL & BROOM ROAD GARAGE LIMITED.
Adult and Health Services,Head of Adults,Transport,230005,Contract Hire,03/03/2023,4106733-SED001-004,"1,284.00",FERRYHILL VILLAGE TRAVEL & BROOM ROAD GARAGE LIMITED.
Neighbourhoods and Climate Change,Environmental Services,Third Party Payments,430120,Rendered by Private Contractors,03/03/2023,4106736-CTIN06708186,"9,921.28",FINNING (UK) LTD.
Neighbourhoods and Climate Change,Environmental Services,Third Party Payments,430120,Rendered by Private Contractors,03/03/2023,4106736-CTIN06708187,"3,512.51",FINNING (UK) LTD.
Neighbourhoods and Climate Change,Environmental Services,Third Party Payments,430120,Rendered by Private Contractors,03/03/2023,4106736-CTIN06708208,"8,951.70",FINNING (UK) LTD.
Children and Young Peoples Services,Head of Education and Skills,Transport,230007,Contract Hire,03/03/2023,4106742-24389-5022,"4,221.75",GARNETTS LTD (COACHES).
Children and Young Peoples Services,Head of Education and Skills,Transport,230007,Contract Hire,03/03/2023,4106742-24390-5199,"4,154.10",GARNETTS LTD (COACHES).
Children and Young Peoples Services,Head of Education and Skills,Transport,230007,Contract Hire,03/03/2023,4106742-24391-4404,"11,134.05",GARNETTS LTD (COACHES).
Children and Young Peoples Services,Head of Education and Skills,Transport,230007,Contract Hire,03/03/2023,4106742-24392-3007,"2,367.60",GARNETTS LTD (COACHES).
Children and Young Peoples Services,Head of Education and Skills,Transport,230007,Contract Hire,03/03/2023,4106742-24392-3315,"2,223.60",GARNETTS LTD (COACHES).
Children and Young Peoples Services,Head of Education and Skills,Transport,230007,Contract Hire,03/03/2023,4106742-24392-3435,"3,007.50",GARNETTS LTD (COACHES).
Children and Young Peoples Services,Head of Education and Skills,Transport,230007,Contract Hire,03/03/2023,4106742-24393-4034,"2,223.60",GARNETTS LTD (COACHES).
Children and Young Peoples Services,Head of Education and Skills,Transport,230007,Contract Hire,03/03/2023,4106742-24393-4035,"2,349.60",GARNETTS LTD (COACHES).
Children and Young Peoples Services,Head of Education and Skills,Transport,230007,Contract Hire,03/03/2023,4106742-24393-4037,"4,642.35",GARNETTS LTD (COACHES).
Children and Young Peoples Services,Head of Education and Skills,Transport,230007,Contract Hire,03/03/2023,4106742-24393-4038,"2,639.55",GARNETTS LTD (COACHES).
Children and Young Peoples Services,Head of Education and Skills,Transport,230003,Contract Hire,03/03/2023,4106742-24394-3020,"2,441.55",GARNETTS LTD (COACHES).
Children and Young Peoples Services,Head of Education and Skills,Transport,230003,Contract Hire,03/03/2023,4106742-24394-3024,"2,017.65",GARNETTS LTD (COACHES).
Children and Young Peoples Services,Head of Education and Skills,Transport,230003,Contract Hire,03/03/2023,4106742-24394-3027,"2,153.25",GARNETTS LTD (COACHES).
Children and Young Peoples Services,Head of Education and Skills,Transport,230003,Contract Hire,03/03/2023,4106742-24394-3028,"2,356.65",GARNETTS LTD (COACHES).
Children and Young Peoples Services,Head of Education and Skills,Transport,230007,Contract Hire,03/03/2023,4106742-24394-3029,"2,424.60",GARNETTS LTD (COACHES).
Children and Young Peoples Services,Head of Education and Skills,Transport,230007,Contract Hire,03/03/2023,4106742-24394-3199,"2,305.80",GARNETTS LTD (COACHES).
Children and Young Peoples Services,Head of Education and Skills,Transport,230003,Contract Hire,03/03/2023,4106742-24395-3301,"2,385.00",GARNETTS LTD (COACHES).
Children and Young Peoples Services,Head of Education and Skills,Transport,230003,Contract Hire,03/03/2023,4106742-24395-3302,"2,685.00",GARNETTS LTD (COACHES).
Children and Young Peoples Services,Head of Education and Skills,Transport,230003,Contract Hire,03/03/2023,4106742-24395-3303,"2,685.00",GARNETTS LTD (COACHES).
Children and Young Peoples Services,Head of Education and Skills,Transport,230003,Contract Hire,03/03/2023,4106742-24396-3003,"3,585.00",GARNETTS LTD (COACHES).
Children and Young Peoples Services,Head of Education and Skills,Transport,230003,Contract Hire,03/03/2023,4106742-24396-3004,"3,458.85",GARNETTS LTD (COACHES).
Children and Young Peoples Services,Head of Education and Skills,Transport,230003,Contract Hire,03/03/2023,4106742-24396-3005,"5,052.60",GARNETTS LTD (COACHES).
Children and Young Peoples Services,Head of Education and Skills,Transport,230003,Contract Hire,03/03/2023,4106742-24396-3008,"2,865.30",GARNETTS LTD (COACHES).
Children and Young Peoples Services,Head of Education and Skills,Transport,230003,Contract Hire,03/03/2023,4106742-24396-3203,"3,372.60",GARNETTS LTD (COACHES).
Children and Young Peoples Services,Head of Education and Skills,Transport,230003,Contract Hire,03/03/2023,4106742-24396-3223,"4,035.00",GARNETTS LTD (COACHES).
Children and Young Peoples Services,Head of Education and Skills,Transport,230003,Contract Hire,03/03/2023,4106742-24396-3262,"3,170.55",GARNETTS LTD (COACHES).
Children and Young Peoples Services,Head of Education and Skills,Transport,230003,Contract Hire,03/03/2023,4106742-24396-3333,"2,848.50",GARNETTS LTD (COACHES).
Children and Young Peoples Services,Head of Education and Skills,Transport,230008,Contract Hire,03/03/2023,4106742-24397-S011,"2,644.95",GARNETTS LTD (COACHES).
Children and Young Peoples Services,Head of Education and Skills,Transport,230008,Contract Hire,03/03/2023,4106742-24398-W041,"3,756.75",GARNETTS LTD (COACHES).
Children and Young Peoples Services,Head of Education and Skills,Transport,230007,Contract Hire,03/03/2023,4106742-243993254-,"2,526.30",GARNETTS LTD (COACHES).
Children and Young Peoples Services,Head of Education and Skills,Supplies and Services,304259,Equipment and Materials,03/03/2023,4106756-963013123,843.00,HCL SAFETY LTD.
Neighbourhoods and Climate Change,Environmental Services,Supplies and Services,384700,Miscellaneous Expenses,03/03/2023,4106757-RES-03-2023-024,"2,025.48",HIGH ROWANTREE LTD.
Adult and Health Services,Head of Adults,Third Party Payments,478151,Purchase of Care,03/03/2023,4106758-HLC824,"3,159.83",HIGHLEA CARE LTD.
Neighbourhoods and Climate Change,Environmental Services,Third Party Payments,430100,Rendered by Private Contractors,03/03/2023,4106760-92584,602.00,HOGARTH COACHWORKS LTD.
Adult and Health Services,Commissioning inc Supporting People,Supplies and Services,384700,Miscellaneous Expenses,03/03/2023,4106762-RES-03-2023-008,"116,100.00",HOME GROUP LTD.
Adult and Health Services,Commissioning inc Supporting People,Supplies and Services,338365,Services,03/03/2023,4106762-RES-03-2023-013,"2,837.88",HOME GROUP LTD.
Regeneration Economy and Growth,Corporate Property and Land,Supplies and Services,304221,Equipment and Materials,03/03/2023,4106765-A38/0162517,"1,631.55",HOWDENS JOINERY LTD.
Adult and Health Services,Public Health CC0450,Third Party Payments,460802,Contract Payments,03/03/2023,4106767-SI-HK-000631,"2,890.00",HUMANKIND CHARITY.
Resources BK0010,HR & Employee Services,Supplies and Services,384199,Miscellaneous Expenses,03/03/2023,4106770-74939934,"9,000.00",INDEED IRELAND OPERATIONS LTD.
Neighbourhoods and Climate Change,Highways,Stock A926,926900,Stock in hand-Inventory system,03/03/2023,4106771-871949,"3,229.20",INSTARMAC GROUP PLC.
Neighbourhoods and Climate Change,Highways,Supplies and Services,304358,Equipment and Materials,03/03/2023,4106777-5306751,792.00,JA GILSON (AGRICULTURAL CONTRACTORS) LTD.
Neighbourhoods and Climate Change,Highways,Supplies and Services,304358,Equipment and Materials,03/03/2023,4106777-5306758,"1,436.50",JA GILSON (AGRICULTURAL CONTRACTORS) LTD.
Regeneration Economy and Growth,Transport and Contracted Services,Construction work A908,908105,Construction work,03/03/2023,4106778-27401,"1,673.43",JACK COUPE & SONS LTD T/A COUPE LINE.
Regeneration Economy and Growth,Transport and Contracted Services,Construction work A908,908105,Construction work,03/03/2023,4106778-27432,889.42,JACK COUPE & SONS LTD T/A COUPE LINE.
Regeneration Economy and Growth,Transport and Contracted Services,Construction work A908,908105,Construction work,03/03/2023,4106778-27447,744.20,JACK COUPE & SONS LTD T/A COUPE LINE.
Neighbourhoods and Climate Change,Environmental Services,Third Party Payments,430100,Rendered by Private Contractors,03/03/2023,4106783-163633,856.01,JG PAXTON & SONS LTD.
Neighbourhoods and Climate Change,Highways,Stock A926,926900,Stock in hand-Inventory system,03/03/2023,4106791-0113/00042092,"2,620.80",JT DOVE LTD.
Neighbourhoods and Climate Change,Highways,Stock A926,926900,Stock in hand-Inventory system,03/03/2023,4106791-0113/00042093,613.20,JT DOVE LTD.
Neighbourhoods and Climate Change,Environmental Services,Supplies and Services,384199,Miscellaneous Expenses,03/03/2023,4106793-1637,"21,000.00",JW BAINBRIDGE CONTRACTORS LTD.
Children and Young Peoples Services,Head of Education and Skills,Transport,230012,Contract Hire,03/03/2023,4106794-1378,"2,760.30",K & R TAXIS (STANLEY).
Children and Young Peoples Services,Head of Education and Skills,Transport,230008,Contract Hire,03/03/2023,4106794-1379,"3,679.50",K & R TAXIS (STANLEY).
Children and Young Peoples Services,Head of Education and Skills,Transport,230008,Contract Hire,03/03/2023,4106794-1380,"2,718.10",K & R TAXIS (STANLEY).
Children and Young Peoples Services,Head of Education and Skills,Transport,230007,Contract Hire,03/03/2023,4106794-1381,"2,160.00",K & R TAXIS (STANLEY).
Children and Young Peoples Services,Head of Education and Skills,Transport,230008,Contract Hire,03/03/2023,4106794-1382,"3,762.82",K & R TAXIS (STANLEY).
Children and Young Peoples Services,Head of Education and Skills,Transport,230008,Contract Hire,03/03/2023,4106794-1383,"3,740.39",K & R TAXIS (STANLEY).
Children and Young Peoples Services,Head of Education and Skills,Transport,230008,Contract Hire,03/03/2023,4106794-1384,"2,112.60",K & R TAXIS (STANLEY).
Children and Young Peoples Services,Head of Education and Skills,Transport,230008,Contract Hire,03/03/2023,4106794-1385,"2,150.12",K & R TAXIS (STANLEY).
Neighbourhoods and Climate Change,Highways,Supplies and Services,304358,Equipment and Materials,03/03/2023,4106808-MS4150,946.80,M SPENCE SURFACING LTD.
Neighbourhoods and Climate Change,Highways,Supplies and Services,304358,Equipment and Materials,03/03/2023,4106808-MS4151,"3,690.00",M SPENCE SURFACING LTD.
Neighbourhoods and Climate Change,Highways,Supplies and Services,304358,Equipment and Materials,03/03/2023,4106808-MS4154,"2,952.00",M SPENCE SURFACING LTD.
Neighbourhoods and Climate Change,Highways,Supplies and Services,304358,Equipment and Materials,03/03/2023,4106808-MS4155,784.80,M SPENCE SURFACING LTD.
Resources BK0010,Digital Services,Supplies and Services,342033,Computers and Communications,03/03/2023,4106810-12656924,"1,860.00",MAINTEL EUROPE LTD.
Neighbourhoods and Climate Change,Highways,Third Party Payments,410037,Rendered by Other Local Authorities,03/03/2023,4106811-6343,"2,183.20",MAKEPEACE MOTORS.
Neighbourhoods and Climate Change,Highways,Supplies and Services,304221,Equipment and Materials,03/03/2023,4106811-6344,"3,283.20",MAKEPEACE MOTORS.
Non-Service Specific,Insurances,Expenditure 8INSEX,810001,Insurance Expenditure,03/03/2023,4106816-8393888,"10,345.44",MARSH LTD UK.
Regeneration Economy and Growth,Corporate Property and Land,Third Party Payments,430100,Rendered by Private Contractors,03/03/2023,4106822-2228,"2,725.00",MITREPOINT LTD T/A ROOFCLAD SYSTEMS.
Neighbourhoods and Climate Change,Highways,Supplies and Services,304221,Equipment and Materials,03/03/2023,4106844-0000116755,"2,461.00",NAL LTD.
Neighbourhoods and Climate Change,Highways,Supplies and Services,304221,Equipment and Materials,03/03/2023,4106844-0000116761,707.22,NAL LTD.
Adult and Health Services,Commissioning inc Supporting People,Third Party Payments,440999,Other third party payments E440,03/03/2023,4106847-57725,"2,439.10",NATIONAL YOUTH ADVOCACY SERVICE.
Children and Young Peoples Services,Head of Early Help Inclusion & Vulnerable Children.,Third Party Payments,486046,Service level agreements E486,03/03/2023,4106847-57767,"8,110.25",NATIONAL YOUTH ADVOCACY SERVICE.
Regeneration Economy and Growth,Planning & Housing,Cap Exp on Grants & Other Financial Assistance (REFCUS),918501,Exp assets not owned by authority,03/03/2023,4106858-RES-03-2023-007,"11,886.00",NORTH EAST BUILDING PLASTICS LTD.
Neighbourhoods and Climate Change,Partnerships & Community Engagement Div.,Supplies and Services,384086,Miscellaneous Expenses,03/03/2023,4106859-VOUCHERBELR09-22,681.00,NORTH EAST LEARNING TRUST (NELT).
Resources BK0010,HR & Employee Services,Supplies and Services,338064,Services,03/03/2023,4106860-32435,"18,212.00",NORTH EAST REGIONAL EMPLOYERS ORGANISATION (NEREO).
Neighbourhoods and Climate Change,Environmental Services,Third Party Payments,430100,Rendered by Private Contractors,03/03/2023,4106861-1440387,"7,157.98",NORTH EAST TRUCK & VAN LTD.
Non-Service Specific,Insurances,Expenditure 8INSEX,810012,Insurance Expenditure,03/03/2023,4106863-DI20401211,"1,213.38",NORTHERN POWERGRID (NORTHEAST) LTD.
Neighbourhoods and Climate Change,Highways,Stock A926,926900,Stock in hand-Inventory system,03/03/2023,4106877-XL297108,"7,232.79",PARK ELECTRICAL DISTRIBUTORS LTD.
Neighbourhoods and Climate Change,Highways,Stock A926,926900,Stock in hand-Inventory system,03/03/2023,4106877-XL297116,682.50,PARK ELECTRICAL DISTRIBUTORS LTD.
Neighbourhoods and Climate Change,Partnerships & Community Engagement Div.,Supplies and Services,384086,Miscellaneous Expenses,03/03/2023,4106883-VOUCHERHAWK06-22,816.86,PETERLEE OAKERSIDE PARK COMMUNITY ASSOCIATION.
Neighbourhoods and Climate Change,Highways,Third Party Payments,430100,Rendered by Private Contractors,03/03/2023,4106887-6472,"5,356.08",PINKNEY BUILDING CONTRACTORS LTD.
Neighbourhoods and Climate Change,Partnerships & Community Engagement Div.,Supplies and Services,384086,Miscellaneous Expenses,03/03/2023,4106890-VOUCHERHALD06-22,800.00,PITTINGTON COMMUNITY ASSOCIATION.
Adult and Health Services,Head of Adults,Third Party Payments,479102,Purchase of Care,03/03/2023,4106892-INV-0105,"7,904.40",POSITIVE CARE & SUPPORT LTD.
Adult and Health Services,Head of Adults,Third Party Payments,479102,Purchase of Care,03/03/2023,4106892-INV-0107,"7,679.56",POSITIVE CARE & SUPPORT LTD.
Neighbourhoods and Climate Change,Highways,Third Party Payments,430100,Rendered by Private Contractors,03/03/2023,4106895-1341,"1,484.00",PRM FABRICATIONS LTD.
Neighbourhoods and Climate Change,Highways,Third Party Payments,430100,Rendered by Private Contractors,03/03/2023,4106899-14776,"1,420.24",QUANTUM POWER CONNECTIONS LTD.
Neighbourhoods and Climate Change,Partnerships & Community Engagement Div.,Supplies and Services,384086,Miscellaneous Expenses,03/03/2023,4106900-VOUCHERBLAJ10-22,500.00,QUARRINGTON HILL COMMUNITY ASSOCIATION (QHCA).
Children and Young Peoples Services,Head of Education and Skills,Transport,230008,Contract Hire,03/03/2023,4106915-002-FEB23,"2,383.50",RONS TAXI (CHESTER LE ST).
Resources BK0010,Transactional & Customer Services,Supplies and Services,340001,Postages E340,03/03/2023,4106916-9066730783,"16,217.79",ROYAL MAIL GROUP PLC.
Neighbourhoods and Climate Change,Highways,Supplies and Services,304358,Equipment and Materials,03/03/2023,4106920-3565,514.40,S & R LANDSCAPES.
Neighbourhoods and Climate Change,Highways,Supplies and Services,304358,Equipment and Materials,03/03/2023,4106920-3569,727.50,S & R LANDSCAPES.
Regeneration Economy and Growth,Corporate Property and Land,Supplies and Services,304221,Equipment and Materials,03/03/2023,4106944-948311,"1,188.07",T CROSSLING & CO LTD.
Neighbourhoods and Climate Change,Environmental Services,Third Party Payments,430100,Rendered by Private Contractors,03/03/2023,4106951-SIP-95615,"1,469.70",TH WHITE LTD - PALFINGER UK.
Regeneration Economy and Growth,Culture Sport and Tourism,Supplies and Services,328041,Clothing uniforms and laundry E328,03/03/2023,4106955-NSIN00088901,941.58,THOMAS OWEN & SONS (NEWCASTLE) LTD.
Adult and Health Services,Commissioning inc Supporting People,Supplies and Services,384540,Miscellaneous Expenses,03/03/2023,4106956-RES-02-2023-595,513.00,THREE MOTION MEDIA LTD.
Regeneration Economy and Growth,Culture Sport and Tourism,Supplies and Services,384199,Miscellaneous Expenses,03/03/2023,4106968-TRAV44560,"1,586.00",TRAVMEDIA (UK) LTD.
Children and Young Peoples Services,Head of Early Help Inclusion & Vulnerable Children.,Supplies and Services,384956,Miscellaneous Expenses,03/03/2023,4106970-INV-14801,"2,450.00",TRIANGLE CONSULTING SOCIAL ENTERPRISE LTD.
Adult and Health Services,Public Health CC0450,Third Party Payments,460803,Contract Payments,03/03/2023,4106971-SI-TPL-00069784,"1,855.00",TURNING POINT (SERVICES) LTD.
Adult and Health Services,Public Health CC0450,Third Party Payments,460803,Contract Payments,03/03/2023,4106971-SI-TPL-00069785,"5,300.00",TURNING POINT (SERVICES) LTD.
Adult and Health Services,Public Health CC0450,Third Party Payments,460803,Contract Payments,03/03/2023,4106971-SI-TPL-00069786,530.00,TURNING POINT (SERVICES) LTD.
Neighbourhoods and Climate Change,Highways,Supplies and Services,304221,Equipment and Materials,03/03/2023,4106973-242826,"1,281.48",TYNEDALE ROADSTONE LTD.
Neighbourhoods and Climate Change,Highways,Supplies and Services,304221,Equipment and Materials,03/03/2023,4106973-242827,"2,298.40",TYNEDALE ROADSTONE LTD.
Neighbourhoods and Climate Change,Highways,Supplies and Services,304221,Equipment and Materials,03/03/2023,4106973-242828,897.78,TYNEDALE ROADSTONE LTD.
Neighbourhoods and Climate Change,Highways,Supplies and Services,304221,Equipment and Materials,03/03/2023,4106973-242829,"1,596.59",TYNEDALE ROADSTONE LTD.
Neighbourhoods and Climate Change,Highways,Supplies and Services,304221,Equipment and Materials,03/03/2023,4106973-242830,"1,328.58",TYNEDALE ROADSTONE LTD.
Neighbourhoods and Climate Change,Highways,Stock A926,926900,Stock in hand-Inventory system,03/03/2023,4106974-SI05777511,"2,256.00",UK PLUMBING SUPPLIES LTD T/A PLUMBASE.
Regeneration Economy and Growth,Business Durham CL0850,Third Party Payments,460305,Contract Payments,03/03/2023,4106975-RES-02-2023-593,"77,474.67",UMI COMMERCIAL LTD.
Resources BK0010,Digital Services,Supplies and Services,344015,Telephones,03/03/2023,4106983-SA24398,"1,760.00",VODAFONE CORPORATE LTD.
Resources BK0010,Digital Services,Supplies and Services,344015,Telephones,03/03/2023,4106983-SA49281,"1,320.00",VODAFONE CORPORATE LTD.
Resources BK0010,Digital Services,Supplies and Services,344015,Telephones,03/03/2023,4106983-SA77947,"5,500.00",VODAFONE CORPORATE LTD.
Resources BK0010,Digital Services,Supplies and Services,344015,Telephones,03/03/2023,4106983-SA77948,"7,040.00",VODAFONE CORPORATE LTD.
Resources BK0010,Digital Services,Supplies and Services,344015,Telephones,03/03/2023,4106983-SB13230,"3,300.00",VODAFONE CORPORATE LTD.
Resources BK0010,Digital Services,Supplies and Services,344015,Telephones,03/03/2023,4106983-SB67681,"1,320.00",VODAFONE CORPORATE LTD.
Neighbourhoods and Climate Change,Highways,Supplies and Services,304221,Equipment and Materials,03/03/2023,4106985-28202,604.40,WARD TIMBER LTD.
Neighbourhoods and Climate Change,Highways,Supplies and Services,304221,Equipment and Materials,03/03/2023,4106985-28203,650.00,WARD TIMBER LTD.
Adult and Health Services,Central/Other,Supplies and Services,338043,Services,03/03/2023,4106989-02138947,"3,984.00",WEIGHTMANS LLP.
Neighbourhoods and Climate Change,Partnerships & Community Engagement Div.,Supplies and Services,384086,Miscellaneous Expenses,03/03/2023,4106991-VOUCHERBING05-22,700.00,WHITE LE HEAD BOWLS CLUB.
Neighbourhoods and Climate Change,Environmental Services,Transport,215005,Running Costs of Vehicles,03/03/2023,4106998-1106160,"3,685.20",YOUR NRG LTD.
Neighbourhoods and Climate Change,Highways,Stock A926,926900,Stock in hand-Inventory system,03/03/2023,4106999-145513126,"1,100.00",ZG LIGHTING (UK) LTD.
Neighbourhoods and Climate Change,Environmental Services,Supplies and Services,338066,Services,06/03/2023,4107138-0502,"2,178.00",REDACTED - PAYMENT TO INDIVIDUAL
Neighbourhoods and Climate Change,Environmental Services,Supplies and Services,338027,Services,06/03/2023,4107172-585,765.19,REDACTED - PAYMENT TO INDIVIDUAL
Regeneration Economy and Growth,Business Durham CL0850,Supplies and Services,338066,Services,06/03/2023,4107003-0137481,"1,250.00",ADDISONS CHARTERED SURVEYORS.
Neighbourhoods and Climate Change,Environmental Services,Supplies and Services,304259,Equipment and Materials,06/03/2023,4107010-422925968,505.04,AIR PRODUCTS PLC.
Neighbourhoods and Climate Change,Environmental Services,Supplies and Services,304221,Equipment and Materials,06/03/2023,4107041-CD991443742,"3,600.59",BRANDED GARDEN PRODUCTS C/O THOMPSON & MORGAN.
Neighbourhoods and Climate Change,Environmental Services,Supplies and Services,304221,Equipment and Materials,06/03/2023,4107042-CD991443743,908.54,BRANDED GARDEN PRODUCTS C/O THOMPSON & MORGAN.
Adult and Health Services,Head of Adults,Supplies and Services,338089,Services,06/03/2023,4107051-SI/6333,"2,475.00",CAPABLE PEOPLE TRAINING & CONSULTANCY LTD.
Adult and Health Services,Head of Adults,Supplies and Services,384999,Miscellaneous Expenses,06/03/2023,4107062-RES-02-2023-054,"1,500.00",CLEANING WITH MEANING.
Neighbourhoods and Climate Change,Partnerships & Community Engagement Div.,Supplies and Services,384086,Miscellaneous Expenses,06/03/2023,4107066-VOUCHERHOWJ08-22,999.00,COCKTON HILL INFANT.
Neighbourhoods and Climate Change,Environmental Services,Construction work A908,908105,Construction work,06/03/2023,4107083-19939,"3,289.00",DCM PROJECTS LTD T/A DCM SURFACES.
Regeneration Economy and Growth,Planning & Housing,Supplies and Services,364501,Grants to Voluntary Organisations,06/03/2023,4107108-BST09022023,563.52,DW GRAINGER PROPERTY.
Regeneration Economy and Growth,Culture Sport and Tourism,Supplies and Services,384237,Miscellaneous Expenses,06/03/2023,4107120-SIINV471,"1,500.00",ENGLISH SPORTS COUNCIL T/A SPORT ENGLAND.
Regeneration Economy and Growth,Corporate Property and Land,Premises,106082,Centrally Controlled Rep and Maint,06/03/2023,4107132-SI-099723,540.00,FRONTIER-PITTS LTD.
Neighbourhoods and Climate Change,Partnerships & Community Engagement Div.,Cap Exp on Grants & Other Financial Assistance (REFCUS),918004,Contributions to other bodies 918004,06/03/2023,4107140-VOUCHER22AB-CHES002,"5,050.00",GREAT LUMLEY METHODIST CHURCH.
Neighbourhoods and Climate Change,Environmental Services,Supplies and Services,384700,Miscellaneous Expenses,06/03/2023,4107192-RES-03-2023-027,"3,228.38",LANGTON FARM PARTNERSHIP.
Neighbourhoods and Climate Change,Environmental Services,Supplies and Services,384199,Miscellaneous Expenses,06/03/2023,4107212-09/02/2023/7288,"18,135.00",MICROPROPAGATION SERVICES (EM) LTD T/A BEADAMOSS.
Neighbourhoods and Climate Change,Highways,Supplies and Services,336005,Advertising E336,06/03/2023,4107226-690355,567.47,NATIONAL WORLD PUBLISHING LTD.
Children and Young Peoples Services,Head of Early Help Inclusion & Vulnerable Children.,Supplies and Services,332029,Printing Stationery and Gen Off Exps,06/03/2023,4107311-16243,"1,255.42",SIGNS EXPRESS (SOUTH DURHAM).
Regeneration Economy and Growth,Business Durham CL0850,Supplies and Services,384899,Miscellaneous Expenses,06/03/2023,4107320-RES-03-2023-044,"1,034.00",STALEMATE LTD.
Neighbourhoods and Climate Change,Environmental Services,Supplies and Services,384700,Miscellaneous Expenses,06/03/2023,4107220-RES-03-2023-021,806.40,REDACTED - PAYMENT TO INDIVIDUAL
Resources BK0010,Legal & Democratic Services,Supplies and Services,338101,Services,06/03/2023,4107093-JANUARY2023,"2,150.00",REDACTED - PAYMENT TO INDIVIDUAL
Resources BK0010,Legal & Democratic Services,Supplies and Services,338101,Services,06/03/2023,4107099-JANUARY2023,"1,000.00",REDACTED - PAYMENT TO INDIVIDUAL
Children and Young Peoples Services,Head of Education and Skills,Supplies and Services,338027,Services,06/03/2023,4107213-DCC6011,"1,995.00",REDACTED - PAYMENT TO INDIVIDUAL
Children and Young Peoples Services,Head of Childrens Social Care,Premises,108099,Service Repairs and Maintenance,06/03/2023,4107005-51906062,"3,223.00",ADT FIRE & SECURITY PLC.
Dedicated Schools Grant BG0015,DSG High Needs Block,Supplies and Services,384302,Miscellaneous Expenses,06/03/2023,4107006-53,"35,000.00",ADVANCE LEARNING PARTNERSHIP.
Neighbourhoods and Climate Change,Highways,Supplies and Services,304221,Equipment and Materials,06/03/2023,4107008-34141182,"3,409.04",AGGREGATE INDUSTRIES UK LTD.
Neighbourhoods and Climate Change,Environmental Services,Third Party Payments,430100,Rendered by Private Contractors,06/03/2023,4107029-36149935,"1,476.86",BELL TRUCK SALES LTD T/A BELL TRUCK & VAN.
Regeneration Economy and Growth,Culture Sport and Tourism,Supplies and Services,324117,Provisions E324,06/03/2023,4107033-66005846,795.95,BIDFOOD.
Neighbourhoods and Climate Change,Highways,Supplies and Services,304221,Equipment and Materials,06/03/2023,4107034-207R02484,614.68,BIFFA WASTE SERVICES LTD.
Neighbourhoods and Climate Change,Partnerships & Community Engagement Div.,Cap Exp on Grants & Other Financial Assistance (REFCUS),918004,Contributions to other bodies 918004,06/03/2023,4107036-VOUCHER22NB-4TOG010,"5,000.00",BISHOP MIDDLEHAM PARISH COUNCIL.
Regeneration Economy and Growth,Culture Sport and Tourism,Supplies and Services,384199,Miscellaneous Expenses,06/03/2023,4107038-1388,"2,375.00",BLUEGRASS RESEARCH LTD.
Regeneration Economy and Growth,Corporate Property and Land,Third Party Payments,430100,Rendered by Private Contractors,06/03/2023,4107054-10811,541.32,CATHEDRAL LOCK & SAFE SERVICES LTD.
Regeneration Economy and Growth,Corporate Property and Land,Third Party Payments,430100,Rendered by Private Contractors,06/03/2023,4107055-733,"21,295.90",CEILINGS DIRECT LTD.
Regeneration Economy and Growth,Corporate Property and Land,Supplies and Services,304221,Equipment and Materials,06/03/2023,4107059-2852ABT006,"1,252.00",CITY PLUMBING SUPPLIES HOLDINGS LTD.
Regeneration Economy and Growth,Corporate Property and Land,Supplies and Services,304221,Equipment and Materials,06/03/2023,4107059-2852ABT026,"1,015.79",CITY PLUMBING SUPPLIES HOLDINGS LTD.
Regeneration Economy and Growth,Corporate Property and Land,Supplies and Services,304221,Equipment and Materials,06/03/2023,4107059-2852ABT041,"2,514.07",CITY PLUMBING SUPPLIES HOLDINGS LTD.
Regeneration Economy and Growth,Economic Development Level C,Supplies and Services,384899,Miscellaneous Expenses,06/03/2023,4107072-SD009/27,"6,183.71",CORNFORTH PARTNERSHIP.
Neighbourhoods and Climate Change,Partnerships & Community Engagement Div.,Cap Exp on Grants & Other Financial Assistance (REFCUS),918004,Contributions to other bodies 918004,06/03/2023,4107073-VOUCHER22AB-MDUR0031STINST,"4,452.00",CORNSAY PARISH COUNCIL.
Resources BK0010,Digital Services,Stock A926,926900,Stock in hand-Inventory system,06/03/2023,4107084-7402888670,520.00,DELL COMPUTER CORPORATION LTD.
Resources BK0010,Digital Services,Vehicles Equipment Furniture and Fittings,912701,Computer equipment,06/03/2023,4107084-7402888782,"48,282.14",DELL COMPUTER CORPORATION LTD.
Children and Young Peoples Services,Head of Education and Skills,Supplies and Services,342223,Computers and Communications,06/03/2023,4107084-7402889469,"16,073.10",DELL COMPUTER CORPORATION LTD.
Resources BK0010,Legal & Democratic Services,Supplies and Services,338042,Services,06/03/2023,4107088-371429/INVNR271,850.00,DERE STREET BARRISTERS.
Resources BK0010,Legal & Democratic Services,Supplies and Services,338042,Services,06/03/2023,4107088-374844/INVNR272,775.00,DERE STREET BARRISTERS.
Resources BK0010,Legal & Democratic Services,Supplies and Services,338042,Services,06/03/2023,4107088-380662/INVVCH191,875.00,DERE STREET BARRISTERS.
Neighbourhoods and Climate Change,Partnerships & Community Engagement Div.,Supplies and Services,384086,Miscellaneous Expenses,06/03/2023,4107103-VOUCHERCOCI05-22,720.00,DURHAM DEAFENED SUPPORT.
Neighbourhoods and Climate Change,Community Protection,Supplies and Services,338099,Services,06/03/2023,4107105-HIRE090223,"1,155.00",DURHAM ST NICHOLAS PCC.
Regeneration Economy and Growth,Corporate Property and Land,Supplies and Services,304221,Equipment and Materials,06/03/2023,4107111-6851905,"1,620.00",EASTERN SHIRES PURCHASING ORGANISATION.
Regeneration Economy and Growth,Corporate Property and Land,Supplies and Services,304221,Equipment and Materials,06/03/2023,4107112-059-314194,"1,059.56",EDMUNDSON ELECTRICAL LTD.
Regeneration Economy and Growth,Corporate Property and Land,Supplies and Services,304221,Equipment and Materials,06/03/2023,4107112-059-314288,696.85,EDMUNDSON ELECTRICAL LTD.
Regeneration Economy and Growth,Corporate Property and Land,Supplies and Services,304221,Equipment and Materials,06/03/2023,4107112-059-314289,"1,420.03",EDMUNDSON ELECTRICAL LTD.
Regeneration Economy and Growth,Corporate Property and Land,Premises,108099,Service Repairs and Maintenance,06/03/2023,4107116-96471,"1,037.00",EIAT UK LTD (ELECTRICAL INSTALLATION & APPLIANCE TESTING UK).
Neighbourhoods and Climate Change,Highways,Stock A926,926900,Stock in hand-Inventory system,06/03/2023,4107118-78SI/80193,535.50,ENCON INSULATION LTD.
Neighbourhoods and Climate Change,Environmental Services,Supplies and Services,304221,Equipment and Materials,06/03/2023,4107122-6930291,"15,768.00",ESE WORLD LTD.
Neighbourhoods and Climate Change,Environmental Services,Supplies and Services,304221,Equipment and Materials,06/03/2023,4107122-6930292,"15,768.00",ESE WORLD LTD.
Resources BK0010,Legal & Democratic Services,Supplies and Services,338105,Services,06/03/2023,4107127-PNC0022/001/2023/JC,"3,800.00",FORENSIC PATHOLOGY LTD.
Neighbourhoods and Climate Change,Partnerships & Community Engagement Div.,Cap Exp on Grants & Other Financial Assistance (REFCUS),918004,Contributions to other bodies 918004,06/03/2023,4107128-VOUCHER22NB-3TWN021,"1,300.00",FOUNDRY FIELDS ALLOTMENT ASSOCIATION.
Adult and Health Services,Head of Adults,Third Party Payments,478151,Purchase of Care,06/03/2023,4107150-HLC823,"2,334.30",HIGHLEA CARE LTD.
Regeneration Economy and Growth,Corporate Property and Land,Premises,108099,Service Repairs and Maintenance,06/03/2023,4107152-7081010494,"8,772.35",HONEYWELL NOVAR SYSTEMS LTD.
Regeneration Economy and Growth,Corporate Property and Land,Supplies and Services,304221,Equipment and Materials,06/03/2023,4107155-B33/0183395,"1,698.08",HOWDENS JOINERY LTD.
Children and Young Peoples Services,Head of Education and Skills,Transport,230008,Contract Hire,06/03/2023,4107161-1132,"2,178.30",I & R EXECUTIVE TRAVEL.
Children and Young Peoples Services,Head of Education and Skills,Transport,230008,Contract Hire,06/03/2023,4107161-1133,"1,582.50",I & R EXECUTIVE TRAVEL.
Adult and Health Services,Head of Adults,Transport,230005,Contract Hire,06/03/2023,4107161-1134,"1,996.00",I & R EXECUTIVE TRAVEL.
Neighbourhoods and Climate Change,Highways,Stock A926,926900,Stock in hand-Inventory system,06/03/2023,4107163-872274,"2,788.80",INSTARMAC GROUP PLC.
Neighbourhoods and Climate Change,Environmental Services,Supplies and Services,324117,Provisions E324,06/03/2023,4107167-23434,512.44,J MORAN LTD T/A CAFFE VINCI.
Regeneration Economy and Growth,Transport and Contracted Services,Construction work A908,908105,Construction work,06/03/2023,4107168-27445,"1,368.23",JACK COUPE & SONS LTD T/A COUPE LINE.
Regeneration Economy and Growth,Corporate Property and Land,Supplies and Services,304221,Equipment and Materials,06/03/2023,4107182-0113/00042143,612.76,JT DOVE LTD.
Neighbourhoods and Climate Change,Highways,Stock A926,926900,Stock in hand-Inventory system,06/03/2023,4107182-0113/00042144,"1,127.00",JT DOVE LTD.
Regeneration Economy and Growth,Corporate Property and Land,Supplies and Services,304221,Equipment and Materials,06/03/2023,4107182-0113/00042145,898.45,JT DOVE LTD.
Neighbourhoods and Climate Change,Highways,Stock A926,926900,Stock in hand-Inventory system,06/03/2023,4107182-0113/00042189,645.00,JT DOVE LTD.
Regeneration Economy and Growth,Corporate Property and Land,Supplies and Services,304221,Equipment and Materials,06/03/2023,4107182-0120/00849815,"4,963.10",JT DOVE LTD.
Neighbourhoods and Climate Change,Environmental Services,Stock A926,926900,Stock in hand-Inventory system,06/03/2023,4107187-SI02-0384736,"1,565.64",KILLGERM CHEMICALS LTD.
Dedicated Schools Grant BG0015,DSG High Needs Block,Supplies and Services,384302,Miscellaneous Expenses,06/03/2023,4107188-1001446,"6,600.00",KING JAMES I ACADEMY.
Regeneration Economy and Growth,Culture Sport and Tourism,Supplies and Services,384199,Miscellaneous Expenses,06/03/2023,4107197-SI-17,"1,420.00",LOCAL CREATIVE PROJECT LTD.
Children and Young Peoples Services,Head of Childrens Social Care,Third Party Payments,440046,Other third party payments E440,06/03/2023,4107203-24666,"2,358.70",MAJOR RECRUITMENT LTD.
Regeneration Economy and Growth,Culture Sport and Tourism,Supplies and Services,324001,Provisions E324,06/03/2023,4107215-906983040,"1,334.09",MOLSON COORS BREWING COMPANY (UK) LTD.
Neighbourhoods and Climate Change,Environmental Services,Stock A926,926004,Stock,06/03/2023,4107229-INVHE75653,712.14,NE TRUCK SPARES LTD (NETS).
Neighbourhoods and Climate Change,Environmental Services,Transport,210057,Repair and Maintenance of Vehicles,06/03/2023,4107229-INVHE75670,593.33,NE TRUCK SPARES LTD (NETS).
Regeneration Economy and Growth,Planning & Housing,Supplies and Services,336005,Advertising E336,06/03/2023,4107231-42086892,824.99,NEWSQUEST (YORKSHIRE & NORTH EAST) LTD.
Regeneration Economy and Growth,Culture Sport and Tourism,Construction work A908,908105,Construction work,06/03/2023,4107237-DI20400076,678.65,NORTHERN POWERGRID (NORTHEAST) LTD.
Children and Young Peoples Services,Head of Childrens Social Care,Supplies and Services,338060,Services,06/03/2023,4107241-SINCC3F63057,"2,836.00",OFSTED.
Regeneration Economy and Growth,Culture Sport and Tourism,Supplies and Services,304259,Equipment and Materials,06/03/2023,4107242-15344,953.97,OMEGA SECURITY SYSTEMS LTD.
Adult and Health Services,Head of Adults,Supplies and Services,342051,Computers and Communications,06/03/2023,4107247-18645,"3,613.42",OXFORD COMPUTER CONSULTANTS LTD.
Adult and Health Services,Head of Adults,Supplies and Services,342051,Computers and Communications,06/03/2023,4107247-18647,"15,497.47",OXFORD COMPUTER CONSULTANTS LTD.
Neighbourhoods and Climate Change,Partnerships & Community Engagement Div.,Cap Exp on Grants & Other Financial Assistance (REFCUS),918004,Contributions to other bodies 918004,06/03/2023,4107249-VOUCHER20NB-STAN043,"6,000.00",PACT HOUSE STANLEY.
Regeneration Economy and Growth,Corporate Property and Land,Supplies and Services,304221,Equipment and Materials,06/03/2023,4107250-XL297190,982.61,PARK ELECTRICAL DISTRIBUTORS LTD.
Neighbourhoods and Climate Change,Highways,Stock A926,926900,Stock in hand-Inventory system,06/03/2023,4107250-XL297244,"2,289.30",PARK ELECTRICAL DISTRIBUTORS LTD.
Adult and Health Services,Head of Adults,Supplies and Services,338089,Services,06/03/2023,4107253-INV-0025,"1,155.00",PEER HUB COMMUNITY INTEREST COMPANY.
Resources BK0010,Digital Services,Supplies and Services,342033,Computers and Communications,06/03/2023,4107256-100979,"1,693.60",PETERLEE FIRE CO LTD.
Children and Young Peoples Services,Head of Education and Skills,Supplies and Services,312009,Newspapers books and periodicals E312,06/03/2023,4107257-1968607,"1,531.20",PETERS LTD.
Adult and Health Services,Head of Adults,Third Party Payments,479102,Purchase of Care,06/03/2023,4107265-INV-0062A,"1,032.50",POSITIVE CARE & SUPPORT LTD.
Adult and Health Services,Head of Adults,Third Party Payments,479102,Purchase of Care,06/03/2023,4107265-INV-0067A,"1,032.50",POSITIVE CARE & SUPPORT LTD.
Adult and Health Services,Head of Adults,Third Party Payments,479102,Purchase of Care,06/03/2023,4107265-INV-0073A,"1,032.50",POSITIVE CARE & SUPPORT LTD.
Adult and Health Services,Head of Adults,Third Party Payments,479102,Purchase of Care,06/03/2023,4107265-INV-0080A,"1,032.50",POSITIVE CARE & SUPPORT LTD.
Resources BK0010,Digital Services,Supplies and Services,308011,Furniture,06/03/2023,4107266-INV1067534,698.75,POSTURITE (UK) LTD.
Resources BK0010,Digital Services,Supplies and Services,332029,Printing Stationery and Gen Off Exps,06/03/2023,4107267-714177,868.00,POTTS PRINTERS LTD.
Neighbourhoods and Climate Change,Highways,Supplies and Services,304221,Equipment and Materials,06/03/2023,4107271-125895,575.07,PROTEUS EQUIPMENT LTD.
Neighbourhoods and Climate Change,Highways,Supplies and Services,304221,Equipment and Materials,06/03/2023,4107271-125896,575.07,PROTEUS EQUIPMENT LTD.
Children and Young Peoples Services,Head of Childrens Social Care,Supplies and Services,338044,Services,06/03/2023,4107273-22496/1,839.80,PSYCHREP UK LTD.
Regeneration Economy and Growth,Corporate Property and Land,Third Party Payments,430100,Rendered by Private Contractors,06/03/2023,4107284-74988,"3,800.00",RJ UTILITY SERVICES LTD.
Regeneration Economy and Growth,Corporate Property and Land,Third Party Payments,430100,Rendered by Private Contractors,06/03/2023,4107284-74989,780.00,RJ UTILITY SERVICES LTD.
Regeneration Economy and Growth,Corporate Property and Land,Third Party Payments,430100,Rendered by Private Contractors,06/03/2023,4107284-74990,"1,380.00",RJ UTILITY SERVICES LTD.
Regeneration Economy and Growth,Corporate Property and Land,Third Party Payments,430100,Rendered by Private Contractors,06/03/2023,4107284-74991,890.00,RJ UTILITY SERVICES LTD.
Regeneration Economy and Growth,Corporate Property and Land,Third Party Payments,430100,Rendered by Private Contractors,06/03/2023,4107284-74993,"3,480.00",RJ UTILITY SERVICES LTD.
Regeneration Economy and Growth,Culture Sport and Tourism,Construction work A908,908105,Construction work,06/03/2023,4107293-7286,"28,905.00",SAFE STRIP UK LTD.
Neighbourhoods and Climate Change,Partnerships & Community Engagement Div.,Premises,108099,Service Repairs and Maintenance,06/03/2023,4107293-7308,650.00,SAFE STRIP UK LTD.
Regeneration Economy and Growth,Business Durham CL0850,Supplies and Services,338078,Services,06/03/2023,4107294-17493,"2,824.08",SAFEGUARD SECURITY (NE) LTD.
Neighbourhoods and Climate Change,Partnerships & Community Engagement Div.,Supplies and Services,384086,Miscellaneous Expenses,06/03/2023,4107302-VOUCHER22NB-EDUR037,"1,500.00",SEAHAM ROSEBERRY PARK FOOTBALL CLUB.
Neighbourhoods and Climate Change,Environmental Services,Supplies and Services,304259,Equipment and Materials,06/03/2023,4107312-INV451702,950.00,SNOWBALLS LTD.
Children and Young Peoples Services,Head of Education and Skills,Supplies and Services,384199,Miscellaneous Expenses,06/03/2023,4107317-14749,"56,500.00",SPRINGBOARD SUNDERLAND TRUST.
Resources BK0010,Digital Services,Supplies and Services,342033,Computers and Communications,06/03/2023,4107327-143618,"38,903.48",SWITCHSHOP LTD.
Regeneration Economy and Growth,Corporate Property and Land,Supplies and Services,304221,Equipment and Materials,06/03/2023,4107328-950648,"1,966.17",T CROSSLING & CO LTD.
Regeneration Economy and Growth,Corporate Property and Land,Supplies and Services,304221,Equipment and Materials,06/03/2023,4107328-950809,695.10,T CROSSLING & CO LTD.
Regeneration Economy and Growth,Corporate Property and Land,Supplies and Services,304221,Equipment and Materials,06/03/2023,4107328-950814,873.41,T CROSSLING & CO LTD.
Regeneration Economy and Growth,Corporate Property and Land,Supplies and Services,304221,Equipment and Materials,06/03/2023,4107328-951563,"2,090.58",T CROSSLING & CO LTD.
Regeneration Economy and Growth,Corporate Property and Land,Supplies and Services,304221,Equipment and Materials,06/03/2023,4107328-951820,666.01,T CROSSLING & CO LTD.
Regeneration Economy and Growth,Transport and Contracted Services,Third Party Payments,430100,Rendered by Private Contractors,06/03/2023,4107329-INV-31889,"2,304.78",T3 SECURITY LTD.
Regeneration Economy and Growth,Transport and Contracted Services,Third Party Payments,430100,Rendered by Private Contractors,06/03/2023,4107329-INV-31890,"1,791.81",T3 SECURITY LTD.
Regeneration Economy and Growth,Corporate Property and Land,Supplies and Services,304221,Equipment and Materials,06/03/2023,4107330-0000158958,589.04,TA PLASTIC SUPPLIES LTD.
Neighbourhoods and Climate Change,Highways,Stock A926,926900,Stock in hand-Inventory system,06/03/2023,4107332-9046491156,"1,081.72",TARMAC TRADING LTD.
Neighbourhoods and Climate Change,Highways,Stock A926,926900,Stock in hand-Inventory system,06/03/2023,4107332-9046498239,"1,051.12",TARMAC TRADING LTD.
Neighbourhoods and Climate Change,Highways,Supplies and Services,304221,Equipment and Materials,06/03/2023,4107332-9046505887,831.46,TARMAC TRADING LTD.
Neighbourhoods and Climate Change,Partnerships & Community Engagement Div.,Supplies and Services,384086,Miscellaneous Expenses,06/03/2023,4107338-VOUCHERGRIJ09-22,583.00,THE COMMUNITY CLUB.
Children and Young Peoples Services,Head of Education and Skills,Supplies and Services,384199,Miscellaneous Expenses,06/03/2023,4107343-INV-3655,"1,209.75",THE WORK PLACE (AYCLIFFE) LTD.
Neighbourhoods and Climate Change,Environmental Services,Transport,210057,Repair and Maintenance of Vehicles,06/03/2023,4107346-2054199,650.93,THOMPSON COMMERCIALS LTD.
Neighbourhoods and Climate Change,Highways,Supplies and Services,304221,Equipment and Materials,06/03/2023,4107348-119480,"4,917.71",TOFCO LTD.
Regeneration Economy and Growth,Corporate Property and Land,Supplies and Services,304221,Equipment and Materials,06/03/2023,4107352-10970509,579.54,TRADECHOICE DISTRIBUTION LTD.
Regeneration Economy and Growth,Planning & Housing,Supplies and Services,304245,Equipment and Materials,06/03/2023,4107357-CD970008489,"2,080.00",TUNSTALL HEALTHCARE (UK) LTD.
Neighbourhoods and Climate Change,Highways,Supplies and Services,304221,Equipment and Materials,06/03/2023,4107358-242657,803.91,TYNEDALE ROADSTONE LTD.
Neighbourhoods and Climate Change,Highways,Supplies and Services,304221,Equipment and Materials,06/03/2023,4107358-242831,921.03,TYNEDALE ROADSTONE LTD.
Neighbourhoods and Climate Change,Highways,Supplies and Services,304221,Equipment and Materials,06/03/2023,4107358-242832,"2,172.85",TYNEDALE ROADSTONE LTD.
Neighbourhoods and Climate Change,Highways,Supplies and Services,304221,Equipment and Materials,06/03/2023,4107358-242833,"1,586.16",TYNEDALE ROADSTONE LTD.
Neighbourhoods and Climate Change,Highways,Supplies and Services,304221,Equipment and Materials,06/03/2023,4107358-242834,790.65,TYNEDALE ROADSTONE LTD.
Neighbourhoods and Climate Change,Highways,Supplies and Services,304221,Equipment and Materials,06/03/2023,4107358-242836,"2,084.50",TYNEDALE ROADSTONE LTD.
Neighbourhoods and Climate Change,Highways,Supplies and Services,304221,Equipment and Materials,06/03/2023,4107358-242837,528.26,TYNEDALE ROADSTONE LTD.
Neighbourhoods and Climate Change,Highways,Supplies and Services,304221,Equipment and Materials,06/03/2023,4107358-242838,"1,601.06",TYNEDALE ROADSTONE LTD.
Neighbourhoods and Climate Change,Highways,Supplies and Services,304221,Equipment and Materials,06/03/2023,4107358-242839,"2,494.37",TYNEDALE ROADSTONE LTD.
Children and Young Peoples Services,Head of Early Help Inclusion & Vulnerable Children.,Supplies and Services,344033,Telephones,06/03/2023,4107359-209246,572.70,UNIFY BUSINESS SOLUTIONS LTD.
Neighbourhoods and Climate Change,Highways,Third Party Payments,430127,Rendered by Private Contractors,06/03/2023,4107365-51677,620.00,W MARLEY AGRICULTURAL CONTRACTORS LTD.
Regeneration Economy and Growth,Culture Sport and Tourism,Supplies and Services,338047,Services,06/03/2023,4107366-2028250,"1,814.25",WALT DISNEY CO LTD.
Adult and Health Services,Head of Adults,Supplies and Services,338365,Services,06/03/2023,4107375-11/F,560.00,WEST HALL BOARDING KENNELS.
Regeneration Economy and Growth,Corporate Property and Land,Supplies and Services,304221,Equipment and Materials,06/03/2023,4107380-87739761,"3,641.28",WOLSELEY UK LTD.
Regeneration Economy and Growth,Corporate Property and Land,Supplies and Services,304221,Equipment and Materials,06/03/2023,4107380-87774932,865.38,WOLSELEY UK LTD.
Neighbourhoods and Climate Change,Highways,Stock A926,926900,Stock in hand-Inventory system,06/03/2023,4107383-1105219,803.34,YOUR NRG LTD.
Regeneration Economy and Growth,Transport and Contracted Services,Construction work A908,908105,Construction work,06/03/2023,4107385-1120027379,"14,947.60",YUNEX LTD T/A YUNEX TRAFFIC.
Neighbourhoods and Climate Change,Highways,Stock A926,926900,Stock in hand-Inventory system,06/03/2023,4107386-145513305,"3,406.00",ZG LIGHTING (UK) LTD.
Neighbourhoods and Climate Change,Environmental Services,Supplies and Services,304259,Equipment and Materials,07/03/2023,4108107-021223115147,"1,930.00",REDACTED - PAYMENT TO INDIVIDUAL
Neighbourhoods and Climate Change,Environmental Services,Supplies and Services,304259,Equipment and Materials,07/03/2023,4108107-021223115148,"2,642.25",REDACTED - PAYMENT TO INDIVIDUAL
Neighbourhoods and Climate Change,Environmental Services,Supplies and Services,304259,Equipment and Materials,07/03/2023,4108107-021223115151,"3,050.40",REDACTED - PAYMENT TO INDIVIDUAL
Neighbourhoods and Climate Change,Environmental Services,Supplies and Services,304259,Equipment and Materials,07/03/2023,4108107-021223115153,"1,915.00",REDACTED - PAYMENT TO INDIVIDUAL
Neighbourhoods and Climate Change,Environmental Services,Supplies and Services,304259,Equipment and Materials,07/03/2023,4108107-021223115154,883.50,REDACTED - PAYMENT TO INDIVIDUAL
Regeneration Economy and Growth,Culture Sport and Tourism,Supplies and Services,338047,Services,07/03/2023,4108170-GALATHEATRE-24/2/23,502.95,REDACTED - PAYMENT TO INDIVIDUAL
Regeneration Economy and Growth,Planning & Housing,Supplies and Services,384999,Miscellaneous Expenses,07/03/2023,4107975-8NINTHSTREETHORDEN,620.00,CASTLEDENE SALES & LETTINGS.
Adult and Health Services,Head of Adults,Supplies and Services,342051,Computers and Communications,07/03/2023,4108172-0000007536,"1,650.00",PERMANENT FUTURES LTD.
Regeneration Economy and Growth,Corporate Property and Land,Supplies and Services,304221,Equipment and Materials,07/03/2023,4108207-714560224425,603.10,SIG TRADING LTD T/A SIG ROOFING.
Children and Young Peoples Services,Head of Education and Skills,Transport,230008,Contract Hire,07/03/2023,4107939-00931,"2,965.05",REDACTED - PAYMENT TO INDIVIDUAL
Adult and Health Services,Head of Adults,Transport,230005,Contract Hire,07/03/2023,4107939-00932,"3,000.00",REDACTED - PAYMENT TO INDIVIDUAL
Children and Young Peoples Services,Head of Education and Skills,Transport,230016,Contract Hire,07/03/2023,4107939-00933,"2,541.30",REDACTED - PAYMENT TO INDIVIDUAL
Children and Young Peoples Services,Head of Education and Skills,Transport,230012,Contract Hire,07/03/2023,4107939-00934,"2,613.00",REDACTED - PAYMENT TO INDIVIDUAL
Children and Young Peoples Services,Head of Education and Skills,Transport,230008,Contract Hire,07/03/2023,4107939-00935,"2,427.75",REDACTED - PAYMENT TO INDIVIDUAL
Children and Young Peoples Services,Head of Education and Skills,Transport,230008,Contract Hire,07/03/2023,4107939-00936,"3,270.00",REDACTED - PAYMENT TO INDIVIDUAL
Children and Young Peoples Services,Head of Education and Skills,Transport,230006,Contract Hire,07/03/2023,4107939-00939,"1,107.00",REDACTED - PAYMENT TO INDIVIDUAL
Children and Young Peoples Services,Head of Education and Skills,Transport,230008,Contract Hire,07/03/2023,4107939-00940,"2,070.00",REDACTED - PAYMENT TO INDIVIDUAL
Children and Young Peoples Services,Head of Education and Skills,Transport,230010,Contract Hire,07/03/2023,4107939-00941,"2,490.00",REDACTED - PAYMENT TO INDIVIDUAL
Children and Young Peoples Services,Head of Education and Skills,Transport,230016,Contract Hire,07/03/2023,4107939-00942,"2,370.00",REDACTED - PAYMENT TO INDIVIDUAL
Children and Young Peoples Services,Head of Education and Skills,Transport,230008,Contract Hire,07/03/2023,4107939-00943,"1,950.00",REDACTED - PAYMENT TO INDIVIDUAL
Children and Young Peoples Services,Head of Education and Skills,Transport,230006,Contract Hire,07/03/2023,4107939-00944,852.00,REDACTED - PAYMENT TO INDIVIDUAL
Children and Young Peoples Services,Head of Education and Skills,Transport,230006,Contract Hire,07/03/2023,4107939-00945,"1,470.00",REDACTED - PAYMENT TO INDIVIDUAL
Children and Young Peoples Services,Head of Education and Skills,Transport,230008,Contract Hire,07/03/2023,4107939-00946,"3,120.00",REDACTED - PAYMENT TO INDIVIDUAL
Children and Young Peoples Services,Head of Education and Skills,Transport,230016,Contract Hire,07/03/2023,4107939-00947,"2,670.00",REDACTED - PAYMENT TO INDIVIDUAL
Children and Young Peoples Services,Head of Education and Skills,Transport,230006,Contract Hire,07/03/2023,4107939-00948,"1,512.00",REDACTED - PAYMENT TO INDIVIDUAL
Children and Young Peoples Services,Head of Education and Skills,Transport,230034,Contract Hire,07/03/2023,4107939-00949,"2,764.80",REDACTED - PAYMENT TO INDIVIDUAL
Children and Young Peoples Services,Head of Education and Skills,Transport,230006,Contract Hire,07/03/2023,4107970-6/2,"1,999.65",REDACTED - PAYMENT TO INDIVIDUAL
Children and Young Peoples Services,Head of Education and Skills,Transport,230034,Contract Hire,07/03/2023,4107973-BIL0301,"2,628.00",REDACTED - PAYMENT TO INDIVIDUAL
Children and Young Peoples Services,Head of Education and Skills,Transport,230009,Contract Hire,07/03/2023,4107973-BIL0302,513.60,REDACTED - PAYMENT TO INDIVIDUAL
Children and Young Peoples Services,Head of Education and Skills,Transport,230008,Contract Hire,07/03/2023,4107973-BIL0303,"1,017.66",REDACTED - PAYMENT TO INDIVIDUAL
Adult and Health Services,Head of Adults,Transport,230005,Contract Hire,07/03/2023,4107982-EAS199-FEB23,"1,090.00",REDACTED - PAYMENT TO INDIVIDUAL
Children and Young Peoples Services,Head of Education and Skills,Transport,230007,Contract Hire,07/03/2023,4107985-47653,"2,399.70",REDACTED - PAYMENT TO INDIVIDUAL
Children and Young Peoples Services,Head of Education and Skills,Transport,230003,Contract Hire,07/03/2023,4107985-47654,"2,712.75",REDACTED - PAYMENT TO INDIVIDUAL
Children and Young Peoples Services,Head of Education and Skills,Transport,230003,Contract Hire,07/03/2023,4107985-47655,"2,511.15",REDACTED - PAYMENT TO INDIVIDUAL
Children and Young Peoples Services,Head of Education and Skills,Transport,230003,Contract Hire,07/03/2023,4107985-47656,"2,535.00",REDACTED - PAYMENT TO INDIVIDUAL
Children and Young Peoples Services,Head of Education and Skills,Transport,230007,Contract Hire,07/03/2023,4107985-47657,"4,374.45",REDACTED - PAYMENT TO INDIVIDUAL
Children and Young Peoples Services,Head of Education and Skills,Transport,230003,Contract Hire,07/03/2023,4107985-47658,"2,639.55",REDACTED - PAYMENT TO INDIVIDUAL
Regeneration Economy and Growth,Culture Sport and Tourism,Supplies and Services,384199,Miscellaneous Expenses,07/03/2023,4108012-SGA00880I,"1,250.00",REDACTED - PAYMENT TO INDIVIDUAL
Children and Young Peoples Services,Head of Education and Skills,Transport,230006,Contract Hire,07/03/2023,4108042-20/2,"1,366.41",REDACTED - PAYMENT TO INDIVIDUAL
Children and Young Peoples Services,Head of Education and Skills,Transport,230006,Contract Hire,07/03/2023,4108042-21/2,"2,577.33",REDACTED - PAYMENT TO INDIVIDUAL
Children and Young Peoples Services,Head of Education and Skills,Transport,230006,Contract Hire,07/03/2023,4108044-85,"1,517.13",REDACTED - PAYMENT TO INDIVIDUAL
Adult and Health Services,Head of Adults,Transport,230005,Contract Hire,07/03/2023,4108044-88,800.00,REDACTED - PAYMENT TO INDIVIDUAL
Children and Young Peoples Services,Head of Education and Skills,Transport,230007,Contract Hire,07/03/2023,4108059-06-FEB23,796.65,REDACTED - PAYMENT TO INDIVIDUAL
Adult and Health Services,Head of Adults,Transport,230005,Contract Hire,07/03/2023,4108059-17-CLS086,603.60,REDACTED - PAYMENT TO INDIVIDUAL
Children and Young Peoples Services,Head of Education and Skills,Transport,230006,Contract Hire,07/03/2023,4108059-17-FEB23,"1,464.72",REDACTED - PAYMENT TO INDIVIDUAL
Children and Young Peoples Services,Head of Education and Skills,Transport,230009,Contract Hire,07/03/2023,4108078-FEB23-F00,789.25,REDACTED - PAYMENT TO INDIVIDUAL
Children and Young Peoples Services,Head of Education and Skills,Transport,230006,Contract Hire,07/03/2023,4108086-DCC06,"1,875.00",REDACTED - PAYMENT TO INDIVIDUAL
Children and Young Peoples Services,Head of Education and Skills,Transport,230007,Contract Hire,07/03/2023,4108086-DCCDA05,"1,370.55",REDACTED - PAYMENT TO INDIVIDUAL
Neighbourhoods and Climate Change,Environmental Services,Supplies and Services,338066,Services,07/03/2023,4108094-37/23,"2,800.00",REDACTED - PAYMENT TO INDIVIDUAL
Adult and Health Services,Head of Adults,Transport,230005,Contract Hire,07/03/2023,4108096-01022023,"1,253.78",REDACTED - PAYMENT TO INDIVIDUAL
Children and Young Peoples Services,Head of Education and Skills,Transport,230009,Contract Hire,07/03/2023,4108097-0004-FEB23,"1,837.53",REDACTED - PAYMENT TO INDIVIDUAL
Children and Young Peoples Services,Head of Education and Skills,Transport,230007,Contract Hire,07/03/2023,4108097-0006-FEB23,"1,335.00",REDACTED - PAYMENT TO INDIVIDUAL
Children and Young Peoples Services,Head of Education and Skills,Transport,230008,Contract Hire,07/03/2023,4108097-0048,"2,236.05",REDACTED - PAYMENT TO INDIVIDUAL
Children and Young Peoples Services,Head of Education and Skills,Transport,230034,Contract Hire,07/03/2023,4108106-FEB23-4522,"1,935.00",REDACTED - PAYMENT TO INDIVIDUAL
Children and Young Peoples Services,Head of Education and Skills,Transport,230009,Contract Hire,07/03/2023,4108106-FEB23-7312,"1,470.00",REDACTED - PAYMENT TO INDIVIDUAL
Children and Young Peoples Services,Head of Education and Skills,Transport,230006,Contract Hire,07/03/2023,4108106-FEB23-F109,"1,830.00",REDACTED - PAYMENT TO INDIVIDUAL
Dedicated Schools Grant BG0015,DSG High Needs Block,Transport,230009,Contract Hire,07/03/2023,4108108-004-A,"1,985.96",REDACTED - PAYMENT TO INDIVIDUAL
Children and Young Peoples Services,Head of Education and Skills,Transport,230007,Contract Hire,07/03/2023,4108111-007-FEB23,947.20,REDACTED - PAYMENT TO INDIVIDUAL
Children and Young Peoples Services,Head of Education and Skills,Transport,230006,Contract Hire,07/03/2023,4108124-280223,"1,428.00",REDACTED - PAYMENT TO INDIVIDUAL
Children and Young Peoples Services,Head of Education and Skills,Transport,230006,Contract Hire,07/03/2023,4108124-280223-F216,"2,428.80",REDACTED - PAYMENT TO INDIVIDUAL
Children and Young Peoples Services,Head of Education and Skills,Transport,230010,Contract Hire,07/03/2023,4108125-KC-3843,690.00,REDACTED - PAYMENT TO INDIVIDUAL
Children and Young Peoples Services,Head of Education and Skills,Transport,230008,Contract Hire,07/03/2023,4108125-KC-3846,"2,887.50",REDACTED - PAYMENT TO INDIVIDUAL
Children and Young Peoples Services,Head of Education and Skills,Transport,230008,Contract Hire,07/03/2023,4108125-KC-3847,501.87,REDACTED - PAYMENT TO INDIVIDUAL
Children and Young Peoples Services,Head of Education and Skills,Transport,230009,Contract Hire,07/03/2023,4108125-KC3842,899.25,REDACTED - PAYMENT TO INDIVIDUAL
Children and Young Peoples Services,Head of Education and Skills,Transport,230008,Contract Hire,07/03/2023,4108125-KC3844,"1,836.45",REDACTED - PAYMENT TO INDIVIDUAL
Children and Young Peoples Services,Head of Education and Skills,Transport,230008,Contract Hire,07/03/2023,4108126-17-M125,821.26,REDACTED - PAYMENT TO INDIVIDUAL
Children and Young Peoples Services,Head of Education and Skills,Transport,230006,Contract Hire,07/03/2023,4108132-INV261,"1,197.00",REDACTED - PAYMENT TO INDIVIDUAL
Children and Young Peoples Services,Head of Education and Skills,Transport,230008,Contract Hire,07/03/2023,4108132-INV262,"1,650.00",REDACTED - PAYMENT TO INDIVIDUAL
Children and Young Peoples Services,Head of Education and Skills,Transport,230008,Contract Hire,07/03/2023,4108136-KDC-01022023,"1,524.34",REDACTED - PAYMENT TO INDIVIDUAL
Children and Young Peoples Services,Head of Education and Skills,Transport,230034,Contract Hire,07/03/2023,4108138-258-FEB23,"1,920.00",REDACTED - PAYMENT TO INDIVIDUAL
Children and Young Peoples Services,Head of Education and Skills,Transport,230007,Contract Hire,07/03/2023,4108139-DURHAMGATEWAYFEB282023,762.48,REDACTED - PAYMENT TO INDIVIDUAL
Adult and Health Services,Head of Adults,Transport,230005,Contract Hire,07/03/2023,4108139-THORFEB282023,"1,271.97",REDACTED - PAYMENT TO INDIVIDUAL
Children and Young Peoples Services,Head of Education and Skills,Transport,230035,Contract Hire,07/03/2023,4108139-WHITFEB282023,985.13,REDACTED - PAYMENT TO INDIVIDUAL
Children and Young Peoples Services,Head of Education and Skills,Transport,230008,Contract Hire,07/03/2023,4108140-N043D,"2,285.92",REDACTED - PAYMENT TO INDIVIDUAL
Children and Young Peoples Services,Head of Education and Skills,Transport,230007,Contract Hire,07/03/2023,4108141-FEB23-3423,712.35,REDACTED - PAYMENT TO INDIVIDUAL
Children and Young Peoples Services,Head of Education and Skills,Transport,230007,Contract Hire,07/03/2023,4108141-FEB23-6046,975.00,REDACTED - PAYMENT TO INDIVIDUAL
Children and Young Peoples Services,Head of Education and Skills,Transport,230016,Contract Hire,07/03/2023,4108142-AK/02/23,"1,950.00",REDACTED - PAYMENT TO INDIVIDUAL
Children and Young Peoples Services,Head of Education and Skills,Transport,230007,Contract Hire,07/03/2023,4108142-BR/02/23,784.52,REDACTED - PAYMENT TO INDIVIDUAL
Children and Young Peoples Services,Head of Education and Skills,Transport,230007,Contract Hire,07/03/2023,4108143-262,"1,603.50",REDACTED - PAYMENT TO INDIVIDUAL
Children and Young Peoples Services,Head of Education and Skills,Transport,230006,Contract Hire,07/03/2023,4108143-263,"1,624.00",REDACTED - PAYMENT TO INDIVIDUAL
Children and Young Peoples Services,Head of Education and Skills,Transport,230008,Contract Hire,07/03/2023,4108144-35-FEB23,"3,744.00",REDACTED - PAYMENT TO INDIVIDUAL
Children and Young Peoples Services,Head of Education and Skills,Transport,230008,Contract Hire,07/03/2023,4108145-A026-FEB23,"2,123.25",REDACTED - PAYMENT TO INDIVIDUAL
Children and Young Peoples Services,Head of Education and Skills,Transport,230008,Contract Hire,07/03/2023,4108145-S020-FEB23,"2,170.14",REDACTED - PAYMENT TO INDIVIDUAL
Children and Young Peoples Services,Head of Education and Skills,Transport,230008,Contract Hire,07/03/2023,4108145-S103-FEB23,"1,219.39",REDACTED - PAYMENT TO INDIVIDUAL
Children and Young Peoples Services,Head of Education and Skills,Transport,230008,Contract Hire,07/03/2023,4108146-441,"2,349.00",REDACTED - PAYMENT TO INDIVIDUAL
Children and Young Peoples Services,Head of Education and Skills,Transport,230009,Contract Hire,07/03/2023,4108146-453,"1,284.64",REDACTED - PAYMENT TO INDIVIDUAL
Children and Young Peoples Services,Head of Education and Skills,Transport,230007,Contract Hire,07/03/2023,4108147-ESH0223,"1,119.90",REDACTED - PAYMENT TO INDIVIDUAL
Children and Young Peoples Services,Head of Education and Skills,Transport,230010,Contract Hire,07/03/2023,4108147-FERRY0223,"1,795.74",REDACTED - PAYMENT TO INDIVIDUAL
Children and Young Peoples Services,Head of Education and Skills,Transport,230010,Contract Hire,07/03/2023,4108147-FERRY02R,981.00,REDACTED - PAYMENT TO INDIVIDUAL
Children and Young Peoples Services,Head of Education and Skills,Transport,230035,Contract Hire,07/03/2023,4108149-215523,"1,387.00",REDACTED - PAYMENT TO INDIVIDUAL
Children and Young Peoples Services,Head of Education and Skills,Transport,230006,Contract Hire,07/03/2023,4108149-215524,"2,756.97",REDACTED - PAYMENT TO INDIVIDUAL
Children and Young Peoples Services,Head of Education and Skills,Transport,230035,Contract Hire,07/03/2023,4108149-215525,"1,606.95",REDACTED - PAYMENT TO INDIVIDUAL
Children and Young Peoples Services,Head of Education and Skills,Transport,230007,Contract Hire,07/03/2023,4108149-215526,783.00,REDACTED - PAYMENT TO INDIVIDUAL
Children and Young Peoples Services,Head of Education and Skills,Transport,230008,Contract Hire,07/03/2023,4108149-215527,"1,904.00",REDACTED - PAYMENT TO INDIVIDUAL
Children and Young Peoples Services,Head of Education and Skills,Transport,230008,Contract Hire,07/03/2023,4108149-215528,"2,475.00",REDACTED - PAYMENT TO INDIVIDUAL
Children and Young Peoples Services,Head of Education and Skills,Transport,230034,Contract Hire,07/03/2023,4108153-DCC-005-23,"1,750.00",REDACTED - PAYMENT TO INDIVIDUAL
Children and Young Peoples Services,Head of Education and Skills,Transport,230006,Contract Hire,07/03/2023,4108153-DCC-005-23-F882,"1,229.76",REDACTED - PAYMENT TO INDIVIDUAL
Children and Young Peoples Services,Head of Education and Skills,Transport,230006,Contract Hire,07/03/2023,4108153-DCC/005/23-F276,"1,260.00",REDACTED - PAYMENT TO INDIVIDUAL
Children and Young Peoples Services,Head of Education and Skills,Transport,230009,Contract Hire,07/03/2023,4108153-DCC/006/23,"1,699.22",REDACTED - PAYMENT TO INDIVIDUAL
Children and Young Peoples Services,Head of Education and Skills,Transport,230007,Contract Hire,07/03/2023,4108169-SC-209,"2,374.80",REDACTED - PAYMENT TO INDIVIDUAL
Children and Young Peoples Services,Head of Education and Skills,Transport,230007,Contract Hire,07/03/2023,4108171-4507-FEB23,"1,950.00",REDACTED - PAYMENT TO INDIVIDUAL
Adult and Health Services,Head of Adults,Transport,230005,Contract Hire,07/03/2023,4108171-DM229-FEB23,660.00,REDACTED - PAYMENT TO INDIVIDUAL
Children and Young Peoples Services,Head of Education and Skills,Transport,230006,Contract Hire,07/03/2023,4108171-F741-FEB23,"2,626.65",REDACTED - PAYMENT TO INDIVIDUAL
Children and Young Peoples Services,Head of Education and Skills,Transport,230008,Contract Hire,07/03/2023,4108171-M014-FEB23,"2,224.74",REDACTED - PAYMENT TO INDIVIDUAL
Children and Young Peoples Services,Head of Education and Skills,Transport,230008,Contract Hire,07/03/2023,4108171-N023-FEB23,"2,130.24",REDACTED - PAYMENT TO INDIVIDUAL
Children and Young Peoples Services,Head of Education and Skills,Transport,230035,Contract Hire,07/03/2023,4108173-4530-FEB23,"1,335.00",REDACTED - PAYMENT TO INDIVIDUAL
Children and Young Peoples Services,Head of Education and Skills,Transport,230008,Contract Hire,07/03/2023,4108173-A028-FEB23,"4,352.10",REDACTED - PAYMENT TO INDIVIDUAL
Children and Young Peoples Services,Head of Education and Skills,Transport,230008,Contract Hire,07/03/2023,4108173-A059-FEB23,"3,417.00",REDACTED - PAYMENT TO INDIVIDUAL
Children and Young Peoples Services,Head of Education and Skills,Transport,230008,Contract Hire,07/03/2023,4108173-A072-FEB23,"2,940.00",REDACTED - PAYMENT TO INDIVIDUAL
Children and Young Peoples Services,Head of Education and Skills,Transport,230008,Contract Hire,07/03/2023,4108173-A191-FEB23,"4,044.00",REDACTED - PAYMENT TO INDIVIDUAL
Adult and Health Services,Head of Adults,Transport,230005,Contract Hire,07/03/2023,4108173-DM221-FEB23,"2,120.00",REDACTED - PAYMENT TO INDIVIDUAL
Children and Young Peoples Services,Head of Education and Skills,Transport,230008,Contract Hire,07/03/2023,4108173-E014-FEB23,"1,844.55",REDACTED - PAYMENT TO INDIVIDUAL
Children and Young Peoples Services,Head of Education and Skills,Transport,230008,Contract Hire,07/03/2023,4108173-E025-FEB23,"2,005.05",REDACTED - PAYMENT TO INDIVIDUAL
Children and Young Peoples Services,Head of Education and Skills,Transport,230008,Contract Hire,07/03/2023,4108173-E051-FEB23,"2,159.70",REDACTED - PAYMENT TO INDIVIDUAL
Children and Young Peoples Services,Head of Education and Skills,Transport,230008,Contract Hire,07/03/2023,4108173-E061-FEB23,"2,826.45",REDACTED - PAYMENT TO INDIVIDUAL
Children and Young Peoples Services,Head of Education and Skills,Transport,230008,Contract Hire,07/03/2023,4108173-E072-FEB23,"3,148.20",REDACTED - PAYMENT TO INDIVIDUAL
Children and Young Peoples Services,Head of Education and Skills,Transport,230006,Contract Hire,07/03/2023,4108173-F180-FEB23,891.00,REDACTED - PAYMENT TO INDIVIDUAL
Children and Young Peoples Services,Head of Education and Skills,Transport,230006,Contract Hire,07/03/2023,4108173-F234-FEB23,"1,125.00",REDACTED - PAYMENT TO INDIVIDUAL
Adult and Health Services,Head of Adults,Transport,230005,Contract Hire,07/03/2023,4108173-SED121-FEB23,"1,240.00",REDACTED - PAYMENT TO INDIVIDUAL
Adult and Health Services,Head of Adults,Transport,230005,Contract Hire,07/03/2023,4108173-SLD011-FEB23,"1,302.30",REDACTED - PAYMENT TO INDIVIDUAL
Children and Young Peoples Services,Head of Education and Skills,Transport,230034,Contract Hire,07/03/2023,4108187-FEB23-6081,"3,000.00",REDACTED - PAYMENT TO INDIVIDUAL
Children and Young Peoples Services,Head of Education and Skills,Transport,230007,Contract Hire,07/03/2023,4108213-FEB23-5290-A,628.72,REDACTED - PAYMENT TO INDIVIDUAL
Children and Young Peoples Services,Head of Education and Skills,Transport,230007,Contract Hire,07/03/2023,4108213-FEB23-5290-B,523.95,REDACTED - PAYMENT TO INDIVIDUAL
Children and Young Peoples Services,Head of Education and Skills,Transport,230007,Contract Hire,07/03/2023,4108214-6951,"1,574.58",REDACTED - PAYMENT TO INDIVIDUAL
Children and Young Peoples Services,Head of Education and Skills,Transport,230007,Contract Hire,07/03/2023,4108214-6952,"5,632.05",REDACTED - PAYMENT TO INDIVIDUAL
Children and Young Peoples Services,Head of Education and Skills,Transport,230006,Contract Hire,07/03/2023,4108215-027-FEB23,"2,166.56",REDACTED - PAYMENT TO INDIVIDUAL
Children and Young Peoples Services,Head of Education and Skills,Transport,230009,Contract Hire,07/03/2023,4108215-028-FEB23,"2,221.58",REDACTED - PAYMENT TO INDIVIDUAL
Children and Young Peoples Services,Head of Education and Skills,Transport,230008,Contract Hire,07/03/2023,4108228-0002421,"3,836.70",REDACTED - PAYMENT TO INDIVIDUAL
Children and Young Peoples Services,Head of Education and Skills,Transport,230008,Contract Hire,07/03/2023,4108228-0002442,"1,604.55",REDACTED - PAYMENT TO INDIVIDUAL
Children and Young Peoples Services,Head of Education and Skills,Transport,230008,Contract Hire,07/03/2023,4108228-0002444,"2,959.50",REDACTED - PAYMENT TO INDIVIDUAL
Children and Young Peoples Services,Head of Education and Skills,Transport,230035,Contract Hire,07/03/2023,4108240-2233493,"1,217.14",REDACTED - PAYMENT TO INDIVIDUAL
Children and Young Peoples Services,Head of Education and Skills,Transport,230007,Contract Hire,07/03/2023,4107920-22301-1,"1,599.45",24/7 TAXI SERVICES (PETERLEE) LTD.
Children and Young Peoples Services,Head of Education and Skills,Transport,230035,Contract Hire,07/03/2023,4107920-22305-1,"1,169.20",24/7 TAXI SERVICES (PETERLEE) LTD.
Children and Young Peoples Services,Head of Education and Skills,Transport,230007,Contract Hire,07/03/2023,4107920-22306,"1,282.50",24/7 TAXI SERVICES (PETERLEE) LTD.
Children and Young Peoples Services,Head of Education and Skills,Transport,230008,Contract Hire,07/03/2023,4107920-22307,"2,385.00",24/7 TAXI SERVICES (PETERLEE) LTD.
Children and Young Peoples Services,Head of Education and Skills,Transport,230006,Contract Hire,07/03/2023,4107920-22308,"2,070.00",24/7 TAXI SERVICES (PETERLEE) LTD.
Adult and Health Services,Head of Adults,Transport,230005,Contract Hire,07/03/2023,4107920-22309,"1,220.16",24/7 TAXI SERVICES (PETERLEE) LTD.
Children and Young Peoples Services,Head of Education and Skills,Transport,230008,Contract Hire,07/03/2023,4107920-22310,"2,385.00",24/7 TAXI SERVICES (PETERLEE) LTD.
Children and Young Peoples Services,Head of Education and Skills,Transport,230008,Contract Hire,07/03/2023,4107920-22311,"3,519.96",24/7 TAXI SERVICES (PETERLEE) LTD.
Children and Young Peoples Services,Head of Education and Skills,Transport,230008,Contract Hire,07/03/2023,4107920-22312,"3,259.26",24/7 TAXI SERVICES (PETERLEE) LTD.
Children and Young Peoples Services,Head of Education and Skills,Transport,230009,Contract Hire,07/03/2023,4107920-22313,"2,761.98",24/7 TAXI SERVICES (PETERLEE) LTD.
Children and Young Peoples Services,Head of Education and Skills,Transport,230008,Contract Hire,07/03/2023,4107920-22314,"3,009.90",24/7 TAXI SERVICES (PETERLEE) LTD.
Children and Young Peoples Services,Head of Education and Skills,Transport,230008,Contract Hire,07/03/2023,4107920-22315,"1,894.10",24/7 TAXI SERVICES (PETERLEE) LTD.
Children and Young Peoples Services,Head of Education and Skills,Transport,230008,Contract Hire,07/03/2023,4107920-22316,"1,618.65",24/7 TAXI SERVICES (PETERLEE) LTD.
Children and Young Peoples Services,Head of Education and Skills,Transport,230008,Contract Hire,07/03/2023,4107920-22317,"2,490.00",24/7 TAXI SERVICES (PETERLEE) LTD.
Children and Young Peoples Services,Head of Education and Skills,Transport,230006,Contract Hire,07/03/2023,4107920-22318,"1,185.00",24/7 TAXI SERVICES (PETERLEE) LTD.
Children and Young Peoples Services,Head of Education and Skills,Transport,230006,Contract Hire,07/03/2023,4107920-22320,"1,353.42",24/7 TAXI SERVICES (PETERLEE) LTD.
Children and Young Peoples Services,Head of Education and Skills,Transport,230009,Contract Hire,07/03/2023,4107920-22321,"1,080.00",24/7 TAXI SERVICES (PETERLEE) LTD.
Adult and Health Services,Head of Adults,Transport,230005,Contract Hire,07/03/2023,4107920-22322,941.31,24/7 TAXI SERVICES (PETERLEE) LTD.
Children and Young Peoples Services,Head of Education and Skills,Transport,230008,Contract Hire,07/03/2023,4107920-22323,"2,900.55",24/7 TAXI SERVICES (PETERLEE) LTD.
Children and Young Peoples Services,Head of Education and Skills,Transport,230034,Contract Hire,07/03/2023,4107924-0223/SA,"1,980.00",AABAT TAXIS.
Children and Young Peoples Services,Head of Education and Skills,Transport,230008,Contract Hire,07/03/2023,4107924-0223/SB,"1,096.20",AABAT TAXIS.
Children and Young Peoples Services,Head of Education and Skills,Transport,230008,Contract Hire,07/03/2023,4107924-0223/SC,"3,080.40",AABAT TAXIS.
Children and Young Peoples Services,Head of Education and Skills,Transport,230008,Contract Hire,07/03/2023,4107924-0223/SD,"1,931.10",AABAT TAXIS.
Children and Young Peoples Services,Head of Education and Skills,Transport,230007,Contract Hire,07/03/2023,4107924-0223/SG,"1,434.45",AABAT TAXIS.
Adult and Health Services,Head of Adults,Transport,230005,Contract Hire,07/03/2023,4107924-0223/SH,"1,520.10",AABAT TAXIS.
Children and Young Peoples Services,Head of Education and Skills,Transport,230008,Contract Hire,07/03/2023,4107924-0223/SJ,"1,091.52",AABAT TAXIS.
Adult and Health Services,Head of Adults,Transport,230005,Contract Hire,07/03/2023,4107924-0223/SK,"2,538.20",AABAT TAXIS.
Children and Young Peoples Services,Head of Education and Skills,Transport,230007,Contract Hire,07/03/2023,4107924-0223/SL,"1,641.60",AABAT TAXIS.
Children and Young Peoples Services,Head of Education and Skills,Transport,230007,Contract Hire,07/03/2023,4107924-0223/SM,"1,911.90",AABAT TAXIS.
Children and Young Peoples Services,Head of Education and Skills,Transport,230007,Contract Hire,07/03/2023,4107924-0223/SO,888.75,AABAT TAXIS.
Children and Young Peoples Services,Head of Education and Skills,Transport,230007,Contract Hire,07/03/2023,4107924-0223/SR,"1,031.40",AABAT TAXIS.
Children and Young Peoples Services,Head of Education and Skills,Transport,230007,Contract Hire,07/03/2023,4107924-0223/SS,"1,110.15",AABAT TAXIS.
Children and Young Peoples Services,Head of Education and Skills,Transport,230010,Contract Hire,07/03/2023,4107926-O586,"2,294.00",ABC & OUSTON CABS.
Children and Young Peoples Services,Head of Education and Skills,Transport,230008,Contract Hire,07/03/2023,4107926-O587,"2,113.00",ABC & OUSTON CABS.
Children and Young Peoples Services,Head of Education and Skills,Transport,230010,Contract Hire,07/03/2023,4107926-O589,"2,351.42",ABC & OUSTON CABS.
Children and Young Peoples Services,Head of Education and Skills,Transport,230006,Contract Hire,07/03/2023,4107927-898,962.19,AC TAXIS.
Children and Young Peoples Services,Head of Education and Skills,Transport,230007,Contract Hire,07/03/2023,4107928-AC2030,881.66,ACE TAXIS (WINSTON).
Children and Young Peoples Services,Head of Education and Skills,Transport,230006,Contract Hire,07/03/2023,4107928-AC2061,660.00,ACE TAXIS (WINSTON).
Children and Young Peoples Services,Head of Education and Skills,Transport,230008,Contract Hire,07/03/2023,4107934-017-FEB2023,"1,712.87",AIRPORT TRANSFER DURHAM.
Children and Young Peoples Services,Head of Education and Skills,Transport,230009,Contract Hire,07/03/2023,4107938-7390-FEB23,584.00,ANGIE`S TAXIS.
Children and Young Peoples Services,Head of Education and Skills,Transport,230012,Contract Hire,07/03/2023,4107942-E037-FEB23,"1,020.00",ARMSTRONG`S TAXIS.
Children and Young Peoples Services,Head of Education and Skills,Transport,230006,Contract Hire,07/03/2023,4107942-E047-FEB23,"2,085.00",ARMSTRONG`S TAXIS.
Children and Young Peoples Services,Head of Education and Skills,Transport,230006,Contract Hire,07/03/2023,4107942-F789-FEB23,"1,014.00",ARMSTRONG`S TAXIS.
Non-Service Specific,Non Service Specific-Financing,Long Term Debtors,924001,Car loans,07/03/2023,4107943-120475,583.00,ARRIVA NORTHUMBRIA LTD.
Children and Young Peoples Services,Head of Education and Skills,Transport,230008,Contract Hire,07/03/2023,4107945-958,"2,744.70",AT TAXIS LTD.
Children and Young Peoples Services,Head of Education and Skills,Transport,230008,Contract Hire,07/03/2023,4107945-959,"2,420.85",AT TAXIS LTD.
Children and Young Peoples Services,Head of Education and Skills,Transport,230009,Contract Hire,07/03/2023,4107945-960,"2,955.00",AT TAXIS LTD.
Children and Young Peoples Services,Head of Education and Skills,Transport,230007,Contract Hire,07/03/2023,4107945-961,"1,604.55",AT TAXIS LTD.
Children and Young Peoples Services,Head of Education and Skills,Transport,230008,Contract Hire,07/03/2023,4107946-DCC-03-FEB23,"2,588.55",ATLAS TAXIS BISHOP AUCKLAND.
Children and Young Peoples Services,Head of Education and Skills,Transport,230008,Contract Hire,07/03/2023,4107946-DCC-04-FEB23,"3,614.25",ATLAS TAXIS BISHOP AUCKLAND.
Children and Young Peoples Services,Head of Education and Skills,Transport,230008,Contract Hire,07/03/2023,4107946-DCC-10-FEB23,"3,970.05",ATLAS TAXIS BISHOP AUCKLAND.
Adult and Health Services,Head of Adults,Transport,230005,Contract Hire,07/03/2023,4107946-DCC-13-FEB23,"1,430.60",ATLAS TAXIS BISHOP AUCKLAND.
Children and Young Peoples Services,Head of Education and Skills,Transport,230008,Contract Hire,07/03/2023,4107946-DCC-7-FEB23,"2,897.55",ATLAS TAXIS BISHOP AUCKLAND.
Children and Young Peoples Services,Head of Education and Skills,Transport,230008,Contract Hire,07/03/2023,4107946-DCC8FEB23,"3,838.35",ATLAS TAXIS BISHOP AUCKLAND.
Children and Young Peoples Services,Head of Education and Skills,Transport,230008,Contract Hire,07/03/2023,4107947-DCC-11-FEB23,"2,405.85",ATLAS TAXIS MANAGEMENT LTD.
Children and Young Peoples Services,Head of Education and Skills,Transport,230008,Contract Hire,07/03/2023,4107947-DCC-12-FEB23,"2,888.15",ATLAS TAXIS MANAGEMENT LTD.
Children and Young Peoples Services,Head of Education and Skills,Transport,230008,Contract Hire,07/03/2023,4107947-DCC-15-FEB23,"3,022.00",ATLAS TAXIS MANAGEMENT LTD.
Children and Young Peoples Services,Head of Education and Skills,Transport,230009,Contract Hire,07/03/2023,4107947-DCC-16-FEB23,"2,904.45",ATLAS TAXIS MANAGEMENT LTD.
Children and Young Peoples Services,Head of Education and Skills,Transport,230008,Contract Hire,07/03/2023,4107947-DCC-2-FEB23,"1,509.12",ATLAS TAXIS MANAGEMENT LTD.
Children and Young Peoples Services,Head of Education and Skills,Transport,230008,Contract Hire,07/03/2023,4107947-DCC-2-FEB23A,"1,850.48",ATLAS TAXIS MANAGEMENT LTD.
Children and Young Peoples Services,Head of Education and Skills,Transport,230008,Contract Hire,07/03/2023,4107947-DCC-6-FEB23,"2,700.00",ATLAS TAXIS MANAGEMENT LTD.
Children and Young Peoples Services,Head of Education and Skills,Transport,230008,Contract Hire,07/03/2023,4107947-DCC-9-FEB23,"2,698.80",ATLAS TAXIS MANAGEMENT LTD.
Adult and Health Services,Head of Adults,Transport,230005,Contract Hire,07/03/2023,4107947-DCC17FEB23,720.00,ATLAS TAXIS MANAGEMENT LTD.
Children and Young Peoples Services,Head of Education and Skills,Transport,230006,Contract Hire,07/03/2023,4107948-6/2,806.22,B&C YELLOWCAB TAXI`S.
Children and Young Peoples Services,Head of Education and Skills,Transport,230016,Contract Hire,07/03/2023,4107952-43,"1,028.50",BELMONT TAXIS.
Children and Young Peoples Services,Head of Education and Skills,Transport,230007,Contract Hire,07/03/2023,4107953-SH-PITT0223,893.33,BENS TAXIS.
Children and Young Peoples Services,Head of Education and Skills,Transport,230034,Contract Hire,07/03/2023,4107953-SUNHASBEL0223,"1,551.75",BENS TAXIS.
Regeneration Economy and Growth,Culture Sport and Tourism,Supplies and Services,324117,Provisions E324,07/03/2023,4107955-20038932,834.48,BIDFOOD.
Regeneration Economy and Growth,Culture Sport and Tourism,Supplies and Services,324117,Provisions E324,07/03/2023,4107955-20210716,589.03,BIDFOOD.
Regeneration Economy and Growth,Culture Sport and Tourism,Supplies and Services,324117,Provisions E324,07/03/2023,4107955-66046062,701.71,BIDFOOD.
Children and Young Peoples Services,Head of Education and Skills,Transport,230007,Contract Hire,07/03/2023,4107957-FEB23-6069,743.81,BIG MAMA`S TAXI.
Children and Young Peoples Services,Head of Education and Skills,Transport,230006,Contract Hire,07/03/2023,4107957-FEB23-F185,779.88,BIG MAMA`S TAXI.
Dedicated Schools Grant BG0015,DSG High Needs Block,Transport,230009,Contract Hire,07/03/2023,4107957-FEB23-G045,990.88,BIG MAMA`S TAXI.
Children and Young Peoples Services,Head of Education and Skills,Transport,230006,Contract Hire,07/03/2023,4107958-INV-684,"1,364.10",BILL SCOTT TAXIS LTD.
Children and Young Peoples Services,Head of Education and Skills,Transport,230010,Contract Hire,07/03/2023,4107958-INV-685,"1,963.94",BILL SCOTT TAXIS LTD.
Adult and Health Services,Head of Adults,Transport,230005,Contract Hire,07/03/2023,4107959-0704,678.20,BIRDS TAXIS LTD.
Adult and Health Services,Head of Adults,Transport,230005,Contract Hire,07/03/2023,4107959-0705,"2,215.60",BIRDS TAXIS LTD.
Adult and Health Services,Head of Adults,Transport,230005,Contract Hire,07/03/2023,4107959-0706,859.20,BIRDS TAXIS LTD.
Adult and Health Services,Head of Adults,Transport,230005,Contract Hire,07/03/2023,4107959-0707,"1,231.68",BIRDS TAXIS LTD.
Adult and Health Services,Head of Adults,Transport,230005,Contract Hire,07/03/2023,4107959-0708/FEB,678.20,BIRDS TAXIS LTD.
Children and Young Peoples Services,Head of Education and Skills,Transport,230006,Contract Hire,07/03/2023,4107959-0710,792.00,BIRDS TAXIS LTD.
Adult and Health Services,Head of Adults,Transport,230005,Contract Hire,07/03/2023,4107959-0711,"2,160.00",BIRDS TAXIS LTD.
Adult and Health Services,Head of Adults,Transport,230005,Contract Hire,07/03/2023,4107959-0712,"1,560.00",BIRDS TAXIS LTD.
Adult and Health Services,Head of Adults,Transport,230005,Contract Hire,07/03/2023,4107959-0713,"1,200.00",BIRDS TAXIS LTD.
Children and Young Peoples Services,Head of Education and Skills,Transport,230005,Contract Hire,07/03/2023,4107959-0715,828.40,BIRDS TAXIS LTD.
Children and Young Peoples Services,Head of Education and Skills,Transport,230008,Contract Hire,07/03/2023,4107959-0716,"2,280.15",BIRDS TAXIS LTD.
Children and Young Peoples Services,Head of Education and Skills,Transport,230007,Contract Hire,07/03/2023,4107959-0717,676.20,BIRDS TAXIS LTD.
Regeneration Economy and Growth,Corporate Property and Land,Supplies and Services,304359,Equipment and Materials,07/03/2023,4107960-BMPR/1100/SKIPS,691.00,BISHOP MIDDLEHAM PLANT & RECYCLING LTD.
Children and Young Peoples Services,Head of Education and Skills,Transport,230035,Contract Hire,07/03/2023,4107961-22/2,"1,584.15",BL TAXIS.
Regeneration Economy and Growth,Culture Sport and Tourism,Fees,901002,Consultants fees 901002,07/03/2023,4107962-SIN040793,"228,618.22",BLOOM PROCUREMENT SERVICES LTD (FORMERLY NEPRO LTD).
Children and Young Peoples Services,Head of Education and Skills,Transport,230007,Contract Hire,07/03/2023,4107964-28/2/23,"2,611.05",BOBS TAXIS.
Children and Young Peoples Services,Head of Education and Skills,Transport,230007,Contract Hire,07/03/2023,4107964-R1,"1,242.40",BOBS TAXIS.
Children and Young Peoples Services,Head of Education and Skills,Transport,230008,Contract Hire,07/03/2023,4107965-A020/2/22,"3,345.72",BON VOYAGE TAXIS LTD.
Children and Young Peoples Services,Head of Education and Skills,Transport,230008,Contract Hire,07/03/2023,4107965-N029/2/22,"2,754.37",BON VOYAGE TAXIS LTD.
Children and Young Peoples Services,Head of Education and Skills,Transport,230008,Contract Hire,07/03/2023,4107965-N097/2/22,"2,969.21",BON VOYAGE TAXIS LTD.
Children and Young Peoples Services,Head of Education and Skills,Transport,230008,Contract Hire,07/03/2023,4107965-N107/2/22,"2,700.00",BON VOYAGE TAXIS LTD.
Children and Young Peoples Services,Head of Education and Skills,Transport,230008,Contract Hire,07/03/2023,4107965-N324/2/22,"3,000.15",BON VOYAGE TAXIS LTD.
Children and Young Peoples Services,Head of Education and Skills,Transport,230008,Contract Hire,07/03/2023,4107966-A048-FEB23,"2,800.00",BON VOYAGE TRANSPORT LTD.
Children and Young Peoples Services,Head of Education and Skills,Transport,230008,Contract Hire,07/03/2023,4107966-N061-FEB23,"2,761.50",BON VOYAGE TRANSPORT LTD.
Children and Young Peoples Services,Head of Education and Skills,Transport,230008,Contract Hire,07/03/2023,4107966-W141-FEB23,"3,000.00",BON VOYAGE TRANSPORT LTD.
Neighbourhoods and Climate Change,Highways,Supplies and Services,304221,Equipment and Materials,07/03/2023,4107967-21098716,672.26,BREEDON TRADING LTD.
Children and Young Peoples Services,Head of Education and Skills,Transport,230008,Contract Hire,07/03/2023,4107968-BZ00441,"1,628.55",BREZ`S TAXIS.
Children and Young Peoples Services,Head of Education and Skills,Transport,230008,Contract Hire,07/03/2023,4107968-BZ00442,899.70,BREZ`S TAXIS.
Adult and Health Services,Head of Adults,Transport,230005,Contract Hire,07/03/2023,4107968-BZ00443,750.00,BREZ`S TAXIS.
Adult and Health Services,Head of Adults,Transport,230005,Contract Hire,07/03/2023,4107968-BZ00444,680.00,BREZ`S TAXIS.
Children and Young Peoples Services,Head of Education and Skills,Transport,230006,Contract Hire,07/03/2023,4107979-17/2,"2,700.00",CHAPMAN TRAVEL.
Children and Young Peoples Services,Head of Education and Skills,Transport,230007,Contract Hire,07/03/2023,4107991-C/11705,"5,695.05",COCHRANES T/A KELVIN TRAVEL.
Children and Young Peoples Services,Head of Education and Skills,Transport,230007,Contract Hire,07/03/2023,4107991-C/11706,"3,167.55",COCHRANES T/A KELVIN TRAVEL.
Children and Young Peoples Services,Head of Education and Skills,Transport,230007,Contract Hire,07/03/2023,4107991-C/11707,"3,750.00",COCHRANES T/A KELVIN TRAVEL.
Children and Young Peoples Services,Head of Education and Skills,Transport,230007,Contract Hire,07/03/2023,4107991-C/11708,"3,750.00",COCHRANES T/A KELVIN TRAVEL.
Children and Young Peoples Services,Head of Education and Skills,Transport,230003,Contract Hire,07/03/2023,4107991-C/11709,"2,047.65",COCHRANES T/A KELVIN TRAVEL.
Children and Young Peoples Services,Head of Education and Skills,Transport,230003,Contract Hire,07/03/2023,4107991-C/11710,"2,367.60",COCHRANES T/A KELVIN TRAVEL.
Children and Young Peoples Services,Head of Education and Skills,Transport,230003,Contract Hire,07/03/2023,4107991-C/11711,"3,607.50",COCHRANES T/A KELVIN TRAVEL.
Children and Young Peoples Services,Head of Education and Skills,Transport,230008,Contract Hire,07/03/2023,4107993-25,"2,100.00",CONNORS MINI BUSES.*
Children and Young Peoples Services,Head of Education and Skills,Transport,230008,Contract Hire,07/03/2023,4107993-26,"1,582.00",CONNORS MINI BUSES.*
Children and Young Peoples Services,Head of Education and Skills,Transport,230008,Contract Hire,07/03/2023,4107993-27,"1,328.88",CONNORS MINI BUSES.*
Children and Young Peoples Services,Head of Education and Skills,Transport,230008,Contract Hire,07/03/2023,4107993-28,"2,764.80",CONNORS MINI BUSES.*
Adult and Health Services,Public Health CC0450,Third Party Payments,460802,Contract Payments,07/03/2023,4107997-3910021193,"384,361.00",COUNTY DURHAM & DARLINGTON NHS FOUNDATION TRUST (CDDFT).
Adult and Health Services,Public Health CC0450,Third Party Payments,460803,Contract Payments,07/03/2023,4107997-3910021194,"180,917.00",COUNTY DURHAM & DARLINGTON NHS FOUNDATION TRUST (CDDFT).
Adult and Health Services,Public Health CC0450,Third Party Payments,460803,Contract Payments,07/03/2023,4107997-3910021201,"6,407.00",COUNTY DURHAM & DARLINGTON NHS FOUNDATION TRUST (CDDFT).
Children and Young Peoples Services,Head of Childrens Social Care,Transport,230005,Contract Hire,07/03/2023,4108003-115341,503.50,CROFT BUSINESS SERVICES LTD T/A CROFT TRAVEL.
Children and Young Peoples Services,Head of Childrens Social Care,Transport,230005,Contract Hire,07/03/2023,4108003-115346,883.20,CROFT BUSINESS SERVICES LTD T/A CROFT TRAVEL.
Children and Young Peoples Services,Head of Childrens Social Care,Transport,230005,Contract Hire,07/03/2023,4108003-115347,794.64,CROFT BUSINESS SERVICES LTD T/A CROFT TRAVEL.
Children and Young Peoples Services,Head of Childrens Social Care,Transport,230005,Contract Hire,07/03/2023,4108003-115348,522.06,CROFT BUSINESS SERVICES LTD T/A CROFT TRAVEL.
Children and Young Peoples Services,Head of Education and Skills,Supplies and Services,336005,Advertising E336,07/03/2023,4108005-4124,960.00,CURIOUS 12 LTD.
Children and Young Peoples Services,Head of Education and Skills,Transport,230008,Contract Hire,07/03/2023,4108009-3794-FEB,"1,530.48",DAVES MINIBUSES.
Resources BK0010,Legal & Democratic Services,Supplies and Services,338042,Services,07/03/2023,4108014-366201/INVDR888,"14,118.75",DERE STREET BARRISTERS.
Resources BK0010,Legal & Democratic Services,Supplies and Services,338042,Services,07/03/2023,4108014-379243/INVSPA502,775.00,DERE STREET BARRISTERS.
Resources BK0010,Legal & Democratic Services,Supplies and Services,338042,Services,07/03/2023,4108014-379581/INVCF455,875.00,DERE STREET BARRISTERS.
Children and Young Peoples Services,Head of Childrens Social Care,Transport,230005,Contract Hire,07/03/2023,4108016-DH2306C,500.00,DH2 CABS.
Children and Young Peoples Services,Head of Childrens Social Care,Transport,230005,Contract Hire,07/03/2023,4108016-DH2306D,853.00,DH2 CABS.
Children and Young Peoples Services,Head of Childrens Social Care,Transport,230005,Contract Hire,07/03/2023,4108016-DH2306M,825.00,DH2 CABS.
Children and Young Peoples Services,Head of Childrens Social Care,Transport,230005,Contract Hire,07/03/2023,4108016-DH2306P,670.00,DH2 CABS.
Children and Young Peoples Services,Head of Childrens Social Care,Transport,230005,Contract Hire,07/03/2023,4108016-DH2306W,880.00,DH2 CABS.
Children and Young Peoples Services,Head of Childrens Social Care,Transport,230005,Contract Hire,07/03/2023,4108016-DH2306Y,500.00,DH2 CABS.
Children and Young Peoples Services,Head of Childrens Social Care,Transport,230005,Contract Hire,07/03/2023,4108016-DH2306ZA,550.00,DH2 CABS.
Children and Young Peoples Services,Head of Childrens Social Care,Transport,230005,Contract Hire,07/03/2023,4108016-DH2307C,792.00,DH2 CABS.
Children and Young Peoples Services,Head of Childrens Social Care,Transport,230005,Contract Hire,07/03/2023,4108016-DH2307D,500.00,DH2 CABS.
Children and Young Peoples Services,Head of Childrens Social Care,Transport,230005,Contract Hire,07/03/2023,4108016-DH2307L,770.00,DH2 CABS.
Children and Young Peoples Services,Head of Childrens Social Care,Transport,230005,Contract Hire,07/03/2023,4108016-DH2307N,697.00,DH2 CABS.
Children and Young Peoples Services,Head of Childrens Social Care,Transport,230005,Contract Hire,07/03/2023,4108016-DH2307Z,550.00,DH2 CABS.
Children and Young Peoples Services,Head of Education and Skills,Transport,230008,Contract Hire,07/03/2023,4108022-1497,"2,308.80",EAST DURHAM TAXIS.
Children and Young Peoples Services,Head of Education and Skills,Transport,230008,Contract Hire,07/03/2023,4108022-1498,"2,495.70",EAST DURHAM TAXIS.
Children and Young Peoples Services,Head of Education and Skills,Transport,230008,Contract Hire,07/03/2023,4108022-1499,"3,060.15",EAST DURHAM TAXIS.
Children and Young Peoples Services,Head of Education and Skills,Transport,230008,Contract Hire,07/03/2023,4108022-1500,"3,152.70",EAST DURHAM TAXIS.
Children and Young Peoples Services,Head of Education and Skills,Transport,230008,Contract Hire,07/03/2023,4108022-1502,"2,310.00",EAST DURHAM TAXIS.
Children and Young Peoples Services,Head of Education and Skills,Transport,230006,Contract Hire,07/03/2023,4108022-1503,"3,464.10",EAST DURHAM TAXIS.
Children and Young Peoples Services,Head of Education and Skills,Transport,230008,Contract Hire,07/03/2023,4108022-1504,"1,887.75",EAST DURHAM TAXIS.
Children and Young Peoples Services,Head of Education and Skills,Transport,230008,Contract Hire,07/03/2023,4108022-1505,"2,940.00",EAST DURHAM TAXIS.
Children and Young Peoples Services,Head of Education and Skills,Transport,230008,Contract Hire,07/03/2023,4108022-1506,"3,975.00",EAST DURHAM TAXIS.
Children and Young Peoples Services,Head of Education and Skills,Transport,230009,Contract Hire,07/03/2023,4108022-1507,"2,370.00",EAST DURHAM TAXIS.
Children and Young Peoples Services,Head of Education and Skills,Transport,230008,Contract Hire,07/03/2023,4108022-1508,"3,500.00",EAST DURHAM TAXIS.
Children and Young Peoples Services,Head of Education and Skills,Transport,230008,Contract Hire,07/03/2023,4108022-1509,"3,021.62",EAST DURHAM TAXIS.
Children and Young Peoples Services,Head of Education and Skills,Transport,230008,Contract Hire,07/03/2023,4108022-1510,"2,940.00",EAST DURHAM TAXIS.
Children and Young Peoples Services,Head of Education and Skills,Transport,230006,Contract Hire,07/03/2023,4108022-1512,"3,105.00",EAST DURHAM TAXIS.
Children and Young Peoples Services,Head of Education and Skills,Transport,230016,Contract Hire,07/03/2023,4108022-1513,"4,111.00",EAST DURHAM TAXIS.
Adult and Health Services,Head of Adults,Transport,230005,Contract Hire,07/03/2023,4108022-1514,"2,372.00",EAST DURHAM TAXIS.
Adult and Health Services,Head of Adults,Transport,230005,Contract Hire,07/03/2023,4108022-1515,"1,384.40",EAST DURHAM TAXIS.
Children and Young Peoples Services,Head of Education and Skills,Transport,230008,Contract Hire,07/03/2023,4108022-1516,"2,527.65",EAST DURHAM TAXIS.
Children and Young Peoples Services,Head of Education and Skills,Transport,230008,Contract Hire,07/03/2023,4108022-1517,"2,130.00",EAST DURHAM TAXIS.
Children and Young Peoples Services,Head of Education and Skills,Transport,230016,Contract Hire,07/03/2023,4108022-1518,"1,420.56",EAST DURHAM TAXIS.
Children and Young Peoples Services,Head of Education and Skills,Transport,230008,Contract Hire,07/03/2023,4108022-1519,"2,688.57",EAST DURHAM TAXIS.
Regeneration Economy and Growth,Corporate Property and Land,Supplies and Services,304221,Equipment and Materials,07/03/2023,4108023-059-314071,"2,132.66",EDMUNDSON ELECTRICAL LTD.
Regeneration Economy and Growth,Economic Development Level C,Supplies and Services,384700,Miscellaneous Expenses,07/03/2023,4108039-RES-03-2023-036,500.00,FIRST CHOICE CLEANING.
Children and Young Peoples Services,Head of Education and Skills,Transport,230034,Contract Hire,07/03/2023,4108045-SM017,"1,177.20",GARY JACKSON PRIVATE HIRE.
Children and Young Peoples Services,Head of Education and Skills,Transport,230006,Contract Hire,07/03/2023,4108047-15700,"2,850.00",GATESHEAD CENTRAL TAXIS LTD.
Children and Young Peoples Services,Head of Education and Skills,Transport,230008,Contract Hire,07/03/2023,4108047-15700/1,"3,071.55",GATESHEAD CENTRAL TAXIS LTD.
Children and Young Peoples Services,Head of Education and Skills,Transport,230003,Contract Hire,07/03/2023,4108048-6167,"3,434.10",GEM TRAVEL.
Children and Young Peoples Services,Head of Education and Skills,Transport,230007,Contract Hire,07/03/2023,4108048-6168,"1,327.50",GEM TRAVEL.
Children and Young Peoples Services,Head of Education and Skills,Transport,230008,Contract Hire,07/03/2023,4108053-035,"2,774.70",GMC TAXIS NORTH EAST.
Adult and Health Services,Head of Adults,Transport,230005,Contract Hire,07/03/2023,4108054-99,"1,260.00",GP TAXIS.
Resources BK0010,Transactional & Customer Services,Supplies and Services,338045,Services,07/03/2023,4108055-21465,763.00,GREENHALGH KERR.
Neighbourhoods and Climate Change,Highways,Stock A926,926900,Stock in hand-Inventory system,07/03/2023,4108057-06/204470,"2,309.09",GREENHAM TRADING LTD.
Children and Young Peoples Services,Head of Education and Skills,Transport,230016,Contract Hire,07/03/2023,4108061-HT689-FEB23,"1,175.52",HARRY`S TAXI`S.
Children and Young Peoples Services,Head of Education and Skills,Transport,230006,Contract Hire,07/03/2023,4108061-HT694,"1,800.00",HARRY`S TAXI`S.
Children and Young Peoples Services,Head of Education and Skills,Transport,230007,Contract Hire,07/03/2023,4108061-HT695,"2,057.25",HARRY`S TAXI`S.
Children and Young Peoples Services,Head of Education and Skills,Transport,230007,Contract Hire,07/03/2023,4108061-HT696,"2,391.22",HARRY`S TAXI`S.
Children and Young Peoples Services,Head of Education and Skills,Transport,230008,Contract Hire,07/03/2023,4108061-HT697,"2,951.00",HARRY`S TAXI`S.
Children and Young Peoples Services,Head of Education and Skills,Transport,230008,Contract Hire,07/03/2023,4108061-HT699,"2,990.00",HARRY`S TAXI`S.
Children and Young Peoples Services,Head of Education and Skills,Transport,230009,Contract Hire,07/03/2023,4108061-HT700,"1,284.53",HARRY`S TAXI`S.
Children and Young Peoples Services,Head of Education and Skills,Transport,230007,Contract Hire,07/03/2023,4108069-22672-3047,"3,163.86",HODGSONS COACH OPERATORS LTD.
Children and Young Peoples Services,Head of Education and Skills,Transport,230007,Contract Hire,07/03/2023,4108069-22673,"3,741.50",HODGSONS COACH OPERATORS LTD.
Children and Young Peoples Services,Head of Education and Skills,Transport,230007,Contract Hire,07/03/2023,4108069-22674,"3,388.05",HODGSONS COACH OPERATORS LTD.
Children and Young Peoples Services,Head of Education and Skills,Transport,230007,Contract Hire,07/03/2023,4108069-22675,"1,633.24",HODGSONS COACH OPERATORS LTD.
Children and Young Peoples Services,Head of Education and Skills,Transport,230007,Contract Hire,07/03/2023,4108069-22676,"1,736.10",HODGSONS COACH OPERATORS LTD.
Children and Young Peoples Services,Head of Education and Skills,Transport,230007,Contract Hire,07/03/2023,4108069-22677,"2,166.36",HODGSONS COACH OPERATORS LTD.
Children and Young Peoples Services,Head of Education and Skills,Transport,230007,Contract Hire,07/03/2023,4108069-22678,"1,589.25",HODGSONS COACH OPERATORS LTD.
Children and Young Peoples Services,Head of Education and Skills,Transport,230007,Contract Hire,07/03/2023,4108069-22679,832.65,HODGSONS COACH OPERATORS LTD.
Children and Young Peoples Services,Head of Education and Skills,Transport,230007,Contract Hire,07/03/2023,4108069-22680,559.20,HODGSONS COACH OPERATORS LTD.
Children and Young Peoples Services,Head of Education and Skills,Transport,230007,Contract Hire,07/03/2023,4108069-22681,"1,882.05",HODGSONS COACH OPERATORS LTD.
Children and Young Peoples Services,Head of Education and Skills,Transport,230007,Contract Hire,07/03/2023,4108069-22682,"1,042.50",HODGSONS COACH OPERATORS LTD.
Children and Young Peoples Services,Head of Education and Skills,Transport,230007,Contract Hire,07/03/2023,4108069-22683,"1,220.10",HODGSONS COACH OPERATORS LTD.
Children and Young Peoples Services,Head of Education and Skills,Transport,230007,Contract Hire,07/03/2023,4108069-22684,829.50,HODGSONS COACH OPERATORS LTD.
Children and Young Peoples Services,Head of Education and Skills,Transport,230007,Contract Hire,07/03/2023,4108069-22689,"2,392.50",HODGSONS COACH OPERATORS LTD.
Children and Young Peoples Services,Head of Education and Skills,Transport,230007,Contract Hire,07/03/2023,4108069-22690,"1,407.75",HODGSONS COACH OPERATORS LTD.
Children and Young Peoples Services,Head of Education and Skills,Transport,230007,Contract Hire,07/03/2023,4108069-22691,840.28,HODGSONS COACH OPERATORS LTD.
Children and Young Peoples Services,Head of Education and Skills,Transport,230007,Contract Hire,07/03/2023,4108069-22692,897.30,HODGSONS COACH OPERATORS LTD.
Children and Young Peoples Services,Head of Education and Skills,Transport,230034,Contract Hire,07/03/2023,4108074-10-FEB23,"1,630.80",HORNDALE TAXIS.
Children and Young Peoples Services,Head of Education and Skills,Transport,230034,Contract Hire,07/03/2023,4108074-5-FEB23,"1,200.00",HORNDALE TAXIS.
Children and Young Peoples Services,Head of Education and Skills,Transport,230035,Contract Hire,07/03/2023,4108074-FEB/003,912.12,HORNDALE TAXIS.
Neighbourhoods and Climate Change,Environmental Services,Third Party Payments,430100,Rendered by Private Contractors,07/03/2023,4108077-3105,"1,875.00",IAN C LIDDLE T/A IC LIDDLE SERVICES.
Regeneration Economy and Growth,Transport and Contracted Services,Third Party Payments,460151,Contract Payments,07/03/2023,4108083-27379,"1,443.22",JACK COUPE & SONS LTD T/A COUPE LINE.
Children and Young Peoples Services,Head of Education and Skills,Transport,230008,Contract Hire,07/03/2023,4108088-2546-FEB23,"2,744.28",JDS PRIVATE HIRE DURHAM.
Children and Young Peoples Services,Head of Education and Skills,Transport,230034,Contract Hire,07/03/2023,4108088-2549,"1,564.97",JDS PRIVATE HIRE DURHAM.
Children and Young Peoples Services,Head of Education and Skills,Transport,230007,Contract Hire,07/03/2023,4108088-2550,735.28,JDS PRIVATE HIRE DURHAM.
Children and Young Peoples Services,Head of Education and Skills,Transport,230008,Contract Hire,07/03/2023,4108088-2552,"1,821.54",JDS PRIVATE HIRE DURHAM.
Children and Young Peoples Services,Head of Education and Skills,Transport,230006,Contract Hire,07/03/2023,4108088-2553,"2,550.00",JDS PRIVATE HIRE DURHAM.
Children and Young Peoples Services,Head of Education and Skills,Transport,230008,Contract Hire,07/03/2023,4108088-2554,"2,399.70",JDS PRIVATE HIRE DURHAM.
Children and Young Peoples Services,Head of Education and Skills,Transport,230008,Contract Hire,07/03/2023,4108088-2555,"1,982.40",JDS PRIVATE HIRE DURHAM.
Children and Young Peoples Services,Head of Education and Skills,Transport,230008,Contract Hire,07/03/2023,4108088-2556-FEB23,"1,840.33",JDS PRIVATE HIRE DURHAM.
Children and Young Peoples Services,Head of Education and Skills,Transport,230008,Contract Hire,07/03/2023,4108088-2557,"1,672.44",JDS PRIVATE HIRE DURHAM.
Children and Young Peoples Services,Head of Education and Skills,Transport,230008,Contract Hire,07/03/2023,4108088-2558,"1,582.70",JDS PRIVATE HIRE DURHAM.
Children and Young Peoples Services,Head of Education and Skills,Transport,230012,Contract Hire,07/03/2023,4108088-2559,"1,567.80",JDS PRIVATE HIRE DURHAM.
Children and Young Peoples Services,Head of Education and Skills,Transport,230008,Contract Hire,07/03/2023,4108088-2560,"1,892.85",JDS PRIVATE HIRE DURHAM.
Children and Young Peoples Services,Head of Education and Skills,Transport,230008,Contract Hire,07/03/2023,4108088-2561,"1,791.75",JDS PRIVATE HIRE DURHAM.
Children and Young Peoples Services,Head of Education and Skills,Transport,230006,Contract Hire,07/03/2023,4108088-2562,"1,076.18",JDS PRIVATE HIRE DURHAM.
Children and Young Peoples Services,Head of Education and Skills,Transport,230008,Contract Hire,07/03/2023,4108088-2563,"3,062.28",JDS PRIVATE HIRE DURHAM.
Children and Young Peoples Services,Head of Education and Skills,Transport,230008,Contract Hire,07/03/2023,4108088-2564,"3,421.20",JDS PRIVATE HIRE DURHAM.
Children and Young Peoples Services,Head of Education and Skills,Transport,230008,Contract Hire,07/03/2023,4108088-2566,"1,774.80",JDS PRIVATE HIRE DURHAM.
Children and Young Peoples Services,Head of Education and Skills,Transport,230008,Contract Hire,07/03/2023,4108088-2567,"1,503.90",JDS PRIVATE HIRE DURHAM.
Children and Young Peoples Services,Head of Education and Skills,Transport,230010,Contract Hire,07/03/2023,4108088-2568,"1,650.00",JDS PRIVATE HIRE DURHAM.
Children and Young Peoples Services,Head of Education and Skills,Transport,230007,Contract Hire,07/03/2023,4108089-INV3258-5233,"2,204.10",JEFF ANDERSON COACHES LTD.
Children and Young Peoples Services,Head of Education and Skills,Transport,230008,Contract Hire,07/03/2023,4108089-INV3259,"1,507.20",JEFF ANDERSON COACHES LTD.
Children and Young Peoples Services,Head of Education and Skills,Transport,230007,Contract Hire,07/03/2023,4108089-INV3260,"1,288.50",JEFF ANDERSON COACHES LTD.
Children and Young Peoples Services,Head of Education and Skills,Transport,230007,Contract Hire,07/03/2023,4108090-38490,"3,136.80",JIM HUGHES COACHES LTD.
Children and Young Peoples Services,Head of Education and Skills,Transport,230003,Contract Hire,07/03/2023,4108090-38491,"3,798.00",JIM HUGHES COACHES LTD.
Children and Young Peoples Services,Head of Education and Skills,Transport,230007,Contract Hire,07/03/2023,4108090-38495,"8,850.00",JIM HUGHES COACHES LTD.
Children and Young Peoples Services,Head of Education and Skills,Transport,230003,Contract Hire,07/03/2023,4108090-38496,"2,925.00",JIM HUGHES COACHES LTD.
Children and Young Peoples Services,Head of Education and Skills,Transport,230003,Contract Hire,07/03/2023,4108090-38497,"5,250.00",JIM HUGHES COACHES LTD.
Children and Young Peoples Services,Head of Education and Skills,Transport,230003,Contract Hire,07/03/2023,4108090-38498,"5,925.00",JIM HUGHES COACHES LTD.
Children and Young Peoples Services,Head of Education and Skills,Transport,230007,Contract Hire,07/03/2023,4108090-38499,"5,925.00",JIM HUGHES COACHES LTD.
Children and Young Peoples Services,Head of Education and Skills,Transport,230003,Contract Hire,07/03/2023,4108090-38500,"5,625.00",JIM HUGHES COACHES LTD.
Children and Young Peoples Services,Head of Education and Skills,Transport,230007,Contract Hire,07/03/2023,4108090-38501,"5,925.00",JIM HUGHES COACHES LTD.
Children and Young Peoples Services,Head of Education and Skills,Transport,230003,Contract Hire,07/03/2023,4108090-38502,"6,375.00",JIM HUGHES COACHES LTD.
Children and Young Peoples Services,Head of Education and Skills,Transport,230007,Contract Hire,07/03/2023,4108090-38504,"9,675.00",JIM HUGHES COACHES LTD.
Dedicated Schools Grant BG0015,DSG High Needs Block,Transport,230009,Contract Hire,07/03/2023,4108093-06-22/23-A,"1,686.64",JOHN BELL TAXI.
Adult and Health Services,Head of Adults,Transport,230005,Contract Hire,07/03/2023,4108095-80-FEB23,"1,824.60",JOHN CRAKE & SONS MINI BUSES LTD.
Children and Young Peoples Services,Head of Education and Skills,Transport,230008,Contract Hire,07/03/2023,4108098-M00956,"2,520.00",JOVIAL PRIVATE HIRE.
Children and Young Peoples Services,Head of Education and Skills,Transport,230008,Contract Hire,07/03/2023,4108098-M01617,"1,045.24",JOVIAL PRIVATE HIRE.
Children and Young Peoples Services,Head of Education and Skills,Transport,230008,Contract Hire,07/03/2023,4108098-M01756,"1,952.24",JOVIAL PRIVATE HIRE.
Children and Young Peoples Services,Head of Education and Skills,Transport,230008,Contract Hire,07/03/2023,4108098-N030018,"2,177.28",JOVIAL PRIVATE HIRE.
Children and Young Peoples Services,Head of Education and Skills,Transport,230016,Contract Hire,07/03/2023,4108100-1386,"2,970.00",K & R TAXIS (STANLEY).
Children and Young Peoples Services,Head of Education and Skills,Transport,230008,Contract Hire,07/03/2023,4108100-1387,"2,864.68",K & R TAXIS (STANLEY).
Children and Young Peoples Services,Head of Education and Skills,Transport,230012,Contract Hire,07/03/2023,4108100-1388,"2,783.55",K & R TAXIS (STANLEY).
Children and Young Peoples Services,Head of Education and Skills,Transport,230010,Contract Hire,07/03/2023,4108100-1389,"2,955.00",K & R TAXIS (STANLEY).
Children and Young Peoples Services,Head of Education and Skills,Transport,230008,Contract Hire,07/03/2023,4108102-06-FEB23,"2,079.75",KD TAXIS.
Children and Young Peoples Services,Head of Education and Skills,Transport,230008,Contract Hire,07/03/2023,4108105-FEB23-A050,"1,169.34",KENNAS CABS.
Children and Young Peoples Services,Head of Education and Skills,Transport,230008,Contract Hire,07/03/2023,4108105-FEB23-E018,552.48,KENNAS CABS.
Children and Young Peoples Services,Head of Education and Skills,Transport,230034,Contract Hire,07/03/2023,4108113-FEB22-5463,"1,568.20",LARS CARS LTD T/A STREETCARS.
Children and Young Peoples Services,Head of Education and Skills,Transport,230008,Contract Hire,07/03/2023,4108113-FEB23-N064,"1,947.23",LARS CARS LTD T/A STREETCARS.
Children and Young Peoples Services,Head of Education and Skills,Transport,230006,Contract Hire,07/03/2023,4108115-4022,"1,080.00",LD TAXIS.
Children and Young Peoples Services,Head of Education and Skills,Transport,230006,Contract Hire,07/03/2023,4108115-4024,"1,605.00",LD TAXIS.
Children and Young Peoples Services,Head of Education and Skills,Transport,230006,Contract Hire,07/03/2023,4108115-4025,"1,225.00",LD TAXIS.
Children and Young Peoples Services,Head of Education and Skills,Transport,230008,Contract Hire,07/03/2023,4108115-4026,"1,500.00",LD TAXIS.
Children and Young Peoples Services,Head of Education and Skills,Transport,230008,Contract Hire,07/03/2023,4108115-4027,"1,050.00",LD TAXIS.
Children and Young Peoples Services,Head of Education and Skills,Transport,230016,Contract Hire,07/03/2023,4108115-4028,"1,809.34",LD TAXIS.
Dedicated Schools Grant BG0015,DSG High Needs Block,Transport,230009,Contract Hire,07/03/2023,4108115-4029,"1,717.02",LD TAXIS.
Children and Young Peoples Services,Head of Education and Skills,Transport,230006,Contract Hire,07/03/2023,4108115-4030,"1,650.00",LD TAXIS.
Adult and Health Services,Head of Adults,Transport,230005,Contract Hire,07/03/2023,4108115-4031,"2,300.00",LD TAXIS.
Children and Young Peoples Services,Head of Education and Skills,Transport,230034,Contract Hire,07/03/2023,4108115-4032,"1,096.20",LD TAXIS.
Children and Young Peoples Services,Head of Education and Skills,Transport,230035,Contract Hire,07/03/2023,4108115-4033,868.50,LD TAXIS.
Children and Young Peoples Services,Head of Education and Skills,Transport,230008,Contract Hire,07/03/2023,4108115-4034,"1,279.80",LD TAXIS.
Children and Young Peoples Services,Head of Education and Skills,Transport,230007,Contract Hire,07/03/2023,4108115-4035,"1,178.25",LD TAXIS.
Children and Young Peoples Services,Head of Education and Skills,Transport,230003,Contract Hire,07/03/2023,4108116-32236,"3,348.60",LEE`S COACHES LTD.
Children and Young Peoples Services,Head of Education and Skills,Transport,230003,Contract Hire,07/03/2023,4108116-32237,"4,435.65",LEE`S COACHES LTD.
Children and Young Peoples Services,Head of Education and Skills,Transport,230007,Contract Hire,07/03/2023,4108116-32239,"3,204.45",LEE`S COACHES LTD.
Children and Young Peoples Services,Head of Education and Skills,Transport,230007,Contract Hire,07/03/2023,4108116-32240,"2,399.70",LEE`S COACHES LTD.
Children and Young Peoples Services,Head of Education and Skills,Transport,230003,Contract Hire,07/03/2023,4108116-32242,"2,700.00",LEE`S COACHES LTD.
Children and Young Peoples Services,Head of Education and Skills,Transport,230007,Contract Hire,07/03/2023,4108116-32243,"3,339.75",LEE`S COACHES LTD.
Children and Young Peoples Services,Head of Education and Skills,Transport,230006,Contract Hire,07/03/2023,4108117-PEACO006-F113,"2,970.32",LETS TRAVEL.
Children and Young Peoples Services,Head of Childrens Social Care,Transport,230005,Contract Hire,07/03/2023,4108119-5370,650.00,LOCAL TRANSPORT LTD.
Children and Young Peoples Services,Head of Childrens Social Care,Transport,230005,Contract Hire,07/03/2023,4108119-5371,"3,250.00",LOCAL TRANSPORT LTD.
Children and Young Peoples Services,Head of Childrens Social Care,Transport,230005,Contract Hire,07/03/2023,4108119-5372,"1,400.00",LOCAL TRANSPORT LTD.
Children and Young Peoples Services,Head of Childrens Social Care,Transport,230005,Contract Hire,07/03/2023,4108119-5373,"1,020.00",LOCAL TRANSPORT LTD.
Children and Young Peoples Services,Head of Early Help Inclusion & Vulnerable Children.,Transport,230005,Contract Hire,07/03/2023,4108119-5374,845.00,LOCAL TRANSPORT LTD.
Children and Young Peoples Services,Head of Childrens Social Care,Transport,230005,Contract Hire,07/03/2023,4108119-5378,"1,740.00",LOCAL TRANSPORT LTD.
Children and Young Peoples Services,Head of Education and Skills,Transport,230007,Contract Hire,07/03/2023,4108123-INV02/202301,"1,355.56",MARK & JOHN CHISHOLM T/A (CHEVRON).
Children and Young Peoples Services,Head of Education and Skills,Transport,230007,Contract Hire,07/03/2023,4108123-INV02/202303,819.00,MARK & JOHN CHISHOLM T/A (CHEVRON).
Children and Young Peoples Services,Head of Education and Skills,Transport,230007,Contract Hire,07/03/2023,4108123-INV02/202304,"1,843.80",MARK & JOHN CHISHOLM T/A (CHEVRON).
Children and Young Peoples Services,Head of Education and Skills,Transport,230007,Contract Hire,07/03/2023,4108123-INV02/202305,"1,724.70",MARK & JOHN CHISHOLM T/A (CHEVRON).
Children and Young Peoples Services,Head of Education and Skills,Transport,230007,Contract Hire,07/03/2023,4108123-INV02/202306,"1,946.25",MARK & JOHN CHISHOLM T/A (CHEVRON).
Children and Young Peoples Services,Head of Education and Skills,Transport,230007,Contract Hire,07/03/2023,4108123-INV02/202334,"1,405.44",MARK & JOHN CHISHOLM T/A (CHEVRON).
Children and Young Peoples Services,Head of Education and Skills,Transport,230007,Contract Hire,07/03/2023,4108123-INV02/202335,"1,170.00",MARK & JOHN CHISHOLM T/A (CHEVRON).
Children and Young Peoples Services,Head of Education and Skills,Transport,230007,Contract Hire,07/03/2023,4108130-0004-5424,"1,050.00",MGD TAXIS.
Children and Young Peoples Services,Head of Education and Skills,Transport,230034,Contract Hire,07/03/2023,4108133-531,"1,652.80",MICKS TAXIS - MURTON.
Children and Young Peoples Services,Head of Education and Skills,Transport,230006,Contract Hire,07/03/2023,4108133-532,947.05,MICKS TAXIS - MURTON.
Children and Young Peoples Services,Head of Education and Skills,Transport,230007,Contract Hire,07/03/2023,4108133-533,511.95,MICKS TAXIS - MURTON.
Children and Young Peoples Services,Head of Childrens Social Care,Supplies and Services,384540,Miscellaneous Expenses,07/03/2023,4108137-MP186,525.00,MOTIF PICTURES LTD.
Regeneration Economy and Growth,Corporate Property and Land,Construction work A908,908105,Construction work,07/03/2023,4108162-50068519,"1,260.00",NORTHERN POWERGRID (NORTHEAST) LTD.
Non-Service Specific,Insurances,Expenditure 8INSEX,810012,Insurance Expenditure,07/03/2023,4108162-DI20398318,"3,905.85",NORTHERN POWERGRID (NORTHEAST) LTD.
Regeneration Economy and Growth,Corporate Property and Land,Third Party Payments,430100,Rendered by Private Contractors,07/03/2023,4108167-5276,"3,922.03",ORA PROPERTY SERVICES LTD.
Children and Young Peoples Services,Head of Education and Skills,Transport,230007,Contract Hire,07/03/2023,4108174-808,"2,372.28",PETERLEE EXECUTIVE CARS.
Children and Young Peoples Services,Head of Education and Skills,Transport,230008,Contract Hire,07/03/2023,4108174-809,"2,700.00",PETERLEE EXECUTIVE CARS.
Children and Young Peoples Services,Head of Education and Skills,Transport,230008,Contract Hire,07/03/2023,4108174-810,"1,050.00",PETERLEE EXECUTIVE CARS.
Children and Young Peoples Services,Head of Education and Skills,Transport,230034,Contract Hire,07/03/2023,4108176-3422-FEB23,847.80,PETER`S TAXIS.
Children and Young Peoples Services,Head of Education and Skills,Transport,230034,Contract Hire,07/03/2023,4108176-3482-FEB23,"1,370.85",PETER`S TAXIS.
Children and Young Peoples Services,Head of Education and Skills,Transport,230003,Contract Hire,07/03/2023,4108176-3501-FEB23,"1,200.00",PETER`S TAXIS.
Children and Young Peoples Services,Head of Education and Skills,Transport,230034,Contract Hire,07/03/2023,4108176-5294-FEB23,"1,375.95",PETER`S TAXIS.
Regeneration Economy and Growth,Culture Sport and Tourism,Supplies and Services,384199,Miscellaneous Expenses,07/03/2023,4108177-INV10602,833.33,PICTUREHOUSE CINEMAS LTD.
Neighbourhoods and Climate Change,Highways,Third Party Payments,430100,Rendered by Private Contractors,07/03/2023,4108178-6481,"5,356.08",PINKNEY BUILDING CONTRACTORS LTD.
Children and Young Peoples Services,Head of Education and Skills,Construction work A908,908105,Construction work,07/03/2023,4108180-900987461,"1,170.00",PORTAKABIN LTD.
Children and Young Peoples Services,Head of Education and Skills,Construction work A908,908105,Construction work,07/03/2023,4108180-900987490,"8,403.55",PORTAKABIN LTD.
Adult and Health Services,Head of Adults,Third Party Payments,479102,Purchase of Care,07/03/2023,4108181-INV-0104,"5,487.59",POSITIVE CARE & SUPPORT LTD.
Adult and Health Services,Head of Adults,Third Party Payments,479102,Purchase of Care,07/03/2023,4108181-INV-0109,"1,032.50",POSITIVE CARE & SUPPORT LTD.
Children and Young Peoples Services,Head of Childrens Social Care,Transport,230005,Contract Hire,07/03/2023,4108184-SI-2302,"1,200.00",PTL TAXIS LTD.
Children and Young Peoples Services,Head of Childrens Social Care,Transport,230005,Contract Hire,07/03/2023,4108184-SI-2304,565.00,PTL TAXIS LTD.
Children and Young Peoples Services,Head of Childrens Social Care,Transport,230005,Contract Hire,07/03/2023,4108184-SI-2306,630.00,PTL TAXIS LTD.
Children and Young Peoples Services,Head of Childrens Social Care,Transport,230005,Contract Hire,07/03/2023,4108184-SI-2307,516.00,PTL TAXIS LTD.
Children and Young Peoples Services,Head of Education and Skills,Transport,230007,Contract Hire,07/03/2023,4108184-SI-2367,872.00,PTL TAXIS LTD.
Children and Young Peoples Services,Head of Education and Skills,Transport,230034,Contract Hire,07/03/2023,4108184-SI-2368,"4,800.00",PTL TAXIS LTD.
Adult and Health Services,Head of Adults,Transport,230005,Contract Hire,07/03/2023,4108184-SI-2388,846.00,PTL TAXIS LTD.
Children and Young Peoples Services,Head of Education and Skills,Transport,230008,Contract Hire,07/03/2023,4108184-SI-2389,"4,166.20",PTL TAXIS LTD.
Children and Young Peoples Services,Head of Education and Skills,Transport,230034,Contract Hire,07/03/2023,4108184-SI-2390,"1,430.80",PTL TAXIS LTD.
Children and Young Peoples Services,Head of Education and Skills,Transport,230006,Contract Hire,07/03/2023,4108184-SI-2393,"1,259.52",PTL TAXIS LTD.
Children and Young Peoples Services,Head of Education and Skills,Transport,230007,Contract Hire,07/03/2023,4108184-SI-2395,654.00,PTL TAXIS LTD.
Children and Young Peoples Services,Head of Education and Skills,Transport,230034,Contract Hire,07/03/2023,4108184-SI-2396,"3,600.00",PTL TAXIS LTD.
Children and Young Peoples Services,Head of Education and Skills,Transport,230034,Contract Hire,07/03/2023,4108184-SI-2398,"2,700.00",PTL TAXIS LTD.
Children and Young Peoples Services,Head of Education and Skills,Transport,230016,Contract Hire,07/03/2023,4108184-SI-2402,"2,720.00",PTL TAXIS LTD.
Resources BK0010,Digital Services,Supplies and Services,332029,Printing Stationery and Gen Off Exps,07/03/2023,4108186-20591,"2,619.00",RADECAL SIGNS GRAPHICS & ADVERTISING.
Regeneration Economy and Growth,Corporate Property and Land,Third Party Payments,430100,Rendered by Private Contractors,07/03/2023,4108190-74996,"4,270.00",RJ UTILITY SERVICES LTD.
Regeneration Economy and Growth,Business Durham CL0850,Construction work A908,908105,Construction work,07/03/2023,4108195-23080023,"29,765.00",ROBERTSON CAPITAL PROJECTS.
Children and Young Peoples Services,Head of Education and Skills,Transport,230035,Contract Hire,07/03/2023,4108198-2091/02,"2,100.00",S & S TRAVEL LTD.
Children and Young Peoples Services,Head of Education and Skills,Transport,230006,Contract Hire,07/03/2023,4108198-F115/06,"2,427.03",S & S TRAVEL LTD.
Children and Young Peoples Services,Head of Education and Skills,Transport,230006,Contract Hire,07/03/2023,4108198-F240/06,"2,370.15",S & S TRAVEL LTD.
Children and Young Peoples Services,Head of Education and Skills,Transport,230008,Contract Hire,07/03/2023,4108198-S009/42,"2,634.45",S & S TRAVEL LTD.
Children and Young Peoples Services,Head of Education and Skills,Transport,230008,Contract Hire,07/03/2023,4108198-S017/71,"1,871.10",S & S TRAVEL LTD.
Adult and Health Services,Head of Adults,Transport,230005,Contract Hire,07/03/2023,4108198-SED112/47,"1,609.76",S & S TRAVEL LTD.
Children and Young Peoples Services,Head of Education and Skills,Transport,230008,Contract Hire,07/03/2023,4108198-W014/42,"2,322.75",S & S TRAVEL LTD.
Children and Young Peoples Services,Head of Education and Skills,Transport,230016,Contract Hire,07/03/2023,4108198-W031/14,"1,398.44",S & S TRAVEL LTD.
Children and Young Peoples Services,Head of Education and Skills,Transport,230008,Contract Hire,07/03/2023,4108198-W032/43,"2,573.55",S & S TRAVEL LTD.
Children and Young Peoples Services,Head of Education and Skills,Transport,230008,Contract Hire,07/03/2023,4108198-W036/18,"2,448.00",S & S TRAVEL LTD.
Children and Young Peoples Services,Head of Education and Skills,Transport,230008,Contract Hire,07/03/2023,4108198-W056/42,"1,897.50",S & S TRAVEL LTD.
Children and Young Peoples Services,Head of Education and Skills,Transport,230008,Contract Hire,07/03/2023,4108198-W067/42,"2,557.80",S & S TRAVEL LTD.
Children and Young Peoples Services,Head of Education and Skills,Transport,230008,Contract Hire,07/03/2023,4108198-W076/42,"2,508.75",S & S TRAVEL LTD.
Children and Young Peoples Services,Head of Education and Skills,Transport,230008,Contract Hire,07/03/2023,4108198-W178/25,"1,324.35",S & S TRAVEL LTD.
Adult and Health Services,Head of Adults,Supplies and Services,338066,Services,07/03/2023,4108203-SHAH383,893.00,SHAH MEDICAL SERVICES LTD.
Children and Young Peoples Services,Head of Childrens Social Care,Transport,230005,Contract Hire,07/03/2023,4108216-FEB109/STL23,636.00,STL CABS LTD.
Children and Young Peoples Services,Head of Childrens Social Care,Transport,230005,Contract Hire,07/03/2023,4108216-FEB112/STL23,534.00,STL CABS LTD.
Children and Young Peoples Services,Head of Childrens Social Care,Transport,230005,Contract Hire,07/03/2023,4108216-FEB125/STL23,580.00,STL CABS LTD.
Children and Young Peoples Services,Head of Childrens Social Care,Transport,230005,Contract Hire,07/03/2023,4108216-FEB22/STL23,588.00,STL CABS LTD.
Children and Young Peoples Services,Head of Childrens Social Care,Transport,230005,Contract Hire,07/03/2023,4108216-FEB60/STL23,702.00,STL CABS LTD.
Children and Young Peoples Services,Head of Childrens Social Care,Transport,230005,Contract Hire,07/03/2023,4108216-FEB61/STL23,558.00,STL CABS LTD.
Children and Young Peoples Services,Head of Childrens Social Care,Transport,230005,Contract Hire,07/03/2023,4108216-FEB69/STL23,595.00,STL CABS LTD.
Children and Young Peoples Services,Head of Childrens Social Care,Transport,230005,Contract Hire,07/03/2023,4108216-FEB73/STL23,534.00,STL CABS LTD.
Children and Young Peoples Services,Head of Childrens Social Care,Transport,240045,Car allowances E240,07/03/2023,4108219-12195,"9,135.49",SUPPORTIVE SRC LTD.
Adult and Health Services,Commissioning inc Supporting People,Third Party Payments,479101,Purchase of Care,07/03/2023,4108219-4483,"18,153.00",SUPPORTIVE SRC LTD.
Children and Young Peoples Services,Head of Education and Skills,Transport,230008,Contract Hire,07/03/2023,4108221-DCC/2022/41,"2,259.92",TAYLOR`S TAXIS.
Children and Young Peoples Services,Head of Education and Skills,Transport,230008,Contract Hire,07/03/2023,4108221-DCC/2022/42,"1,970.85",TAYLOR`S TAXIS.
Children and Young Peoples Services,Head of Education and Skills,Transport,230008,Contract Hire,07/03/2023,4108221-DCC/2022/43,"2,392.50",TAYLOR`S TAXIS.
Children and Young Peoples Services,Head of Education and Skills,Transport,230035,Contract Hire,07/03/2023,4108221-DCC/2022/44,"1,151.70",TAYLOR`S TAXIS.
Children and Young Peoples Services,Head of Education and Skills,Transport,230006,Contract Hire,07/03/2023,4108221-DCC/2022/45,"2,725.10",TAYLOR`S TAXIS.
Children and Young Peoples Services,Head of Education and Skills,Transport,230009,Contract Hire,07/03/2023,4108221-DCC/2022/46,"1,185.00",TAYLOR`S TAXIS.
Adult and Health Services,Head of Adults,Transport,230005,Contract Hire,07/03/2023,4108221-DCC/2022/47,"1,360.00",TAYLOR`S TAXIS.
Children and Young Peoples Services,Head of Education and Skills,Transport,230008,Contract Hire,07/03/2023,4108221-DCC/2022/48,"2,692.80",TAYLOR`S TAXIS.
Children and Young Peoples Services,Head of Education and Skills,Transport,230009,Contract Hire,07/03/2023,4108221-DCC/2022/49,"1,170.00",TAYLOR`S TAXIS.
Neighbourhoods and Climate Change,Highways,Supplies and Services,304221,Equipment and Materials,07/03/2023,4108236-242840,"1,415.28",TYNEDALE ROADSTONE LTD.
Neighbourhoods and Climate Change,Environmental Services,Supplies and Services,338078,Services,07/03/2023,4108239-INV-55771,"1,914.65",VISTECH SERVICES LTD.
Children and Young Peoples Services,Head of Early Help Inclusion & Vulnerable Children.,Supplies and Services,338078,Services,07/03/2023,4108239-INV-55772,"5,050.08",VISTECH SERVICES LTD.
Neighbourhoods and Climate Change,Environmental Services,Supplies and Services,338078,Services,07/03/2023,4108239-INV-55773,"1,028.10",VISTECH SERVICES LTD.
Neighbourhoods and Climate Change,Environmental Services,Supplies and Services,338078,Services,07/03/2023,4108239-INV-55774,"1,907.20",VISTECH SERVICES LTD.
Neighbourhoods and Climate Change,Environmental Services,Supplies and Services,338078,Services,07/03/2023,4108239-INV-55775,"2,503.20",VISTECH SERVICES LTD.
Neighbourhoods and Climate Change,Environmental Services,Supplies and Services,338045,Services,07/03/2023,4108243-3692807,"1,289.00",WOMBLE BOND DICKINSON (UK) LLP.
Resources BK0010,Legal & Democratic Services,Supplies and Services,338105,Services,08/03/2023,4108535-E/22/2284/RLA/SJC,800.00,REDACTED - PAYMENT TO INDIVIDUAL
Neighbourhoods and Climate Change,Partnerships & Community Engagement Div.,Cap Exp on Grants & Other Financial Assistance (REFCUS),918004,Contributions to other bodies 918004,08/03/2023,318507-VOUCHER20NB-DCTY067,"54,810.20",LOWES BARN COMMUNITY PROJECT CIO.
Regeneration Economy and Growth,Corporate Property and Land,Third Party Payments,430100,Rendered by Private Contractors,08/03/2023,4108272-INV-0065,"4,762.14",ARMIGER TIMBER FRAME LTD.
Neighbourhoods and Climate Change,Environmental Services,Transport,210057,Repair and Maintenance of Vehicles,08/03/2023,4108315-UHNV393919,857.60,CARPARTS TRADE SUPPLIES LTD (CTS).
Neighbourhoods and Climate Change,Highways,Supplies and Services,384899,Miscellaneous Expenses,08/03/2023,4108387-RES-03-2023-048,"2,340.00",FRIENDS OF FLASS VALE.
Neighbourhoods and Climate Change,Environmental Services,Supplies and Services,384700,Miscellaneous Expenses,08/03/2023,4108476-RES-03-2023-058,"3,671.60",MJ CLOSE & SON LTD.
Neighbourhoods and Climate Change,Environmental Services,Supplies and Services,304221,Equipment and Materials,08/03/2023,4108591-0000066209,"18,398.16",STRAIGHT MANUFACTURING LTD.
Neighbourhoods and Climate Change,Environmental Services,Supplies and Services,384899,Miscellaneous Expenses,08/03/2023,4108602-RES-03-2023-057,"2,511.63",TEESDALE DEVELOPMENT COMPANY LTD.
Neighbourhoods and Climate Change,Environmental Services,Supplies and Services,384700,Miscellaneous Expenses,08/03/2023,4108481-RES-03-2023-039,"2,696.80",REDACTED - PAYMENT TO INDIVIDUAL
Resources BK0010,Legal & Democratic Services,Supplies and Services,338101,Services,08/03/2023,318503-JANUARY2023/SC,750.00,REDACTED - PAYMENT TO INDIVIDUAL
Children and Young Peoples Services,Head of Education and Skills,Supplies and Services,352001,Conference Expenses,08/03/2023,4108264-TSI1B/23,800.00,REDACTED - PAYMENT TO INDIVIDUAL
Children and Young Peoples Services,Head of Education and Skills,Transfer Payments,510027,School Children,08/03/2023,4108247-FEBRUARY2023TOPUP,"1,135.00",1EXCELLENCE MULTI ACADEMY TRUST.
Dedicated Schools Grant BG0015,DSG High Needs Block,Central Support and Other Recharges,689989,Unclassified E690,08/03/2023,4108253-FEBRUARY2023TOPUP,"3,870.00",ADVANCE LEARNING PARTNERSHIP.
Dedicated Schools Grant BG0015,DSG High Needs Block,Central Support and Other Recharges,689988,Unclassified E690,08/03/2023,4108254-FEBRUARY2023TOPUP,"1,763.00",ADVANCE LEARNING PARTNERSHIP.
Dedicated Schools Grant BG0015,DSG High Needs Block,Transfer Payments,510025,School Children,08/03/2023,4108255-FEBRUARY2023TOPUP,"3,936.00",ADVANCE LEARNING PARTNERSHIP.
Dedicated Schools Grant BG0015,DSG High Needs Block,Central Support and Other Recharges,689988,Unclassified E690,08/03/2023,4108256-FEBRUARY2023TOPUP,"1,871.00",ADVANCE LEARNING PARTNERSHIP.
Children and Young Peoples Services,Head of Childrens Social Care,Supplies and Services,338045,Services,08/03/2023,4108257-SD/HUNTER,"2,111.00",ADVANCED ASSESSMENT & SOLUTIONS LTD.
Neighbourhoods and Climate Change,Environmental Services,Supplies and Services,304221,Equipment and Materials,08/03/2023,4108260-CD971286652,580.02,AGROVISTA UK LTD FORMERLY SHERRIFF AMENITY.
Neighbourhoods and Climate Change,Environmental Services,Third Party Payments,430100,Rendered by Private Contractors,08/03/2023,4108262-209R/23/92836,"1,665.00",ALAN M RANSON FUNERAL SERVICE.
Regeneration Economy and Growth,Culture Sport and Tourism,Supplies and Services,304259,Equipment and Materials,08/03/2023,4108263-177231,525.00,ALBANY OFFICE EQUIPMENT (WHOLESALE) LTD.
Regeneration Economy and Growth,Business Durham CL0850,Supplies and Services,308011,Furniture,08/03/2023,4108263-177240,"1,490.00",ALBANY OFFICE EQUIPMENT (WHOLESALE) LTD.
Children and Young Peoples Services,Childrens Services Operational Support,Supplies and Services,338026,Services,08/03/2023,4108268-APD117,897.25,AP & D CONSULTANCY.
Neighbourhoods and Climate Change,Environmental Services,Premises,115125,Repairs to Grounds,08/03/2023,4108271-23039,"1,593.53",ARM PIPETEK LTD.
Neighbourhoods and Climate Change,Highways,Stock A926,926900,Stock in hand-Inventory system,08/03/2023,4108274-917730,866.82,ARNDALE GROUP OF COMPANIES.
Regeneration Economy and Growth,Planning & Housing,Supplies and Services,384999,Miscellaneous Expenses,08/03/2023,4108279-520-640-101,907.50,AYMAN HOSPITALITY LTD T/A HAYAT EXPRESS HOTEL.
Regeneration Economy and Growth,Planning & Housing,Supplies and Services,384999,Miscellaneous Expenses,08/03/2023,4108279-883-324-622,577.50,AYMAN HOSPITALITY LTD T/A HAYAT EXPRESS HOTEL.
Dedicated Schools Grant BG0015,DSG High Needs Block,Third Party Payments,440080,Other third party payments E440,08/03/2023,4108281-FEBRUARY2023TOPUP,"7,784.00",BARBARA PRIESTMAN ACADEMY.
Adult and Health Services,Head of Adults,Third Party Payments,474101,Purchase of Care,08/03/2023,4108282-I-23-6325592,"36,731.72",BARCHESTER HEALTHCARE HOMES LTD.
Regeneration Economy and Growth,Culture Sport and Tourism,Supplies and Services,324117,Provisions E324,08/03/2023,4108292-20141541,636.52,BIDFOOD.
Dedicated Schools Grant BG0015,DSG High Needs Block,Third Party Payments,440080,Other third party payments E440,08/03/2023,4108294-FEBRUARY2023TOPUP,"13,743.00",BISHOP AUCKLAND COLLEGE.
Dedicated Schools Grant BG0015,DSG High Needs Block,Central Support and Other Recharges,689988,Unclassified E690,08/03/2023,4108295-FEBRUARY2023TOPUP,"2,141.00",BISHOP CHADWICK CATHOLIC EDUCATION TRUST (NSCET).
Dedicated Schools Grant BG0015,DSG High Needs Block,Central Support and Other Recharges,689988,Unclassified E690,08/03/2023,4108296-FEBRUARY2023TOPUP,"5,391.00",BISHOP CHADWICK CATHOLIC EDUCATION TRUST (NSCET).
Dedicated Schools Grant BG0015,DSG High Needs Block,Central Support and Other Recharges,689988,Unclassified E690,08/03/2023,4108297-FEBRUARY2023TOPUP,"1,763.00",BISHOP CHADWICK CATHOLIC EDUCATION TRUST (NSCET).
Dedicated Schools Grant BG0015,DSG High Needs Block,Central Support and Other Recharges,689988,Unclassified E690,08/03/2023,4108298-FEBRUARY2023TOPUP,722.00,BISHOP CHADWICK CATHOLIC EDUCATION TRUST (NSCET).
Dedicated Schools Grant BG0015,DSG High Needs Block,Central Support and Other Recharges,689989,Unclassified E690,08/03/2023,4108299-FEBRUARY2023TOPUP,"2,341.00",BISHOP WILKINSON CATHOLIC EDUCATION TRUST.
Dedicated Schools Grant BG0015,DSG High Needs Block,Central Support and Other Recharges,689988,Unclassified E690,08/03/2023,4108300-FEBRUARY2023TOPUP,902.00,BISHOP WILKINSON CATHOLIC EDUCATION TRUST.
Dedicated Schools Grant BG0015,DSG High Needs Block,Central Support and Other Recharges,689996,Unclassified E690,08/03/2023,4108301-FEBRUARY2023TOPUP,"1,000.00",BISHOP WILKINSON CATHOLIC EDUCATION TRUST.
Regeneration Economy and Growth,Culture Sport and Tourism,Supplies and Services,312013,Newspapers books and periodicals E312,08/03/2023,4108303-112498,629.25,BOLINDA DIGITAL LTD.
Regeneration Economy and Growth,Culture Sport and Tourism,Supplies and Services,312013,Newspapers books and periodicals E312,08/03/2023,4108303-112989,585.00,BOLINDA DIGITAL LTD.
Neighbourhoods and Climate Change,Environmental Services,Supplies and Services,304221,Equipment and Materials,08/03/2023,4108308-11708,"2,072.00",BT SIGNS & DISPLAY.
Regeneration Economy and Growth,Transport and Contracted Services,Construction work A908,908105,Construction work,08/03/2023,4108312-NO29636,"3,729.24",BUS SHELTERS LTD.
Dedicated Schools Grant BG0015,DSG High Needs Block,Third Party Payments,440080,Other third party payments E440,08/03/2023,4108317-FEBRUARY2023TOPUP,"6,744.00",CATCH 22.*
Neighbourhoods and Climate Change,Environmental Services,Supplies and Services,338066,Services,08/03/2023,4108321-68562,"1,104.10",CHEVIOT TREES LTD.
Children and Young Peoples Services,Head of Education and Skills,Transfer Payments,510027,School Children,08/03/2023,4108326-FEBRUARY2023TOPUP,679.00,CLEVER CLOGS DAY NURSERIES LTD.
Adult and Health Services,Head of Adults,Third Party Payments,478151,Purchase of Care,08/03/2023,4108331-421R196962,"4,794.20",COMMUNITY INTEGRATED CARE LTD.
Adult and Health Services,Head of Adults,Third Party Payments,478151,Purchase of Care,08/03/2023,4108331-421R198465,"4,794.20",COMMUNITY INTEGRATED CARE LTD.
Neighbourhoods and Climate Change,Highways,Third Party Payments,430127,Rendered by Private Contractors,08/03/2023,4108341-INV-0238,"1,505.00",D & L HOPPS.
Neighbourhoods and Climate Change,Environmental Services,Transport,210057,Repair and Maintenance of Vehicles,08/03/2023,4108346-96436577,"2,424.85",DENNIS EAGLE LTD T/A TERBERG MATEC (UK) LTD.
Neighbourhoods and Climate Change,Environmental Services,Transport,210057,Repair and Maintenance of Vehicles,08/03/2023,4108346-96437023,599.96,DENNIS EAGLE LTD T/A TERBERG MATEC (UK) LTD.
Neighbourhoods and Climate Change,Environmental Services,Transport,210057,Repair and Maintenance of Vehicles,08/03/2023,4108347-DE11566103,740.01,DENNIS EAGLE LTD.
Dedicated Schools Grant BG0015,DSG High Needs Block,Third Party Payments,440080,Other third party payments E440,08/03/2023,4108358-FEBRUARY2023TOPUP,"82,350.00",EAST DURHAM COLLEGE.
Neighbourhoods and Climate Change,Environmental Services,Supplies and Services,304221,Equipment and Materials,08/03/2023,4108359-0000095698,866.56,EAST RIDING HORTICULTURE LTD.
Dedicated Schools Grant BG0015,DSG High Needs Block,Central Support and Other Recharges,689988,Unclassified E690,08/03/2023,4108360-FEBRUARY2023TOPUP,"2,264.00",EDEN LEARNING TRUST T/A FERRYHILL BUSINESS & ENTERPRISE COLLEGE.
